Body Name,Body,Service Label,Service Code,CIPFA Detailed Expenditure Type,CIPFA Detailed Expenditure Code,Date,Transaction Number,Net Amount,Supplier Name
Nottinghamshire County Council,1111/1001,Surplus or Deficit from Trading Undertak,TRADING,Premises Related,BJA,19/12/2013,11-10001,520.04,Biffa Waste Services Ltd
Nottinghamshire County Council,1111/1001,Surplus or Deficit from Trading Undertak,TRADING,Supplies & Services,DDA,09/12/2013,11-10001,966.58,Hamelin Paperbrands Ltd
Nottinghamshire County Council,1111/1001,Surplus or Deficit from Trading Undertak,TRADING,Supplies & Services,DDA,03/12/2013,11-10001,920,Springfield Business Supplies Ltd
Nottinghamshire County Council,1111/1001,Surplus or Deficit from Trading Undertak,TRADING,Supplies & Services,DDA,03/12/2013,11-10001,3754.2,Henkel Loctite Adhesives Ltd
Nottinghamshire County Council,1111/1001,Surplus or Deficit from Trading Undertak,TRADING,Supplies & Services,DDA,05/12/2013,11-10001,2617.92,Henkel Loctite Adhesives Ltd
Nottinghamshire County Council,1111/1001,Surplus or Deficit from Trading Undertak,TRADING,Supplies & Services,DFA,13/12/2013,11-10001,1400,Exant (Uk) Ltd
Nottinghamshire County Council,1111/1001,Surplus or Deficit from Trading Undertak,TRADING,Supplies & Services,DFA,13/12/2013,11-10001,1315.19,Advanced Ticketing Limited
Nottinghamshire County Council,1111/1001,Surplus or Deficit from Trading Undertak,TRADING,Supplies & Services,DFA,13/12/2013,11-10001,2527.37,Advanced Ticketing Limited
Nottinghamshire County Council,1111/1001,Surplus or Deficit from Trading Undertak,TRADING,Supplies & Services,DFA,13/12/2013,11-10001,2713.67,Advanced Chorus Application Software Ltd
Nottinghamshire County Council,1111/1001,Surplus or Deficit from Trading Undertak,TRADING,Supplies & Services,DFA,13/12/2013,11-10001,33036.55,Advanced Business Software & Solutions
Nottinghamshire County Council,1111/1001,Surplus or Deficit from Trading Undertak,TRADING,Supplies & Services,DAA,09/12/2013,11-10001,538,Broughton & Co Ltd
Nottinghamshire County Council,1111/1001,Surplus or Deficit from Trading Undertak,TRADING,Supplies & Services,DAA,12/12/2013,11-10001,647.63,Stuff-Uk-Net
Nottinghamshire County Council,1111/1001,Surplus or Deficit from Trading Undertak,TRADING,Supplies & Services,DAA,05/12/2013,11-10001,573.9,Vivid Laminating Technologies Ltd
Nottinghamshire County Council,1111/1001,Surplus or Deficit from Trading Undertak,TRADING,Supplies & Services,DAA,19/12/2013,11-10001,606.14,Vivid Laminating Technologies Ltd
Nottinghamshire County Council,1111/1001,Surplus or Deficit from Trading Undertak,TRADING,Supplies & Services,DAA,19/12/2013,11-10001,971.2,Vivid Laminating Technologies Ltd
Nottinghamshire County Council,1111/1001,Surplus or Deficit from Trading Undertak,TRADING,Supplies & Services,DAA,05/12/2013,11-10001,1022.1,Talk Paper
Nottinghamshire County Council,1111/1001,Surplus or Deficit from Trading Undertak,TRADING,Supplies & Services,DAA,09/12/2013,11-10001,529.24,Talk Paper
Nottinghamshire County Council,1111/1001,Surplus or Deficit from Trading Undertak,TRADING,Supplies & Services,DAA,03/12/2013,11-10001,1059.68,Supplies Team Ltd
Nottinghamshire County Council,1111/1001,Surplus or Deficit from Trading Undertak,TRADING,Supplies & Services,DAA,12/12/2013,11-10001,1031.33,Supplies Team Ltd
Nottinghamshire County Council,1111/1001,Surplus or Deficit from Trading Undertak,TRADING,Supplies & Services,DAA,12/12/2013,11-10001,773.64,Supplies Team Ltd
Nottinghamshire County Council,1111/1001,Surplus or Deficit from Trading Undertak,TRADING,Premises Related,BAA,19/12/2013,11-10001,614.95,Avery Uk
Nottinghamshire County Council,1111/1001,Surplus or Deficit from Trading Undertak,TRADING,Premises Related,BJA,12/12/2013,11-10001,563.76,Kimberley Clark European Services Ltd
Nottinghamshire County Council,1111/1001,Surplus or Deficit from Trading Undertak,TRADING,Premises Related,BJA,19/12/2013,11-10001,1581.52,Kimberley Clark European Services Ltd
Nottinghamshire County Council,1111/1001,Surplus or Deficit from Trading Undertak,TRADING,Premises Related,BJA,19/12/2013,11-10001,3231.36,Peacock Salt
Nottinghamshire County Council,1111/1001,Surplus or Deficit from Trading Undertak,TRADING,Premises Related,BJA,03/12/2013,11-10001,718.24,Midland Wiper Manufacturing Co Ltd
Nottinghamshire County Council,1111/1001,Surplus or Deficit from Trading Undertak,TRADING,Premises Related,BJA,05/12/2013,11-10001,637.32,Evans Vanodine International Ltd
Nottinghamshire County Council,1111/1001,Surplus or Deficit from Trading Undertak,TRADING,Premises Related,BJA,19/12/2013,11-10001,1047.8,Evans Vanodine International Ltd
Nottinghamshire County Council,1111/1001,Surplus or Deficit from Trading Undertak,TRADING,Premises Related,BJA,03/12/2013,11-10001,1852.27,Johnson Diversey
Nottinghamshire County Council,1111/1001,Surplus or Deficit from Trading Undertak,TRADING,Premises Related,BJA,09/12/2013,11-10001,2575.34,Johnson Diversey
Nottinghamshire County Council,1111/1001,Surplus or Deficit from Trading Undertak,TRADING,Premises Related,BJA,12/12/2013,11-10001,2440.67,Premiere Products
Nottinghamshire County Council,1111/1001,Surplus or Deficit from Trading Undertak,TRADING,Premises Related,BJA,12/12/2013,11-10001,1418.42,Candor Services
Nottinghamshire County Council,1111/1001,Surplus or Deficit from Trading Undertak,TRADING,Supplies & Services,DAA,12/12/2013,11-10001,1180,E.T.I. Ltd
Nottinghamshire County Council,1111/1001,Surplus or Deficit from Trading Undertak,TRADING,Supplies & Services,DAA,05/12/2013,11-10001,516.38,Bunzl Catering Supplies
Nottinghamshire County Council,1111/1001,Surplus or Deficit from Trading Undertak,TRADING,Supplies & Services,DAA,19/12/2013,11-10001,555.23,Bunzl Catering Supplies
Nottinghamshire County Council,1111/1001,Surplus or Deficit from Trading Undertak,TRADING,Supplies & Services,DAA,17/12/2013,11-10001,647.86,W V Howe (Hardware) Ltd
Nottinghamshire County Council,1111/1001,Surplus or Deficit from Trading Undertak,TRADING,Supplies & Services,DAA,17/12/2013,11-10001,570.18,W V Howe (Hardware) Ltd
Nottinghamshire County Council,1111/1001,Surplus or Deficit from Trading Undertak,TRADING,Supplies & Services,DAA,05/12/2013,11-10001,13603.21,Sca Hygiene
Nottinghamshire County Council,1111/1001,Surplus or Deficit from Trading Undertak,TRADING,Supplies & Services,DAA,05/12/2013,11-10001,1495.79,Sca Hygiene
Nottinghamshire County Council,1111/1001,Surplus or Deficit from Trading Undertak,TRADING,Supplies & Services,DAA,19/12/2013,11-10001,577.04,Dualit Ltd
Nottinghamshire County Council,1111/1001,Surplus or Deficit from Trading Undertak,TRADING,Supplies & Services,DAA,03/12/2013,11-10001,525,Stearn Electric Company Ltd
Nottinghamshire County Council,1111/1001,Surplus or Deficit from Trading Undertak,TRADING,Supplies & Services,DCA,19/12/2013,11-10001,616.5,Freudenberg Household Products Lp
Nottinghamshire County Council,1111/1001,Surplus or Deficit from Trading Undertak,TRADING,Supplies & Services,DCA,17/12/2013,11-10001,2577.73,Shermond
Nottinghamshire County Council,1111/1001,Surplus or Deficit from Trading Undertak,TRADING,Supplies & Services,DCA,17/12/2013,11-10001,1885.47,Shermond
Nottinghamshire County Council,1111/1001,Surplus or Deficit from Trading Undertak,TRADING,Supplies & Services,DKA,03/12/2013,11-10001,760.6,Bunzl Cleaning & Hygiene Supplies
Nottinghamshire County Council,1111/1001,Surplus or Deficit from Trading Undertak,TRADING,Supplies & Services,DKA,12/12/2013,11-10001,921.6,Bunzl Cleaning & Hygiene Supplies
Nottinghamshire County Council,1111/1001,Surplus or Deficit from Trading Undertak,TRADING,Supplies & Services,DAA,05/12/2013,11-10001,1340.05,R Scott & Sons Ltd
Nottinghamshire County Council,1111/1001,Surplus or Deficit from Trading Undertak,TRADING,Supplies & Services,DAA,19/12/2013,11-10001,1754.76,R Scott & Sons Ltd
Nottinghamshire County Council,1111/1001,Surplus or Deficit from Trading Undertak,TRADING,Supplies & Services,DAA,13/12/2013,11-10001,941.6,Principal Furniture
Nottinghamshire County Council,1111/1001,Surplus or Deficit from Trading Undertak,TRADING,Supplies & Services,DAA,12/12/2013,11-10001,879.68,Hille Education Products Ltd
Nottinghamshire County Council,1111/1001,Surplus or Deficit from Trading Undertak,TRADING,Supplies & Services,DAA,09/12/2013,11-10001,634.24,Gopak Ltd
Nottinghamshire County Council,1111/1001,Surplus or Deficit from Trading Undertak,TRADING,Supplies & Services,DAA,13/12/2013,11-10001,551,Gratnells Ltd
Nottinghamshire County Council,1111/1001,Surplus or Deficit from Trading Undertak,TRADING,Supplies & Services,DAA,19/12/2013,11-10001,1496.4,Staedtler (Uk) Ltd
Nottinghamshire County Council,1111/1001,Surplus or Deficit from Trading Undertak,TRADING,Supplies & Services,DAA,05/12/2013,11-10001,746.4,Edding Uk Ltd
Nottinghamshire County Council,1111/1001,Surplus or Deficit from Trading Undertak,TRADING,Supplies & Services,DAA,03/12/2013,11-10001,2221.36,Higher Kings Mill Ltd
Nottinghamshire County Council,1111/1001,Surplus or Deficit from Trading Undertak,TRADING,Supplies & Services,DAA,09/12/2013,11-10001,2096.84,Higher Kings Mill Ltd
Nottinghamshire County Council,1111/1001,Surplus or Deficit from Trading Undertak,TRADING,Supplies & Services,DAA,12/12/2013,11-10001,605.2,E V Naish Ltd
Nottinghamshire County Council,1111/1001,Surplus or Deficit from Trading Undertak,TRADING,Supplies & Services,DAA,19/12/2013,11-10001,801.83,Creativity International Ltd
Nottinghamshire County Council,1111/1001,Surplus or Deficit from Trading Undertak,TRADING,Supplies & Services,DAA,19/12/2013,11-10001,814.72,Valentine Clays
Nottinghamshire County Council,1111/1001,Surplus or Deficit from Trading Undertak,TRADING,Supplies & Services,DAA,03/12/2013,11-10001,505,Bright Ideas Marketing Ltd
Nottinghamshire County Council,1111/1001,Surplus or Deficit from Trading Undertak,TRADING,Supplies & Services,DAA,19/12/2013,11-10001,743.83,Bright Ideas Marketing Ltd
Nottinghamshire County Council,1111/1001,Surplus or Deficit from Trading Undertak,TRADING,Supplies & Services,DAA,12/12/2013,11-10001,642.4,Eastpoint
Nottinghamshire County Council,1111/1001,Surplus or Deficit from Trading Undertak,TRADING,Supplies & Services,DAA,12/12/2013,11-10001,648.02,Kit For Kids Ltd
Nottinghamshire County Council,1111/1001,Surplus or Deficit from Trading Undertak,TRADING,Supplies & Services,DAA,13/12/2013,11-10001,1239.34,Brian Clegg (Educational Products) Ltd
Nottinghamshire County Council,1111/1001,Surplus or Deficit from Trading Undertak,TRADING,Supplies & Services,DAA,13/12/2013,11-10001,676.56,Brian Clegg (Educational Products) Ltd
Nottinghamshire County Council,1111/1001,Surplus or Deficit from Trading Undertak,TRADING,Supplies & Services,DAA,09/12/2013,11-10001,574.1,Commotion Technology Supplies
Nottinghamshire County Council,1111/1001,Surplus or Deficit from Trading Undertak,TRADING,Supplies & Services,DAA,03/12/2013,11-10001,721.29,Profile Education Ltd
Nottinghamshire County Council,1111/1001,Surplus or Deficit from Trading Undertak,TRADING,Supplies & Services,DAA,05/12/2013,11-10001,899.68,Monarch Computer Furniture
Nottinghamshire County Council,1111/1001,Surplus or Deficit from Trading Undertak,TRADING,Supplies & Services,DAA,09/12/2013,11-10001,1830.38,Monarch Computer Furniture
Nottinghamshire County Council,1111/1001,Surplus or Deficit from Trading Undertak,TRADING,Employee Related,AAA,03/12/2013,11-10001,656.34,Frontline Recruitment Ltd
Nottinghamshire County Council,1111/1001,Surplus or Deficit from Trading Undertak,TRADING,Employee Related,AAA,13/12/2013,11-10001,1160.28,Frontline Recruitment Ltd
Nottinghamshire County Council,1111/1001,Surplus or Deficit from Trading Undertak,TRADING,Employee Related,AAA,19/12/2013,11-10001,1249.12,Frontline Recruitment Ltd
Nottinghamshire County Council,1111/1001,Children and Young People,CYP,Premises Related,BCA,20/12/2013,11-14620,1204.96,Certas Energy UK Ltd T/A Emo Oil Lt
Nottinghamshire County Council,1111/1001,Children and Young People,CYP,Premises Related,BDA,31/12/2013,11-14670,500,Dr B Harris
Nottinghamshire County Council,1111/1001,Children and Young People,CYP,Premises Related,BFA,16/12/2013,11-10673,1636.34,Severn Trent Water Ltd
Nottinghamshire County Council,1111/1001,Children and Young People,CYP,Transport Related,CCA,10/12/2013,11-10347,2509.92,Sharpes Of Nottingham
Nottinghamshire County Council,1111/1001,Children and Young People,CYP,Transport Related,CCA,10/12/2013,11-10348,949.8,Sharpes Of Nottingham
Nottinghamshire County Council,1111/1001,Children and Young People,CYP,Transport Related,CCA,10/12/2013,11-10349,559.6,Sharpes Of Nottingham
Nottinghamshire County Council,1111/1001,Children and Young People,CYP,Transport Related,CCA,10/12/2013,11-10357,1152.6,Southside Cars
Nottinghamshire County Council,1111/1001,Children and Young People,CYP,Transport Related,CCA,10/12/2013,11-10358,1261.12,Southside Cars
Nottinghamshire County Council,1111/1001,Children and Young People,CYP,Transport Related,CCA,10/12/2013,11-10360,1060.5,Cabline Uk Ltd
Nottinghamshire County Council,1111/1001,Children and Young People,CYP,Transport Related,CCA,10/12/2013,11-10361,2000,Central Cars Nottm Ltd
Nottinghamshire County Council,1111/1001,Children and Young People,CYP,Transport Related,CCA,10/12/2013,11-10362,1120,Central Cars Nottm Ltd
Nottinghamshire County Council,1111/1001,Children and Young People,CYP,Transport Related,CCA,10/12/2013,11-10363,576,Central Cars Nottm Ltd
Nottinghamshire County Council,1111/1001,Children and Young People,CYP,Transport Related,CCA,10/12/2013,11-10364,570,Central Cars Nottm Ltd
Nottinghamshire County Council,1111/1001,Children and Young People,CYP,Transport Related,CCA,10/12/2013,11-10365,1801.8,Central Cars Nottm Ltd
Nottinghamshire County Council,1111/1001,Children and Young People,CYP,Transport Related,CCA,10/12/2013,11-10366,590.85,Central Cars Nottm Ltd
Nottinghamshire County Council,1111/1001,Children and Young People,CYP,Transport Related,CCA,10/12/2013,11-10367,2136,Central Cars Nottm Ltd
Nottinghamshire County Council,1111/1001,Children and Young People,CYP,Transport Related,CCA,10/12/2013,11-10368,1156.05,Central Cars Nottm Ltd
Nottinghamshire County Council,1111/1001,Children and Young People,CYP,Transport Related,CCA,10/12/2013,11-10369,949.2,Central Cars Nottm Ltd
Nottinghamshire County Council,1111/1001,Children and Young People,CYP,Transport Related,CCA,10/12/2013,11-10370,864,Central Cars Nottm Ltd
Nottinghamshire County Council,1111/1001,Children and Young People,CYP,Transport Related,CCA,10/12/2013,11-10371,2316.3,Central Cars Nottm Ltd
Nottinghamshire County Council,1111/1001,Children and Young People,CYP,Transport Related,CCA,10/12/2013,11-10377,3885,Redfern Travel
Nottinghamshire County Council,1111/1001,Children and Young People,CYP,Transport Related,CCA,10/12/2013,11-10378,1700,Redfern Travel
Nottinghamshire County Council,1111/1001,Children and Young People,CYP,Transport Related,CCA,10/12/2013,11-10383,660.1,SJW (Muskham) Ltd T/A Z Cars
Nottinghamshire County Council,1111/1001,Children and Young People,CYP,Transport Related,CCA,10/12/2013,11-10384,2162,Erewash Community Transport
Nottinghamshire County Council,1111/1001,Children and Young People,CYP,Transport Related,CCA,10/12/2013,11-10385,3237.45,Erewash Community Transport
Nottinghamshire County Council,1111/1001,Children and Young People,CYP,Transport Related,CCA,10/12/2013,11-10386,1931.86,Erewash Community Transport
Nottinghamshire County Council,1111/1001,Children and Young People,CYP,Transport Related,CCA,10/12/2013,11-10387,2441.18,Erewash Community Transport
Nottinghamshire County Council,1111/1001,Children and Young People,CYP,Transport Related,CCA,10/12/2013,11-10388,2389.8,Erewash Community Transport
Nottinghamshire County Council,1111/1001,Children and Young People,CYP,Transport Related,CCA,10/12/2013,11-10389,1120,Shelleys Taxis Ltd
Nottinghamshire County Council,1111/1001,Children and Young People,CYP,Transport Related,CCA,10/12/2013,11-10394,2806.29,F & J Marriott T/A Unity Coaches
Nottinghamshire County Council,1111/1001,Children and Young People,CYP,Transport Related,CCA,10/12/2013,11-10395,2821.4,F & J Marriott T/A Unity Coaches
Nottinghamshire County Council,1111/1001,Children and Young People,CYP,Transport Related,CCA,10/12/2013,11-10396,2727,F & J Marriott T/A Unity Coaches
Nottinghamshire County Council,1111/1001,Children and Young People,CYP,Transport Related,CCA,10/12/2013,11-10400,1380,Jb Tours Watnall Ltd
Nottinghamshire County Council,1111/1001,Children and Young People,CYP,Transport Related,CCA,10/12/2013,11-10401,980,Jb Tours Watnall Ltd
Nottinghamshire County Council,1111/1001,Children and Young People,CYP,Transport Related,CCA,10/12/2013,11-10440,6855.03,Stagecoach Services Ltd
Nottinghamshire County Council,1111/1001,Children and Young People,CYP,Transport Related,CCA,10/12/2013,11-10444,3350,Tiger European Uk Ltd
Nottinghamshire County Council,1111/1001,Children and Young People,CYP,Transport Related,CCA,10/12/2013,11-10445,3845,Tiger European Uk Ltd
Nottinghamshire County Council,1111/1001,Children and Young People,CYP,Transport Related,CCA,10/12/2013,11-10448,3260,Freeway Coaches Ltd
Nottinghamshire County Council,1111/1001,Children and Young People,CYP,Transport Related,CCA,10/12/2013,11-10456,1470,Ace Cars
Nottinghamshire County Council,1111/1001,Children and Young People,CYP,Transport Related,CCA,12/12/2013,11-10579,600,Central Cars Nottm Ltd
Nottinghamshire County Council,1111/1001,Children and Young People,CYP,Transport Related,CCA,12/12/2013,11-10580,600,Central Cars Nottm Ltd
Nottinghamshire County Council,1111/1001,Children and Young People,CYP,Transport Related,CCA,12/12/2013,11-10594,3541.44,Butler Brothers Ltd
Nottinghamshire County Council,1111/1001,Children and Young People,CYP,Transport Related,CCA,12/12/2013,11-10634,615.9,Diamond Cars
Nottinghamshire County Council,1111/1001,Children and Young People,CYP,Transport Related,CCA,27/12/2013,11-11090,600,6 Five 2s
Nottinghamshire County Council,1111/1001,Children and Young People,CYP,Transport Related,CCA,27/12/2013,11-11091,1068.2,6 Five 2s
Nottinghamshire County Council,1111/1001,Children and Young People,CYP,Transport Related,CCA,27/12/2013,11-11092,1050,6 Five 2s
Nottinghamshire County Council,1111/1001,Children and Young People,CYP,Transport Related,CCA,27/12/2013,11-11093,1289.4,6 Five 2s
Nottinghamshire County Council,1111/1001,Children and Young People,CYP,Transport Related,CCA,27/12/2013,11-11094,588,6 Five 2s
Nottinghamshire County Council,1111/1001,Children and Young People,CYP,Transport Related,CCA,27/12/2013,11-11095,1359,6 Five 2s
Nottinghamshire County Council,1111/1001,Children and Young People,CYP,Transport Related,CCA,27/12/2013,11-11096,1467.9,6 Five 2s
Nottinghamshire County Council,1111/1001,Children and Young People,CYP,Transport Related,CCA,27/12/2013,11-11097,560.55,6 Five 2s
Nottinghamshire County Council,1111/1001,Children and Young People,CYP,Transport Related,CCA,27/12/2013,11-11098,1413.45,6 Five 2s
Nottinghamshire County Council,1111/1001,Children and Young People,CYP,Transport Related,CCA,27/12/2013,11-11099,1251.75,6 Five 2s
Nottinghamshire County Council,1111/1001,Children and Young People,CYP,Transport Related,CCA,27/12/2013,11-11100,1971.9,6 Five 2s
Nottinghamshire County Council,1111/1001,Children and Young People,CYP,Transport Related,CCA,27/12/2013,11-11101,908.7,6 Five 2s
Nottinghamshire County Council,1111/1001,Children and Young People,CYP,Transport Related,CCA,27/12/2013,11-11102,890.75,6 Five 2s
Nottinghamshire County Council,1111/1001,Children and Young People,CYP,Transport Related,CCA,27/12/2013,11-11103,896,6 Five 2s
Nottinghamshire County Council,1111/1001,Children and Young People,CYP,Transport Related,CCA,27/12/2013,11-11104,816.84,Central Cars Nottm Ltd
Nottinghamshire County Council,1111/1001,Children and Young People,CYP,Transport Related,CCA,27/12/2013,11-11105,2118.37,Marriotts Travel
Nottinghamshire County Council,1111/1001,Children and Young People,CYP,Transport Related,CCA,27/12/2013,11-11106,2152.05,Marriotts Travel
Nottinghamshire County Council,1111/1001,Children and Young People,CYP,Transport Related,CCA,27/12/2013,11-11107,1667.51,Martins Travel
Nottinghamshire County Council,1111/1001,Children and Young People,CYP,Transport Related,CCA,27/12/2013,11-11108,1815.75,Martins Travel
Nottinghamshire County Council,1111/1001,Children and Young People,CYP,Transport Related,CCA,27/12/2013,11-11109,1098.9,CBC Taxis Ltd
Nottinghamshire County Council,1111/1001,Children and Young People,CYP,Transport Related,CCA,27/12/2013,11-11110,949,CBC Taxis Ltd
Nottinghamshire County Council,1111/1001,Children and Young People,CYP,Transport Related,CCA,27/12/2013,11-11112,522.38,Arrow Specialised Transport Ltd
Nottinghamshire County Council,1111/1001,Children and Young People,CYP,Transport Related,CCA,27/12/2013,11-11113,1386,Arrow Specialised Transport Ltd
Nottinghamshire County Council,1111/1001,Children and Young People,CYP,Transport Related,CCA,27/12/2013,11-11114,1537.2,Arrow Specialised Transport Ltd
Nottinghamshire County Council,1111/1001,Children and Young People,CYP,Transport Related,CCA,27/12/2013,11-11115,1246,Arrow Specialised Transport Ltd
Nottinghamshire County Council,1111/1001,Children and Young People,CYP,Transport Related,CCA,27/12/2013,11-11116,1750,Arrow Specialised Transport Ltd
Nottinghamshire County Council,1111/1001,Children and Young People,CYP,Transport Related,CCA,27/12/2013,11-11117,1425,Arrow Specialised Transport Ltd
Nottinghamshire County Council,1111/1001,Children and Young People,CYP,Transport Related,CCA,27/12/2013,11-11118,1636.2,Arrow Specialised Transport Ltd
Nottinghamshire County Council,1111/1001,Children and Young People,CYP,Transport Related,CCA,27/12/2013,11-11119,1920,Arrow Specialised Transport Ltd
Nottinghamshire County Council,1111/1001,Children and Young People,CYP,Transport Related,CCA,27/12/2013,11-11120,1722.9,Arrow Specialised Transport Ltd
Nottinghamshire County Council,1111/1001,Children and Young People,CYP,Transport Related,CCA,27/12/2013,11-11121,712.5,Arrow Specialised Transport Ltd
Nottinghamshire County Council,1111/1001,Children and Young People,CYP,Transport Related,CCA,27/12/2013,11-11122,1543.65,Arrow Specialised Transport Ltd
Nottinghamshire County Council,1111/1001,Children and Young People,CYP,Transport Related,CCA,27/12/2013,11-11123,1702.5,Arrow Specialised Transport Ltd
Nottinghamshire County Council,1111/1001,Children and Young People,CYP,Transport Related,CCA,27/12/2013,11-11124,720,Arrow Specialised Transport Ltd
Nottinghamshire County Council,1111/1001,Children and Young People,CYP,Transport Related,CCA,27/12/2013,11-11125,2360.96,Butler Brothers Ltd
Nottinghamshire County Council,1111/1001,Children and Young People,CYP,Transport Related,CCA,27/12/2013,11-11126,1798.35,Ja Travel Ltd
Nottinghamshire County Council,1111/1001,Children and Young People,CYP,Transport Related,CCA,27/12/2013,11-11127,2389.5,Ja Travel Ltd
Nottinghamshire County Council,1111/1001,Children and Young People,CYP,Transport Related,CCA,27/12/2013,11-11128,1275.45,Ja Travel Ltd
Nottinghamshire County Council,1111/1001,Children and Young People,CYP,Transport Related,CCA,27/12/2013,11-11141,2010,C W Moxon Ltd
Nottinghamshire County Council,1111/1001,Children and Young People,CYP,Transport Related,CDA,10/12/2013,11-10342,15015,Sharpes Of Nottingham
Nottinghamshire County Council,1111/1001,Children and Young People,CYP,Transport Related,CDA,10/12/2013,11-10364,570,Central Cars Nottm Ltd
Nottinghamshire County Council,1111/1001,Children and Young People,CYP,Transport Related,CDA,27/12/2013,11-11112,522.37,Arrow Specialised Transport Ltd
Nottinghamshire County Council,1111/1001,Children and Young People,CYP,Transport Related,CDA,27/12/2013,11-11121,712.5,Arrow Specialised Transport Ltd
Nottinghamshire County Council,1111/1001,Children and Young People,CYP,Transport Related,CDA,30/12/2013,11-11142,19929,Johnson Bros Tours Ltd
Nottinghamshire County Council,1111/1001,Children and Young People,CYP,Supplies & Services,DBA,03/12/2013,11-10011,597.67,Brake Bros Ltd
Nottinghamshire County Council,1111/1001,Children and Young People,CYP,Supplies & Services,DBA,11/12/2013,11-10467,593.83,Brake Bros Ltd
Nottinghamshire County Council,1111/1001,Children and Young People,CYP,Supplies & Services,DBA,11/12/2013,11-10469,543.14,Brake Bros Ltd
Nottinghamshire County Council,1111/1001,Children and Young People,CYP,Supplies & Services,DBA,18/12/2013,11-10841,662.5,Brake Bros Ltd
Nottinghamshire County Council,1111/1001,Children and Young People,CYP,Supplies & Services,DBA,18/12/2013,11-10842,590.64,Brake Bros Ltd
Nottinghamshire County Council,1111/1001,Children and Young People,CYP,Supplies & Services,DDA,11/12/2013,11-10465,1524.11,Konica Minolta
Nottinghamshire County Council,1111/1001,Children and Young People,CYP,Supplies & Services,DEA,23/12/2013,11-14629,1250,Yorkshire Adoption Agency Ltd
Nottinghamshire County Council,1111/1001,Children and Young People,CYP,Supplies & Services,DEA,23/12/2013,11-14635,5500,In Control Partnerships
Nottinghamshire County Council,1111/1001,Children and Young People,CYP,Supplies & Services,DFA,05/12/2013,11-10127,591.87,Lantec Services Ltd
Nottinghamshire County Council,1111/1001,Children and Young People,CYP,Supplies & Services,DHA,06/12/2013,11-10244,700,Notts Clubs For Young People Ltd
Nottinghamshire County Council,1111/1001,Children and Young People,CYP,Supplies & Services,DKA,12/12/2013,11-10563,1820,J Sedoo t/a Sedoo Investments
Nottinghamshire County Council,1111/1001,Children and Young People,CYP,Supplies & Services,DKA,12/12/2013,11-10569,712.5,SplashFit
Nottinghamshire County Council,1111/1001,Children and Young People,CYP,Supplies & Services,DKA,20/12/2013,11-14614,3719,Progressive Care
Nottinghamshire County Council,1111/1001,Children and Young People,CYP,Supplies & Services,DKA,20/12/2013,11-14622,18910,Blue Mountain Homes Ltd
Nottinghamshire County Council,1111/1001,Children and Young People,CYP,Supplies & Services,DKA,20/12/2013,11-14626,557.14,Blue Mountain Homes Ltd
Nottinghamshire County Council,1111/1001,Children and Young People,CYP,Supplies & Services,DKA,31/12/2013,11-14667,13296.9,Scope
Nottinghamshire County Council,1111/1001,Children and Young People,CYP,Supplies & Services,DKA,31/12/2013,11-14669,3719,Progressive Care
Nottinghamshire County Council,1111/1001,Children and Young People,CYP,Supplies & Services,DNA,20/12/2013,11-14624,600,E Learning Team Ltd
Nottinghamshire County Council,1111/1001,Children and Young People,CYP,Third Party Payments,EAA,19/12/2013,11-14576,18600,Mike Bee
Nottinghamshire County Council,1111/1001,Children and Young People,CYP,Third Party Payments,EAA,19/12/2013,11-14588,1800,Mike Bee
Nottinghamshire County Council,1111/1001,Children and Young People,CYP,Third Party Payments,EAA,19/12/2013,11-14589,2100,Mike Bee
Nottinghamshire County Council,1111/1001,Children and Young People,CYP,Third Party Payments,EAA,20/12/2013,11-14621,500,Nottingham Consultants Ltd
Nottinghamshire County Council,1111/1001,Children and Young People,CYP,Third Party Payments,EBA,05/12/2013,11-10205,26092.85,Home Group Limited
Nottinghamshire County Council,1111/1001,Children and Young People,CYP,Third Party Payments,EBA,05/12/2013,11-10206,6136.99,The Kirkby Trust - In Administratio
Nottinghamshire County Council,1111/1001,Children and Young People,CYP,Third Party Payments,EBA,05/12/2013,11-10215,1723.88,Metropolitan Support Trust
Nottinghamshire County Council,1111/1001,Children and Young People,CYP,Third Party Payments,EBA,05/12/2013,11-10219,20609.23,Newark Emmaus Trust
Nottinghamshire County Council,1111/1001,Children and Young People,CYP,Third Party Payments,EBA,05/12/2013,11-10224,10571.57,Framework Housing Association
Nottinghamshire County Council,1111/1001,Children and Young People,CYP,Third Party Payments,EBA,05/12/2013,11-10225,44237.93,Nottingham Community Housing
Nottinghamshire County Council,1111/1001,Children and Young People,CYP,Third Party Payments,EBA,05/12/2013,11-10228,10779.67,ASRA Housing Association
Nottinghamshire County Council,1111/1001,Children and Young People,CYP,Third Party Payments,EBA,17/12/2013,11-14553,30000,Rushcliffe Borough Council
Nottinghamshire County Council,1111/1001,Children and Young People,CYP,Third Party Payments,EBA,20/12/2013,11-14599,3571.4,Mansfield Wheels Activity Centre
Nottinghamshire County Council,1111/1001,Children and Young People,CYP,Third Party Payments,EDA,12/12/2013,11-10546,28542,Sacred Heart Catholic Voluntary Aca
Nottinghamshire County Council,1111/1001,Children and Young People,CYP,Third Party Payments,EDA,16/12/2013,11-14506,604,National Church Of England Academy
Nottinghamshire County Council,1111/1001,Children and Young People,CYP,Third Party Payments,EDA,16/12/2013,11-14507,1311,Tuxford Academy
Nottinghamshire County Council,1111/1001,Children and Young People,CYP,Third Party Payments,EDA,16/12/2013,11-14508,4233,Kirkby College
Nottinghamshire County Council,1111/1001,Children and Young People,CYP,Third Party Payments,EDA,16/12/2013,11-14509,553,The Manor Academy
Nottinghamshire County Council,1111/1001,Children and Young People,CYP,Third Party Payments,EDA,16/12/2013,11-14510,1371,West Bridgford Academy
Nottinghamshire County Council,1111/1001,Children and Young People,CYP,Third Party Payments,EDA,16/12/2013,11-14511,570,Queen Elizabeth's Academy
Nottinghamshire County Council,1111/1001,Children and Young People,CYP,Third Party Payments,EDA,16/12/2013,11-14512,8166,The Carlton Academy
Nottinghamshire County Council,1111/1001,Children and Young People,CYP,Third Party Payments,EDA,16/12/2013,11-14513,1418,South Nottinghamshire Academy
Nottinghamshire County Council,1111/1001,Children and Young People,CYP,Third Party Payments,EDA,16/12/2013,11-14514,1444,Toothill Academy
Nottinghamshire County Council,1111/1001,Children and Young People,CYP,Third Party Payments,EDA,16/12/2013,11-14515,1011,The Becket Catholic Voluntary Acade
Nottinghamshire County Council,1111/1001,Children and Young People,CYP,Third Party Payments,EDA,16/12/2013,11-14516,6328,Serlby Park Academy
Nottinghamshire County Council,1111/1001,Children and Young People,CYP,Third Party Payments,EDA,16/12/2013,11-14517,1430,Arnold Hill Academy
Nottinghamshire County Council,1111/1001,Children and Young People,CYP,Third Party Payments,EDA,16/12/2013,11-14518,969,The Brunts Academy
Nottinghamshire County Council,1111/1001,Children and Young People,CYP,Third Party Payments,EDA,16/12/2013,11-14519,994,Carlton Le Willows Academy
Nottinghamshire County Council,1111/1001,Children and Young People,CYP,Third Party Payments,EDA,16/12/2013,11-14520,1046,Rushcliffe School Academy Trust
Nottinghamshire County Council,1111/1001,Children and Young People,CYP,Third Party Payments,EDA,16/12/2013,11-14521,14883,Outwood Academy Portland
Nottinghamshire County Council,1111/1001,Children and Young People,CYP,Third Party Payments,EDA,16/12/2013,11-14522,823,Outwood Academy Portland
Nottinghamshire County Council,1111/1001,Children and Young People,CYP,Third Party Payments,EDA,16/12/2013,11-14523,1140,Ashfield Academy
Nottinghamshire County Council,1111/1001,Children and Young People,CYP,Third Party Payments,EDA,16/12/2013,11-14524,2499,Ashfield Academy
Nottinghamshire County Council,1111/1001,Children and Young People,CYP,Third Party Payments,EDA,16/12/2013,11-14525,9122,Retford Oaks Academy
Nottinghamshire County Council,1111/1001,Children and Young People,CYP,Third Party Payments,EDA,16/12/2013,11-14526,26877,The Elizabethan Academy
Nottinghamshire County Council,1111/1001,Children and Young People,CYP,Third Party Payments,EDA,16/12/2013,11-14527,694,The Elizabethan Academy
Nottinghamshire County Council,1111/1001,Children and Young People,CYP,Third Party Payments,EDA,16/12/2013,11-14528,639,The South Wolds Academy & Sixth For
Nottinghamshire County Council,1111/1001,Children and Young People,CYP,Third Party Payments,EDA,16/12/2013,11-14529,814,Outwood Academy - Valley
Nottinghamshire County Council,1111/1001,Children and Young People,CYP,Third Party Payments,EDA,16/12/2013,11-14530,13709,Meden School - A Torch Academy
Nottinghamshire County Council,1111/1001,Children and Young People,CYP,Third Party Payments,EDA,16/12/2013,11-14531,690,The Kimberley School (Academy)
Nottinghamshire County Council,1111/1001,Children and Young People,CYP,Third Party Payments,EDA,16/12/2013,11-14532,3413,Sherwood E-ACT Academy
Nottinghamshire County Council,1111/1001,Children and Young People,CYP,Third Party Payments,EDA,16/12/2013,11-14533,69321,Foxwood Academy
Nottinghamshire County Council,1111/1001,Children and Young People,CYP,Third Party Payments,EDA,16/12/2013,11-14534,18209,Sutton Community Academy
Nottinghamshire County Council,1111/1001,Children and Young People,CYP,Third Party Payments,EDA,16/12/2013,11-14535,566,Sutton Community Academy
Nottinghamshire County Council,1111/1001,Children and Young People,CYP,Third Party Payments,EDA,16/12/2013,11-14536,11584,The Newark Academy
Nottinghamshire County Council,1111/1001,Children and Young People,CYP,Third Party Payments,EDA,16/12/2013,11-14537,1363,East Leake Academy
Nottinghamshire County Council,1111/1001,Children and Young People,CYP,Third Party Payments,EDA,16/12/2013,11-14538,3522,The Bramcote School
Nottinghamshire County Council,1111/1001,Children and Young People,CYP,Third Party Payments,EDA,16/12/2013,11-14539,887,George Spencer Academy
Nottinghamshire County Council,1111/1001,Children and Young People,CYP,Third Party Payments,EDA,16/12/2013,11-14540,740,Redhill Academy
Nottinghamshire County Council,1111/1001,Children and Young People,CYP,Third Party Payments,EDA,16/12/2013,11-14541,3147,Alderman White School
Nottinghamshire County Council,1111/1001,Children and Young People,CYP,Third Party Payments,EDA,16/12/2013,11-14542,861,Alderman White School
Nottinghamshire County Council,1111/1001,Children and Young People,CYP,Third Party Payments,EDA,16/12/2013,11-14543,611,Quarrydale Academy
Nottinghamshire County Council,1111/1001,Children and Young People,CYP,Third Party Payments,EDA,16/12/2013,11-14544,544,Quarrydale Academy
Nottinghamshire County Council,1111/1001,Children and Young People,CYP,Third Party Payments,EFA,20/12/2013,11-14596,3465,Leeds Metropolitan University
Nottinghamshire County Council,1111/1001,Children and Young People,CYP,Third Party Payments,EFA,20/12/2013,11-14610,900,Wheelbase Motor Project
Nottinghamshire County Council,1111/1001,Children and Young People,CYP,Third Party Payments,EFA,23/12/2013,11-14632,705,Real United Football Club
Nottinghamshire County Council,1111/1001,Children and Young People,CYP,Third Party Payments,EFA,31/12/2013,11-14660,3412.5,Total Care Matters Ltd
Nottinghamshire County Council,1111/1001,Children and Young People,CYP,Third Party Payments,EFA,31/12/2013,11-14661,3412.5,Total Care Matters Ltd
Nottinghamshire County Council,1111/1001,Children and Young People,CYP,Third Party Payments,EFA,31/12/2013,11-14662,1157,First Class Tailored Solutions Ltd
Nottinghamshire County Council,1111/1001,Children and Young People,CYP,Third Party Payments,EFA,31/12/2013,11-14663,962,First Class Tailored Solutions Ltd
Nottinghamshire County Council,1111/1001,Children and Young People,CYP,Third Party Payments,EFA,31/12/2013,11-14666,555,First Class Tailored Solutions Ltd
Nottinghamshire County Council,1111/1001,Children and Young People,CYP,Third Party Payments,EGA,02/12/2013,11-14493,1155074.33,Nottinghamshire Healthcare Nhs Trus
Nottinghamshire County Council,1111/1001,Children and Young People,CYP,Third Party Payments,EGA,03/12/2013,11-10014,1145.25,T Jackson - Childminder
Nottinghamshire County Council,1111/1001,Children and Young People,CYP,Third Party Payments,EGA,03/12/2013,11-10015,1068.9,Quinton Day Nurseries T/A Honey Bee
Nottinghamshire County Council,1111/1001,Children and Young People,CYP,Third Party Payments,EGA,03/12/2013,11-10016,791.7,R Redmile (Childminder)
Nottinghamshire County Council,1111/1001,Children and Young People,CYP,Third Party Payments,EGA,03/12/2013,11-10017,687.15,Clowns Children Centre
Nottinghamshire County Council,1111/1001,Children and Young People,CYP,Third Party Payments,EGA,03/12/2013,11-10018,610.8,Pre School Learning Alliance
Nottinghamshire County Council,1111/1001,Children and Young People,CYP,Third Party Payments,EGA,04/12/2013,11-10121,962.01,C Goodyear (Childminder)
Nottinghamshire County Council,1111/1001,Children and Young People,CYP,Third Party Payments,EGA,04/12/2013,11-10122,791.7,Pre School Learning Alliance
Nottinghamshire County Council,1111/1001,Children and Young People,CYP,Third Party Payments,EGA,04/12/2013,11-10123,1068.9,Appleton Day Nursery
Nottinghamshire County Council,1111/1001,Children and Young People,CYP,Third Party Payments,EGA,04/12/2013,11-10124,1068.9,Mattersey Playgroup
Nottinghamshire County Council,1111/1001,Children and Young People,CYP,Third Party Payments,EGA,04/12/2013,11-10125,1145.25,Beeston Nursery
Nottinghamshire County Council,1111/1001,Children and Young People,CYP,Third Party Payments,EGA,12/12/2013,11-10558,540.16,Early Learners Centre Day Nursery
Nottinghamshire County Council,1111/1001,Children and Young People,CYP,Third Party Payments,EGA,12/12/2013,11-10559,518.64,Cherubs Childrens Centre Pleasley
Nottinghamshire County Council,1111/1001,Children and Young People,CYP,Third Party Payments,EGA,12/12/2013,11-10568,540.16,Jelly Totz Day Nursery
Nottinghamshire County Council,1111/1001,Children and Young People,CYP,Third Party Payments,EGA,18/12/2013,11-14556,1662.91,S Cowen
Nottinghamshire County Council,1111/1001,Children and Young People,CYP,Third Party Payments,EGA,19/12/2013,11-14570,3008.78,Sunbeam Fostering Agency Ltd
Nottinghamshire County Council,1111/1001,Children and Young People,CYP,Third Party Payments,EGA,19/12/2013,11-14571,17420,East Midlands Care Matters
Nottinghamshire County Council,1111/1001,Children and Young People,CYP,Third Party Payments,EGA,19/12/2013,11-14574,7860.57,Sunbeam Fostering Agency Ltd
Nottinghamshire County Council,1111/1001,Children and Young People,CYP,Third Party Payments,EGA,19/12/2013,11-14575,98260.08,The National Fostering Agency
Nottinghamshire County Council,1111/1001,Children and Young People,CYP,Third Party Payments,EGA,20/12/2013,11-14602,3912.64,By The Bridge
Nottinghamshire County Council,1111/1001,Children and Young People,CYP,Third Party Payments,EGA,20/12/2013,11-14603,4295.71,By The Bridge
Nottinghamshire County Council,1111/1001,Children and Young People,CYP,Third Party Payments,EGA,20/12/2013,11-14604,3428.7,Eden Foster Care Ltd
Nottinghamshire County Council,1111/1001,Children and Young People,CYP,Third Party Payments,EGA,20/12/2013,11-14605,3408.77,Team Fostering
Nottinghamshire County Council,1111/1001,Children and Young People,CYP,Third Party Payments,EGA,20/12/2013,11-14615,3008.1,Sunbeam Fostering Agency Ltd
Nottinghamshire County Council,1111/1001,Children and Young People,CYP,Third Party Payments,EGA,20/12/2013,11-14616,3109.07,Sunbeam Fostering Agency Ltd
Nottinghamshire County Council,1111/1001,Children and Young People,CYP,Third Party Payments,EGA,20/12/2013,11-14617,3408.9,Team Fostering
Nottinghamshire County Council,1111/1001,Children and Young People,CYP,Third Party Payments,EGA,20/12/2013,11-14618,4295.71,By The Bridge
Nottinghamshire County Council,1111/1001,Children and Young People,CYP,Third Party Payments,EGA,20/12/2013,11-14619,3542.99,Eden Foster Care Ltd
Nottinghamshire County Council,1111/1001,Children and Young People,CYP,Third Party Payments,EGA,23/12/2013,11-14627,760,Crossroads Care East Midlands
Nottinghamshire County Council,1111/1001,Children and Young People,CYP,Third Party Payments,EGA,27/12/2013,11-14655,2911.07,Sunbeam Fostering Agency Ltd
Nottinghamshire County Council,1111/1001,Children and Young People,CYP,Third Party Payments,EGA,27/12/2013,11-14656,3008.78,Sunbeam Fostering Agency Ltd
Nottinghamshire County Council,1111/1001,Children and Young People,CYP,Third Party Payments,EGA,30/12/2013,11-11146,16836.82,Wishing Well Day Nursery
Nottinghamshire County Council,1111/1001,Children and Young People,CYP,Third Party Payments,EGA,30/12/2013,11-11147,2351.35,Windmills Pre-School Playgroup
Nottinghamshire County Council,1111/1001,Children and Young People,CYP,Third Party Payments,EGA,30/12/2013,11-11148,26924.4,Westdale Pre-School
Nottinghamshire County Council,1111/1001,Children and Young People,CYP,Third Party Payments,EGA,30/12/2013,11-11149,8781.27,Wellin Lane Playgroup
Nottinghamshire County Council,1111/1001,Children and Young People,CYP,Third Party Payments,EGA,30/12/2013,11-11150,9492.48,Watnall Pre-School Playgroup
Nottinghamshire County Council,1111/1001,Children and Young People,CYP,Third Party Payments,EGA,30/12/2013,11-11151,12453.44,Tollerton Playgroup
Nottinghamshire County Council,1111/1001,Children and Young People,CYP,Third Party Payments,EGA,30/12/2013,11-11152,4789.79,Toddlers University (Bee)
Nottinghamshire County Council,1111/1001,Children and Young People,CYP,Third Party Payments,EGA,30/12/2013,11-11153,2090.09,Tiny Talkers Day Nursery
Nottinghamshire County Council,1111/1001,Children and Young People,CYP,Third Party Payments,EGA,30/12/2013,11-11154,1306.31,The West Bridgford Day Nursery
Nottinghamshire County Council,1111/1001,Children and Young People,CYP,Third Party Payments,EGA,30/12/2013,11-11155,10798.79,The Secret Garden Private Day Nurse
Nottinghamshire County Council,1111/1001,Children and Young People,CYP,Third Party Payments,EGA,30/12/2013,11-11156,5225.22,The Grange Nursery Ltd
Nottinghamshire County Council,1111/1001,Children and Young People,CYP,Third Party Payments,EGA,30/12/2013,11-11157,11756.75,Sutton Centre Under 5'S Playgroup
Nottinghamshire County Council,1111/1001,Children and Young People,CYP,Third Party Payments,EGA,30/12/2013,11-11158,1306.31,Sunbeams Pre-School
Nottinghamshire County Council,1111/1001,Children and Young People,CYP,Third Party Payments,EGA,30/12/2013,11-11159,14021.7,Shaping Futures Day Nursery
Nottinghamshire County Council,1111/1001,Children and Young People,CYP,Third Party Payments,EGA,30/12/2013,11-11160,1772.28,Shaping Futures Day Nursery
Nottinghamshire County Council,1111/1001,Children and Young People,CYP,Third Party Payments,EGA,30/12/2013,11-11161,14804.79,Scottswood Pdn Ltd
Nottinghamshire County Council,1111/1001,Children and Young People,CYP,Third Party Payments,EGA,30/12/2013,11-11162,8273.27,Saville House School
Nottinghamshire County Council,1111/1001,Children and Young People,CYP,Third Party Payments,EGA,30/12/2013,11-11163,1741.74,Catherine Sansone
Nottinghamshire County Council,1111/1001,Children and Young People,CYP,Third Party Payments,EGA,30/12/2013,11-11164,6966.96,Salterford House School
Nottinghamshire County Council,1111/1001,Children and Young People,CYP,Third Party Payments,EGA,30/12/2013,11-11165,12801.79,Scotts Wood Private Day Nursery
Nottinghamshire County Council,1111/1001,Children and Young People,CYP,Third Party Payments,EGA,30/12/2013,11-11166,9797.29,Wellow House School
Nottinghamshire County Council,1111/1001,Children and Young People,CYP,Third Party Payments,EGA,30/12/2013,11-11167,15240.23,Papermoon Day Nursery
Nottinghamshire County Council,1111/1001,Children and Young People,CYP,Third Party Payments,EGA,30/12/2013,11-11168,22512.11,Papermoon Day Nursery
Nottinghamshire County Council,1111/1001,Children and Young People,CYP,Third Party Payments,EGA,30/12/2013,11-11169,9840.83,Plumtree School
Nottinghamshire County Council,1111/1001,Children and Young People,CYP,Third Party Payments,EGA,30/12/2013,11-11170,12649.56,Alphabet House Day Nursery
Nottinghamshire County Council,1111/1001,Children and Young People,CYP,Third Party Payments,EGA,30/12/2013,11-11171,1023.33,Pre School Learning Alliance
Nottinghamshire County Council,1111/1001,Children and Young People,CYP,Third Party Payments,EGA,30/12/2013,11-11172,18114.71,Alphabet House Day Nursery Worksop
Nottinghamshire County Council,1111/1001,Children and Young People,CYP,Third Party Payments,EGA,30/12/2013,11-11173,7141.37,Appleton Day Nursery
Nottinghamshire County Council,1111/1001,Children and Young People,CYP,Third Party Payments,EGA,30/12/2013,11-11174,18963.25,Pre School Learning Alliance
Nottinghamshire County Council,1111/1001,Children and Young People,CYP,Third Party Payments,EGA,30/12/2013,11-11175,10305.3,Ravenshead Pre-School Playgroup
Nottinghamshire County Council,1111/1001,Children and Young People,CYP,Third Party Payments,EGA,30/12/2013,11-11176,8447.44,Prebend Pre-School Playgroup
Nottinghamshire County Council,1111/1001,Children and Young People,CYP,Third Party Payments,EGA,30/12/2013,11-11178,22926.06,Treetops Nurseries Ltd
Nottinghamshire County Council,1111/1001,Children and Young People,CYP,Third Party Payments,EGA,30/12/2013,11-11179,22420.86,Balderton Pre-School
Nottinghamshire County Council,1111/1001,Children and Young People,CYP,Third Party Payments,EGA,30/12/2013,11-11181,11234.45,Balderton Village Day Nursery
Nottinghamshire County Council,1111/1001,Children and Young People,CYP,Third Party Payments,EGA,30/12/2013,11-11182,4376.3,Young Rascals Day Nursery
Nottinghamshire County Council,1111/1001,Children and Young People,CYP,Third Party Payments,EGA,30/12/2013,11-11183,16698.72,Bircotes Pre-School
Nottinghamshire County Council,1111/1001,Children and Young People,CYP,Third Party Payments,EGA,30/12/2013,11-11184,8099.09,Blyth Pre-School Playgroup
Nottinghamshire County Council,1111/1001,Children and Young People,CYP,Third Party Payments,EGA,30/12/2013,11-11185,12101.51,Woodborough Village Pre School
Nottinghamshire County Council,1111/1001,Children and Young People,CYP,Third Party Payments,EGA,30/12/2013,11-11186,4580.31,Bramley Pips Nursery Ltd
Nottinghamshire County Council,1111/1001,Children and Young People,CYP,Third Party Payments,EGA,30/12/2013,11-11187,13315.76,Willow Pre-School Playgroup
Nottinghamshire County Council,1111/1001,Children and Young People,CYP,Third Party Payments,EGA,30/12/2013,11-11188,1175.79,C Brett Childminding
Nottinghamshire County Council,1111/1001,Children and Young People,CYP,Third Party Payments,EGA,30/12/2013,11-11189,24014.3,Whitehouse Day Nursery
Nottinghamshire County Council,1111/1001,Children and Young People,CYP,Third Party Payments,EGA,30/12/2013,11-11190,1175.79,L G Whitchurch
Nottinghamshire County Council,1111/1001,Children and Young People,CYP,Third Party Payments,EGA,30/12/2013,11-11191,9296.6,Bright Sparks Day Nursery
Nottinghamshire County Council,1111/1001,Children and Young People,CYP,Third Party Payments,EGA,30/12/2013,11-11192,8447.67,Bright Stars Childcare
Nottinghamshire County Council,1111/1001,Children and Young People,CYP,Third Party Payments,EGA,30/12/2013,11-11193,15530.52,Brookhill House Day Nursery
Nottinghamshire County Council,1111/1001,Children and Young People,CYP,Third Party Payments,EGA,30/12/2013,11-11194,15027.01,Buttercross Pre School
Nottinghamshire County Council,1111/1001,Children and Young People,CYP,Third Party Payments,EGA,30/12/2013,11-11195,9739.35,Butterflies Nursery (West Notts Col
Nottinghamshire County Council,1111/1001,Children and Young People,CYP,Third Party Payments,EGA,30/12/2013,11-11196,15785.39,Carlton & Gedling Day Nursery
Nottinghamshire County Council,1111/1001,Children and Young People,CYP,Third Party Payments,EGA,30/12/2013,11-11406,12388.53,Cherubs Childcare Centre (Mansfield
Nottinghamshire County Council,1111/1001,Children and Young People,CYP,Third Party Payments,EGA,30/12/2013,11-11523,9020.94,Cherubs Childrens Centre Pleasley
Nottinghamshire County Council,1111/1001,Children and Young People,CYP,Third Party Payments,EGA,30/12/2013,11-11650,8853.85,Children 1st @ Breedon House
Nottinghamshire County Council,1111/1001,Children and Young People,CYP,Third Party Payments,EGA,30/12/2013,11-11849,11060.05,Breedon House Nurseries Ltd
Nottinghamshire County Council,1111/1001,Children and Young People,CYP,Third Party Payments,EGA,30/12/2013,11-12052,26866.46,Breedon House Nurseries Ltd
Nottinghamshire County Council,1111/1001,Children and Young People,CYP,Third Party Payments,EGA,30/12/2013,11-14659,5739.33,Treehouse Care Fostering Solutions
Nottinghamshire County Council,1111/1001,Children and Young People,CYP,Third Party Payments,EGA,31/12/2013,11-14490,17417.4,Carnarvon Pre-School
Nottinghamshire County Council,1111/1001,Children and Young People,CYP,Support Services,HAA,10/12/2013,11-10343,3003.41,Sharpes Of Nottingham
Nottinghamshire County Council,1111/1001,Children and Young People,CYP,Support Services,HAA,10/12/2013,11-10344,3223.71,Sharpes Of Nottingham
Nottinghamshire County Council,1111/1001,Children and Young People,CYP,Support Services,HAA,10/12/2013,11-10345,2851.61,Sharpes Of Nottingham
Nottinghamshire County Council,1111/1001,Children and Young People,CYP,Support Services,HAA,10/12/2013,11-10346,3039.36,Sharpes Of Nottingham
Nottinghamshire County Council,1111/1001,Children and Young People,CYP,Support Services,HAA,10/12/2013,11-10350,3223.92,Sharpes Of Nottingham
Nottinghamshire County Council,1111/1001,Children and Young People,CYP,Support Services,HAA,10/12/2013,11-10351,2970.76,Sharpes Of Nottingham
Nottinghamshire County Council,1111/1001,Children and Young People,CYP,Support Services,HAA,10/12/2013,11-10352,3142.01,Sharpes Of Nottingham
Nottinghamshire County Council,1111/1001,Children and Young People,CYP,Support Services,HAA,10/12/2013,11-10353,3356.5,Sharpes Of Nottingham
Nottinghamshire County Council,1111/1001,Children and Young People,CYP,Support Services,HAA,10/12/2013,11-10354,2089.57,Sharpes Of Nottingham
Nottinghamshire County Council,1111/1001,Children and Young People,CYP,Support Services,HAA,10/12/2013,11-10355,3487.45,Sharpes Of Nottingham
Nottinghamshire County Council,1111/1001,Children and Young People,CYP,Support Services,HAA,10/12/2013,11-10372,15907.75,Redfern Travel
Nottinghamshire County Council,1111/1001,Children and Young People,CYP,Support Services,HAA,10/12/2013,11-10373,12067.57,Redfern Travel
Nottinghamshire County Council,1111/1001,Children and Young People,CYP,Support Services,HAA,10/12/2013,11-10374,3690.8,Redfern Travel
Nottinghamshire County Council,1111/1001,Children and Young People,CYP,Support Services,HAA,10/12/2013,11-10375,3390.25,Redfern Travel
Nottinghamshire County Council,1111/1001,Children and Young People,CYP,Support Services,HAA,10/12/2013,11-10376,2547.9,Redfern Travel
Nottinghamshire County Council,1111/1001,Children and Young People,CYP,Support Services,HAA,10/12/2013,11-10379,2079,Vale Travel
Nottinghamshire County Council,1111/1001,Children and Young People,CYP,Support Services,HAA,10/12/2013,11-10380,1365,SJW (Muskham) Ltd T/A Z Cars
Nottinghamshire County Council,1111/1001,Children and Young People,CYP,Support Services,HAA,10/12/2013,11-10381,950,SJW (Muskham) Ltd T/A Z Cars
Nottinghamshire County Council,1111/1001,Children and Young People,CYP,Support Services,HAA,10/12/2013,11-10391,2828,F & J Marriott T/A Unity Coaches
Nottinghamshire County Council,1111/1001,Children and Young People,CYP,Support Services,HAA,10/12/2013,11-10392,2828,F & J Marriott T/A Unity Coaches
Nottinghamshire County Council,1111/1001,Children and Young People,CYP,Support Services,HAA,10/12/2013,11-10393,1575,F & J Marriott T/A Unity Coaches
Nottinghamshire County Council,1111/1001,Children and Young People,CYP,Support Services,HAA,10/12/2013,11-10399,2472.78,Jb Tours Watnall Ltd
Nottinghamshire County Council,1111/1001,Children and Young People,CYP,Support Services,HAA,10/12/2013,11-10402,2320.03,Jb Tours Watnall Ltd
Nottinghamshire County Council,1111/1001,Children and Young People,CYP,Support Services,HAA,10/12/2013,11-10403,2452.64,Silverdale Tours Nottm Ltd
Nottinghamshire County Council,1111/1001,Children and Young People,CYP,Support Services,HAA,10/12/2013,11-10404,3033.75,Silverdale Tours Nottm Ltd
Nottinghamshire County Council,1111/1001,Children and Young People,CYP,Support Services,HAA,10/12/2013,11-10405,2803.88,Silverdale Tours Nottm Ltd
Nottinghamshire County Council,1111/1001,Children and Young People,CYP,Support Services,HAA,10/12/2013,11-10406,1822.74,Silverdale Tours Nottm Ltd
Nottinghamshire County Council,1111/1001,Children and Young People,CYP,Support Services,HAA,10/12/2013,11-10407,3133.45,Silverdale Tours Nottm Ltd
Nottinghamshire County Council,1111/1001,Children and Young People,CYP,Support Services,HAA,10/12/2013,11-10408,2841.29,Silverdale Tours Nottm Ltd
Nottinghamshire County Council,1111/1001,Children and Young People,CYP,Support Services,HAA,10/12/2013,11-10409,2791.44,Silverdale Tours Nottm Ltd
Nottinghamshire County Council,1111/1001,Children and Young People,CYP,Support Services,HAA,10/12/2013,11-10410,3135.61,Silverdale Tours Nottm Ltd
Nottinghamshire County Council,1111/1001,Children and Young People,CYP,Support Services,HAA,10/12/2013,11-10411,1558.45,Silverdale Tours Nottm Ltd
Nottinghamshire County Council,1111/1001,Children and Young People,CYP,Support Services,HAA,10/12/2013,11-10412,2211.75,Silverdale Tours Nottm Ltd
Nottinghamshire County Council,1111/1001,Children and Young People,CYP,Support Services,HAA,10/12/2013,11-10417,3942.64,Stagecoach Services Ltd
Nottinghamshire County Council,1111/1001,Children and Young People,CYP,Support Services,HAA,10/12/2013,11-10420,1263.74,Stagecoach Services Ltd
Nottinghamshire County Council,1111/1001,Children and Young People,CYP,Support Services,HAA,10/12/2013,11-10421,4853.89,Stagecoach Services Ltd
Nottinghamshire County Council,1111/1001,Children and Young People,CYP,Support Services,HAA,10/12/2013,11-10422,4783.09,Stagecoach Services Ltd
Nottinghamshire County Council,1111/1001,Children and Young People,CYP,Support Services,HAA,10/12/2013,11-10424,3075.45,Stagecoach Services Ltd
Nottinghamshire County Council,1111/1001,Children and Young People,CYP,Support Services,HAA,10/12/2013,11-10425,3213.42,Stagecoach Services Ltd
Nottinghamshire County Council,1111/1001,Children and Young People,CYP,Support Services,HAA,10/12/2013,11-10428,3337.07,Stagecoach Services Ltd
Nottinghamshire County Council,1111/1001,Children and Young People,CYP,Support Services,HAA,10/12/2013,11-10435,2314,Stagecoach Services Ltd
Nottinghamshire County Council,1111/1001,Children and Young People,CYP,Support Services,HAA,10/12/2013,11-10446,1980.51,Ashfield Travel
Nottinghamshire County Council,1111/1001,Children and Young People,CYP,Support Services,HAA,10/12/2013,11-10447,5704.2,Wilfreda Beehive
Nottinghamshire County Council,1111/1001,Children and Young People,CYP,Support Services,HAA,10/12/2013,11-10449,2199.78,Paul S Winson Coaches
Nottinghamshire County Council,1111/1001,Children and Young People,CYP,Support Services,HAA,10/12/2013,11-10451,5733.55,Paul S Winson Coaches
Nottinghamshire County Council,1111/1001,Children and Young People,CYP,Support Services,HAA,10/12/2013,11-10452,3413.02,Paul S Winson Coaches
Nottinghamshire County Council,1111/1001,Children and Young People,CYP,Support Services,HAA,10/12/2013,11-10453,806,Bassetlaw Action Centre
Nottinghamshire County Council,1111/1001,Children and Young People,CYP,Support Services,HAA,10/12/2013,11-10455,4725,Isle Coaches
Nottinghamshire County Council,1111/1001,Children and Young People,CYP,Support Services,HAA,12/12/2013,11-10616,3767.82,AOT Coaches
Nottinghamshire County Council,1111/1001,Children and Young People,CYP,Support Services,HAA,12/12/2013,11-10617,3063,AOT Coaches
Nottinghamshire County Council,1111/1001,Children and Young People,CYP,Support Services,HAA,12/12/2013,11-10618,3599.08,AOT Coaches
Nottinghamshire County Council,1111/1001,Children and Young People,CYP,Support Services,HAA,12/12/2013,11-10619,2741.55,AOT Coaches
Nottinghamshire County Council,1111/1001,Children and Young People,CYP,Support Services,HAA,12/12/2013,11-10620,2996.29,AOT Coaches
Nottinghamshire County Council,1111/1001,Children and Young People,CYP,Support Services,HAA,12/12/2013,11-10621,2591.15,AOT Coaches
Nottinghamshire County Council,1111/1001,Children and Young People,CYP,Support Services,HAA,12/12/2013,11-10622,2134.37,AOT Coaches
Nottinghamshire County Council,1111/1001,Children and Young People,CYP,Support Services,HAA,27/12/2013,11-11130,1377.15,Garys Coaches Ltd
Nottinghamshire County Council,1111/1001,Children and Young People,CYP,Support Services,HAA,27/12/2013,11-11131,1667.85,Garys Coaches Ltd
Nottinghamshire County Council,1111/1001,Children and Young People,CYP,Support Services,HAA,27/12/2013,11-11132,1305.46,Garys Coaches Ltd
Nottinghamshire County Council,1111/1001,Children and Young People,CYP,Support Services,HAA,27/12/2013,11-11133,1788.85,Garys Coaches Ltd
Nottinghamshire County Council,1111/1001,Children and Young People,CYP,Support Services,HAA,27/12/2013,11-11134,1414.65,Ashfield Travel
Nottinghamshire County Council,1111/1001,Children and Young People,CYP,Support Services,HAA,27/12/2013,11-11135,1900.5,C W Moxon Ltd
Nottinghamshire County Council,1111/1001,Children and Young People,CYP,Support Services,HAA,27/12/2013,11-11136,2108.7,C W Moxon Ltd
Nottinghamshire County Council,1111/1001,Children and Young People,CYP,Support Services,HAA,27/12/2013,11-11137,1397.05,C W Moxon Ltd
Nottinghamshire County Council,1111/1001,Children and Young People,CYP,Support Services,HAA,27/12/2013,11-11138,1806.05,C W Moxon Ltd
Nottinghamshire County Council,1111/1001,Children and Young People,CYP,Support Services,HAA,27/12/2013,11-11139,2762.4,C W Moxon Ltd
Nottinghamshire County Council,1111/1001,Children and Young People,CYP,Support Services,HAA,27/12/2013,11-11140,2558.1,C W Moxon Ltd
Nottinghamshire County Council,1111/1001,Adult Social Care and Health,ASCH,Transport Related,CAA,20/12/2013,11-14593,750,Mexa Thermal Systems Ltd
Nottinghamshire County Council,1111/1001,Adult Social Care and Health,ASCH,Transport Related,CAA,20/12/2013,11-14594,735,Mexa Thermal Systems Ltd
Nottinghamshire County Council,1111/1001,Adult Social Care and Health,ASCH,Transport Related,CBA,10/12/2013,11-10359,669.4,A Line Taxis
Nottinghamshire County Council,1111/1001,Adult Social Care and Health,ASCH,Transport Related,CBA,10/12/2013,11-10397,3344.31,F & J Marriott T/A Unity Coaches
Nottinghamshire County Council,1111/1001,Adult Social Care and Health,ASCH,Transport Related,CBA,10/12/2013,11-10398,3212.58,F & J Marriott T/A Unity Coaches
Nottinghamshire County Council,1111/1001,Adult Social Care and Health,ASCH,Transport Related,CBA,12/12/2013,11-10631,1785.09,Aj Travel
Nottinghamshire County Council,1111/1001,Adult Social Care and Health,ASCH,Transport Related,CCA,10/12/2013,11-10382,648.8,SJW (Muskham) Ltd T/A Z Cars
Nottinghamshire County Council,1111/1001,Adult Social Care and Health,ASCH,Transport Related,CCA,10/12/2013,11-10390,691.6,Shelleys Taxis Ltd
Nottinghamshire County Council,1111/1001,Adult Social Care and Health,ASCH,Transport Related,CCA,10/12/2013,11-10457,2000,T Selfe
Nottinghamshire County Council,1111/1001,Adult Social Care and Health,ASCH,Transport Related,CCA,12/12/2013,11-10605,2326.38,Sprays Transport Ltd
Nottinghamshire County Council,1111/1001,Adult Social Care and Health,ASCH,Transport Related,CCA,12/12/2013,11-10606,658.98,Sprays Transport Ltd
Nottinghamshire County Council,1111/1001,Adult Social Care and Health,ASCH,Transport Related,CCA,12/12/2013,11-10607,2189.46,Sprays Transport Ltd
Nottinghamshire County Council,1111/1001,Adult Social Care and Health,ASCH,Transport Related,CCA,27/12/2013,11-11111,648,Alpha Cars
Nottinghamshire County Council,1111/1001,Adult Social Care and Health,ASCH,Transport Related,CCA,27/12/2013,11-11129,2929.08,Sprays Transport Ltd
Nottinghamshire County Council,1111/1001,Adult Social Care and Health,ASCH,Supplies & Services,DAA,30/12/2013,11-11145,435891.8,British Red Cross Society
Nottinghamshire County Council,1111/1001,Adult Social Care and Health,ASCH,Supplies & Services,DBA,02/12/2013,11-10003,1203.62,Arnold Dairies Ltd
Nottinghamshire County Council,1111/1001,Adult Social Care and Health,ASCH,Supplies & Services,DBA,03/12/2013,11-10007,1004.46,Brake Bros Ltd
Nottinghamshire County Council,1111/1001,Adult Social Care and Health,ASCH,Supplies & Services,DBA,03/12/2013,11-10009,1309.78,Brake Bros Ltd
Nottinghamshire County Council,1111/1001,Adult Social Care and Health,ASCH,Supplies & Services,DBA,03/12/2013,11-10011,4045.39,Brake Bros Ltd
Nottinghamshire County Council,1111/1001,Adult Social Care and Health,ASCH,Supplies & Services,DBA,03/12/2013,11-10012,1655.11,Hallam Country Fresh Foods Ltd
Nottinghamshire County Council,1111/1001,Adult Social Care and Health,ASCH,Supplies & Services,DBA,11/12/2013,11-10466,2469.24,Brake Bros Ltd
Nottinghamshire County Council,1111/1001,Adult Social Care and Health,ASCH,Supplies & Services,DBA,11/12/2013,11-10468,1287.48,Brake Bros Ltd
Nottinghamshire County Council,1111/1001,Adult Social Care and Health,ASCH,Supplies & Services,DBA,11/12/2013,11-10470,2413.13,Brake Bros Ltd
Nottinghamshire County Council,1111/1001,Adult Social Care and Health,ASCH,Supplies & Services,DBA,11/12/2013,11-10471,1026.11,Brake Bros Ltd
Nottinghamshire County Council,1111/1001,Adult Social Care and Health,ASCH,Supplies & Services,DBA,18/12/2013,11-10841,4389.29,Brake Bros Ltd
Nottinghamshire County Council,1111/1001,Adult Social Care and Health,ASCH,Supplies & Services,DBA,18/12/2013,11-10843,1197,Brake Bros Ltd
Nottinghamshire County Council,1111/1001,Adult Social Care and Health,ASCH,Supplies & Services,DBA,18/12/2013,11-10844,1592.57,Hallam Country Fresh Foods Ltd
Nottinghamshire County Council,1111/1001,Adult Social Care and Health,ASCH,Supplies & Services,DBA,18/12/2013,11-10845,1482.29,Brake Bros Ltd
Nottinghamshire County Council,1111/1001,Adult Social Care and Health,ASCH,Supplies & Services,DBA,18/12/2013,11-10846,837.01,Brake Bros Ltd
Nottinghamshire County Council,1111/1001,Adult Social Care and Health,ASCH,Supplies & Services,DBA,18/12/2013,11-10850,1147,Arnold Dairies Ltd
Nottinghamshire County Council,1111/1001,Adult Social Care and Health,ASCH,Supplies & Services,DBA,27/12/2013,11-11084,5242.52,M Maloney Country Butchers & B Ltd
Nottinghamshire County Council,1111/1001,Adult Social Care and Health,ASCH,Supplies & Services,DBA,27/12/2013,11-11085,4914.15,M Maloney Country Butchers & B Ltd
Nottinghamshire County Council,1111/1001,Adult Social Care and Health,ASCH,Supplies & Services,DBA,27/12/2013,11-11086,5076.55,M Maloney Country Butchers & B Ltd
Nottinghamshire County Council,1111/1001,Adult Social Care and Health,ASCH,Supplies & Services,DBA,31/12/2013,11-14492,1108.41,Arnold Dairies Ltd
Nottinghamshire County Council,1111/1001,Adult Social Care and Health,ASCH,Supplies & Services,DCA,24/12/2013,11-14646,1632.2,Berendsen UK Ltd
Nottinghamshire County Council,1111/1001,Adult Social Care and Health,ASCH,Supplies & Services,DEA,20/12/2013,11-14608,736.08,Dawson Rentals Portable Cold Storag
Nottinghamshire County Council,1111/1001,Adult Social Care and Health,ASCH,Supplies & Services,DFA,20/12/2013,11-14597,18500,Tallon Monitoring Ltd
Nottinghamshire County Council,1111/1001,Adult Social Care and Health,ASCH,Supplies & Services,DKA,30/12/2013,11-11145,48031.19,British Red Cross Society
Nottinghamshire County Council,1111/1001,Adult Social Care and Health,ASCH,Third Party Payments,EBA,05/12/2013,11-10199,30497.63,Ashfield District Council
Nottinghamshire County Council,1111/1001,Adult Social Care and Health,ASCH,Third Party Payments,EBA,05/12/2013,11-10200,41398.33,Bassetlaw District Council
Nottinghamshire County Council,1111/1001,Adult Social Care and Health,ASCH,Third Party Payments,EBA,05/12/2013,11-10201,17166.15,Newark & Sherwood District Council
Nottinghamshire County Council,1111/1001,Adult Social Care and Health,ASCH,Third Party Payments,EBA,05/12/2013,11-10202,61614.12,Mansfield District Council
Nottinghamshire County Council,1111/1001,Adult Social Care and Health,ASCH,Third Party Payments,EBA,05/12/2013,11-10203,31696.31,Broxtowe Borough Council
Nottinghamshire County Council,1111/1001,Adult Social Care and Health,ASCH,Third Party Payments,EBA,05/12/2013,11-10204,1770.46,Nene Housing Society Limited
Nottinghamshire County Council,1111/1001,Adult Social Care and Health,ASCH,Third Party Payments,EBA,05/12/2013,11-10205,11767.74,Home Group Limited
Nottinghamshire County Council,1111/1001,Adult Social Care and Health,ASCH,Third Party Payments,EBA,05/12/2013,11-10207,973.08,East Midlands Housing
Nottinghamshire County Council,1111/1001,Adult Social Care and Health,ASCH,Third Party Payments,EBA,05/12/2013,11-10208,14080,Aspirations (Midlands) Ltd
Nottinghamshire County Council,1111/1001,Adult Social Care and Health,ASCH,Third Party Payments,EBA,05/12/2013,11-10209,38650.98,Nottinghamshire Womens Aid Ltd
Nottinghamshire County Council,1111/1001,Adult Social Care and Health,ASCH,Third Party Payments,EBA,05/12/2013,11-10210,10827.25,Jigsaw Mansfield Floating Support S
Nottinghamshire County Council,1111/1001,Adult Social Care and Health,ASCH,Third Party Payments,EBA,05/12/2013,11-10211,907.11,Longhurst Housing Ltd
Nottinghamshire County Council,1111/1001,Adult Social Care and Health,ASCH,Third Party Payments,EBA,05/12/2013,11-10212,1280,Advance Housing & Support Ltd
Nottinghamshire County Council,1111/1001,Adult Social Care and Health,ASCH,Third Party Payments,EBA,05/12/2013,11-10213,1644.84,De Montfort Housing Association
Nottinghamshire County Council,1111/1001,Adult Social Care and Health,ASCH,Third Party Payments,EBA,05/12/2013,11-10214,1080,Reach Housing Gloria Miller
Nottinghamshire County Council,1111/1001,Adult Social Care and Health,ASCH,Third Party Payments,EBA,05/12/2013,11-10215,5096,Metropolitan Support Trust
Nottinghamshire County Council,1111/1001,Adult Social Care and Health,ASCH,Third Party Payments,EBA,05/12/2013,11-10216,42135.56,Royal Society Mencap
Nottinghamshire County Council,1111/1001,Adult Social Care and Health,ASCH,Third Party Payments,EBA,05/12/2013,11-10217,1208.62,Nottingham City Homes
Nottinghamshire County Council,1111/1001,Adult Social Care and Health,ASCH,Third Party Payments,EBA,05/12/2013,11-10218,24765.39,Metropolitan Support Trust
Nottinghamshire County Council,1111/1001,Adult Social Care and Health,ASCH,Third Party Payments,EBA,05/12/2013,11-10220,96048.28,Eden Supported Living Ltd
Nottinghamshire County Council,1111/1001,Adult Social Care and Health,ASCH,Third Party Payments,EBA,05/12/2013,11-10221,1111.47,United Charities Of Abel Collin
Nottinghamshire County Council,1111/1001,Adult Social Care and Health,ASCH,Third Party Payments,EBA,05/12/2013,11-10222,28236.97,Women's Aid Integrated Services
Nottinghamshire County Council,1111/1001,Adult Social Care and Health,ASCH,Third Party Payments,EBA,05/12/2013,11-10223,2160,Oakdale Ozier Ltd
Nottinghamshire County Council,1111/1001,Adult Social Care and Health,ASCH,Third Party Payments,EBA,05/12/2013,11-10224,378448.54,Framework Housing Association
Nottinghamshire County Council,1111/1001,Adult Social Care and Health,ASCH,Third Party Payments,EBA,05/12/2013,11-10225,6015.45,Nottingham Community Housing
Nottinghamshire County Council,1111/1001,Adult Social Care and Health,ASCH,Third Party Payments,EBA,05/12/2013,11-10226,600,Fitzroy
Nottinghamshire County Council,1111/1001,Adult Social Care and Health,ASCH,Third Party Payments,EBA,05/12/2013,11-10227,16247.92,Lifeways Community Care Ltd
Nottinghamshire County Council,1111/1001,Adult Social Care and Health,ASCH,Third Party Payments,EBA,05/12/2013,11-10228,3647.4,ASRA Housing Association
Nottinghamshire County Council,1111/1001,Adult Social Care and Health,ASCH,Third Party Payments,EBA,05/12/2013,11-10229,4800,Voyage Ltd
Nottinghamshire County Council,1111/1001,Adult Social Care and Health,ASCH,Third Party Payments,EBA,05/12/2013,11-10230,1187.63,Housing 21
Nottinghamshire County Council,1111/1001,Adult Social Care and Health,ASCH,Third Party Payments,EBA,05/12/2013,11-10231,30036.56,Thera East Midlands
Nottinghamshire County Council,1111/1001,Adult Social Care and Health,ASCH,Third Party Payments,EBA,05/12/2013,11-10232,16282.86,Choice Support
Nottinghamshire County Council,1111/1001,Adult Social Care and Health,ASCH,Third Party Payments,EBA,05/12/2013,11-10233,12040,United Response
Nottinghamshire County Council,1111/1001,Adult Social Care and Health,ASCH,Third Party Payments,EBA,05/12/2013,11-10234,1840,Heritage Care
Nottinghamshire County Council,1111/1001,Adult Social Care and Health,ASCH,Third Party Payments,EBA,05/12/2013,11-10235,22505.13,Gedling Homes
Nottinghamshire County Council,1111/1001,Adult Social Care and Health,ASCH,Third Party Payments,EBA,05/12/2013,11-10236,6641.2,NCHA Ltd
Nottinghamshire County Council,1111/1001,Adult Social Care and Health,ASCH,Third Party Payments,ECA,09/12/2013,11-10259,1693.9,Four Seasons (Evedale) Ltd Re Charn
Nottinghamshire County Council,1111/1001,Adult Social Care and Health,ASCH,Third Party Payments,ECA,09/12/2013,11-10264,1615.48,Highfields Nursing Home
Nottinghamshire County Council,1111/1001,Adult Social Care and Health,ASCH,Third Party Payments,ECA,09/12/2013,11-10290,1835.06,Hallcroft Nursing Home
Nottinghamshire County Council,1111/1001,Adult Social Care and Health,ASCH,Third Party Payments,ECA,09/12/2013,11-10304,611.69,The Shires Care Centre
Nottinghamshire County Council,1111/1001,Adult Social Care and Health,ASCH,Third Party Payments,ECA,16/12/2013,11-10684,517.58,Ashcroft
Nottinghamshire County Council,1111/1001,Adult Social Care and Health,ASCH,Third Party Payments,ECA,16/12/2013,11-10698,1929.17,Wren Hall Nursing Home
Nottinghamshire County Council,1111/1001,Adult Social Care and Health,ASCH,Third Party Payments,ECA,16/12/2013,11-10706,548.95,Mansfield Manor Care Home
Nottinghamshire County Council,1111/1001,Adult Social Care and Health,ASCH,Third Party Payments,ECA,16/12/2013,11-10717,3074.12,Stanton Hall Nursing Home
Nottinghamshire County Council,1111/1001,Adult Social Care and Health,ASCH,Third Party Payments,ECA,18/12/2013,11-14567,78850,NHS Rushcliffe CCG
Nottinghamshire County Council,1111/1001,Adult Social Care and Health,ASCH,Third Party Payments,ECA,20/12/2013,11-10981,878.32,Countrywide Care Homes Ltd T/A Gate
Nottinghamshire County Council,1111/1001,Adult Social Care and Health,ASCH,Third Party Payments,ECA,20/12/2013,11-10983,878.32,Countrywide Care Homes Ltd T/A Gate
Nottinghamshire County Council,1111/1001,Adult Social Care and Health,ASCH,Third Party Payments,ECA,20/12/2013,11-10985,878.32,Countrywide Care Homes Ltd T/A Gate
Nottinghamshire County Council,1111/1001,Adult Social Care and Health,ASCH,Third Party Payments,ECA,20/12/2013,11-10986,1208.8,Countrywide Care Homes Ltd T/A Gate
Nottinghamshire County Council,1111/1001,Adult Social Care and Health,ASCH,Third Party Payments,ECA,20/12/2013,11-10989,878.32,Countrywide Care Homes Ltd T/A Gate
Nottinghamshire County Council,1111/1001,Adult Social Care and Health,ASCH,Third Party Payments,ECA,20/12/2013,11-10990,878.32,Countrywide Care Homes Ltd T/A Gate
Nottinghamshire County Council,1111/1001,Adult Social Care and Health,ASCH,Third Party Payments,ECA,20/12/2013,11-10991,878.32,Countrywide Care Homes Ltd T/A Gate
Nottinghamshire County Council,1111/1001,Adult Social Care and Health,ASCH,Third Party Payments,ECA,20/12/2013,11-10992,878.32,Countrywide Care Homes Ltd T/A Gate
Nottinghamshire County Council,1111/1001,Adult Social Care and Health,ASCH,Third Party Payments,ECA,20/12/2013,11-10994,878.32,Countrywide Care Homes Ltd T/A Gate
Nottinghamshire County Council,1111/1001,Adult Social Care and Health,ASCH,Third Party Payments,ECA,20/12/2013,11-10997,878.32,Countrywide Care Homes Ltd T/A Gate
Nottinghamshire County Council,1111/1001,Adult Social Care and Health,ASCH,Third Party Payments,ECA,20/12/2013,11-11000,878.32,Countrywide Care Homes Ltd T/A Gate
Nottinghamshire County Council,1111/1001,Adult Social Care and Health,ASCH,Third Party Payments,ECA,20/12/2013,11-11003,878.32,Countrywide Care Homes Ltd T/A Gate
Nottinghamshire County Council,1111/1001,Adult Social Care and Health,ASCH,Third Party Payments,ECA,20/12/2013,11-11004,878.32,Countrywide Care Homes Ltd T/A Gate
Nottinghamshire County Council,1111/1001,Adult Social Care and Health,ASCH,Third Party Payments,ECA,20/12/2013,11-11007,878.32,Countrywide Care Homes Ltd T/A Gate
Nottinghamshire County Council,1111/1001,Adult Social Care and Health,ASCH,Third Party Payments,ECA,20/12/2013,11-11008,878.32,Countrywide Care Homes Ltd T/A Gate
Nottinghamshire County Council,1111/1001,Adult Social Care and Health,ASCH,Third Party Payments,ECA,20/12/2013,11-11010,878.32,Countrywide Care Homes Ltd T/A Gate
Nottinghamshire County Council,1111/1001,Adult Social Care and Health,ASCH,Third Party Payments,ECA,20/12/2013,11-11012,878.32,Countrywide Care Homes Ltd T/A Gate
Nottinghamshire County Council,1111/1001,Adult Social Care and Health,ASCH,Third Party Payments,ECA,20/12/2013,11-11013,878.32,Countrywide Care Homes Ltd T/A Gate
Nottinghamshire County Council,1111/1001,Adult Social Care and Health,ASCH,Third Party Payments,ECA,20/12/2013,11-11014,878.32,Countrywide Care Homes Ltd T/A Gate
Nottinghamshire County Council,1111/1001,Adult Social Care and Health,ASCH,Third Party Payments,ECA,20/12/2013,11-11015,878.32,Countrywide Care Homes Ltd T/A Gate
Nottinghamshire County Council,1111/1001,Adult Social Care and Health,ASCH,Third Party Payments,ECA,20/12/2013,11-11016,878.32,Countrywide Care Homes Ltd T/A Gate
Nottinghamshire County Council,1111/1001,Adult Social Care and Health,ASCH,Third Party Payments,ECA,20/12/2013,11-11018,878.32,Countrywide Care Homes Ltd T/A Gate
Nottinghamshire County Council,1111/1001,Adult Social Care and Health,ASCH,Third Party Payments,ECA,20/12/2013,11-11020,878.32,Countrywide Care Homes Ltd T/A Gate
Nottinghamshire County Council,1111/1001,Adult Social Care and Health,ASCH,Third Party Payments,ECA,20/12/2013,11-11022,878.32,Countrywide Care Homes Ltd T/A Gate
Nottinghamshire County Council,1111/1001,Adult Social Care and Health,ASCH,Third Party Payments,ECA,20/12/2013,11-11024,1097.9,Wren Hall Nursing Home
Nottinghamshire County Council,1111/1001,Adult Social Care and Health,ASCH,Third Party Payments,ECA,20/12/2013,11-11030,925.37,Eton Park Nursing Home
Nottinghamshire County Council,1111/1001,Adult Social Care and Health,ASCH,Third Party Payments,ECA,30/12/2013,11-11209,878.32,Bramcote Hills Care Home
Nottinghamshire County Council,1111/1001,Adult Social Care and Health,ASCH,Third Party Payments,ECA,30/12/2013,11-11212,1615.48,Bramcote Hills Care Home
Nottinghamshire County Council,1111/1001,Adult Social Care and Health,ASCH,Third Party Payments,ECA,30/12/2013,11-11215,878.32,Bramcote Hills Care Home
Nottinghamshire County Council,1111/1001,Adult Social Care and Health,ASCH,Third Party Payments,ECA,30/12/2013,11-11218,878.32,Bramcote Hills Care Home
Nottinghamshire County Council,1111/1001,Adult Social Care and Health,ASCH,Third Party Payments,ECA,30/12/2013,11-11219,878.32,Bramcote Hills Care Home
Nottinghamshire County Council,1111/1001,Adult Social Care and Health,ASCH,Third Party Payments,ECA,30/12/2013,11-11322,737.16,Beauvale Nursing Home
Nottinghamshire County Council,1111/1001,Adult Social Care and Health,ASCH,Third Party Payments,ECA,30/12/2013,11-11349,658.74,Avalon Nursing Home
Nottinghamshire County Council,1111/1001,Adult Social Care and Health,ASCH,Third Party Payments,ECA,30/12/2013,11-11453,878.32,Oaks Care Centre
Nottinghamshire County Council,1111/1001,Adult Social Care and Health,ASCH,Third Party Payments,ECA,30/12/2013,11-11554,604.4,Howson Care Centre
Nottinghamshire County Council,1111/1001,Adult Social Care and Health,ASCH,Third Party Payments,ECA,30/12/2013,11-11556,604.4,Howson Care Centre
Nottinghamshire County Council,1111/1001,Adult Social Care and Health,ASCH,Third Party Payments,ECA,30/12/2013,11-11636,598.4,Kirkby Manor Care Home
Nottinghamshire County Council,1111/1001,Adult Social Care and Health,ASCH,Third Party Payments,ECA,30/12/2013,11-11674,1380.22,Stoneyford Christian Nursing Home
Nottinghamshire County Council,1111/1001,Adult Social Care and Health,ASCH,Third Party Payments,ECA,30/12/2013,11-11735,4611.18,Berry Hill Park
Nottinghamshire County Council,1111/1001,Adult Social Care and Health,ASCH,Third Party Payments,ECA,30/12/2013,11-11778,598.4,Countrywide Care Homes Ltd T/A Clum
Nottinghamshire County Council,1111/1001,Adult Social Care and Health,ASCH,Third Party Payments,ECA,30/12/2013,11-11782,598.4,Countrywide Care Homes Ltd T/A Clum
Nottinghamshire County Council,1111/1001,Adult Social Care and Health,ASCH,Third Party Payments,ECA,30/12/2013,11-11803,604.4,Landermeads Nursing Home
Nottinghamshire County Council,1111/1001,Adult Social Care and Health,ASCH,Third Party Payments,ECA,30/12/2013,11-11804,604.4,Landermeads Nursing Home
Nottinghamshire County Council,1111/1001,Adult Social Care and Health,ASCH,Third Party Payments,ECA,30/12/2013,11-11810,1270.43,Landermeads Nursing Home
Nottinghamshire County Council,1111/1001,Adult Social Care and Health,ASCH,Third Party Payments,ECA,30/12/2013,11-11813,1286.11,Landermeads Nursing Home
Nottinghamshire County Council,1111/1001,Adult Social Care and Health,ASCH,Third Party Payments,ECA,30/12/2013,11-11977,598.4,Ashley House Nursing Home
Nottinghamshire County Council,1111/1001,Adult Social Care and Health,ASCH,Third Party Payments,ECA,30/12/2013,11-11986,598.4,Ashley House Nursing Home
Nottinghamshire County Council,1111/1001,Adult Social Care and Health,ASCH,Third Party Payments,ECA,30/12/2013,11-11987,598.4,Ashley House Nursing Home
Nottinghamshire County Council,1111/1001,Adult Social Care and Health,ASCH,Third Party Payments,ECA,30/12/2013,11-11993,598.4,Ashley House Nursing Home
Nottinghamshire County Council,1111/1001,Adult Social Care and Health,ASCH,Third Party Payments,ECA,30/12/2013,11-12003,846.95,Aslockton Hall Nursing Home
Nottinghamshire County Council,1111/1001,Adult Social Care and Health,ASCH,Third Party Payments,ECA,30/12/2013,11-12166,604.4,Church Farm Nursing Home Ltd
Nottinghamshire County Council,1111/1001,Adult Social Care and Health,ASCH,Third Party Payments,ECA,30/12/2013,11-12179,604.4,Countrywide Care Homes Ltd T/A Gate
Nottinghamshire County Council,1111/1001,Adult Social Care and Health,ASCH,Third Party Payments,ECA,30/12/2013,11-12200,737.16,Countrywide Care Homes Ltd T/A Gate
Nottinghamshire County Council,1111/1001,Adult Social Care and Health,ASCH,Third Party Payments,ECA,30/12/2013,11-12262,815.58,Wren Hall Nursing Home
Nottinghamshire County Council,1111/1001,Adult Social Care and Health,ASCH,Third Party Payments,ECA,30/12/2013,11-12413,598.4,Hawthorne Nursing Home
Nottinghamshire County Council,1111/1001,Adult Social Care and Health,ASCH,Third Party Payments,ECA,30/12/2013,11-12432,598.4,Hazel Grove Nursing Home
Nottinghamshire County Council,1111/1001,Adult Social Care and Health,ASCH,Third Party Payments,ECA,30/12/2013,11-12451,641.8,Newton House Nursing Home
Nottinghamshire County Council,1111/1001,Adult Social Care and Health,ASCH,Third Party Payments,ECA,30/12/2013,11-12460,604.4,Craegmoor Healthcare
Nottinghamshire County Council,1111/1001,Adult Social Care and Health,ASCH,Third Party Payments,ECA,30/12/2013,11-12486,604.4,Four Seasons Homes (Ilkeston) Limit
Nottinghamshire County Council,1111/1001,Adult Social Care and Health,ASCH,Third Party Payments,ECA,30/12/2013,11-12781,878.32,Mansfield Manor Care Home
Nottinghamshire County Council,1111/1001,Adult Social Care and Health,ASCH,Third Party Payments,ECA,30/12/2013,11-12849,988.11,Field House Nursing Home
Nottinghamshire County Council,1111/1001,Adult Social Care and Health,ASCH,Third Party Payments,ECA,30/12/2013,11-12892,5092.57,The Firs
Nottinghamshire County Council,1111/1001,Adult Social Care and Health,ASCH,Third Party Payments,ECA,30/12/2013,11-12915,598.4,Lowmoor Nursing Home
Nottinghamshire County Council,1111/1001,Adult Social Care and Health,ASCH,Third Party Payments,ECA,30/12/2013,11-12925,598.4,Lowmoor Nursing Home
Nottinghamshire County Council,1111/1001,Adult Social Care and Health,ASCH,Third Party Payments,ECA,30/12/2013,11-13091,1599.8,Broadgate Nursing Home
Nottinghamshire County Council,1111/1001,Adult Social Care and Health,ASCH,Third Party Payments,ECA,30/12/2013,11-13092,598.4,Broadgate Nursing Home
Nottinghamshire County Council,1111/1001,Adult Social Care and Health,ASCH,Third Party Payments,ECA,30/12/2013,11-13099,1395.9,Byars Nursing Home
Nottinghamshire County Council,1111/1001,Adult Social Care and Health,ASCH,Third Party Payments,ECA,30/12/2013,11-13277,2180.12,Lound Hall Nursing Home
Nottinghamshire County Council,1111/1001,Adult Social Care and Health,ASCH,Third Party Payments,ECA,30/12/2013,11-13377,598.4,Cherry Holt Care Home
Nottinghamshire County Council,1111/1001,Adult Social Care and Health,ASCH,Third Party Payments,ECA,30/12/2013,11-13434,598.4,Stoke House Nursing Home
Nottinghamshire County Council,1111/1001,Adult Social Care and Health,ASCH,Third Party Payments,ECA,30/12/2013,11-13640,598.4,Carlton House Nursing Home
Nottinghamshire County Council,1111/1001,Adult Social Care and Health,ASCH,Third Party Payments,ECA,30/12/2013,11-13665,604.4,Hill House Care Home
Nottinghamshire County Council,1111/1001,Adult Social Care and Health,ASCH,Third Party Payments,ECA,30/12/2013,11-13721,598.4,Boughton Manor Nursing Homes Limite
Nottinghamshire County Council,1111/1001,Adult Social Care and Health,ASCH,Third Party Payments,ECA,30/12/2013,11-13926,604.4,Challenge House
Nottinghamshire County Council,1111/1001,Adult Social Care and Health,ASCH,Third Party Payments,ECA,30/12/2013,11-13928,604.4,Challenge House
Nottinghamshire County Council,1111/1001,Adult Social Care and Health,ASCH,Third Party Payments,ECA,30/12/2013,11-13929,604.4,Challenge House
Nottinghamshire County Council,1111/1001,Adult Social Care and Health,ASCH,Third Party Payments,ECA,30/12/2013,11-13935,737.16,Parkside Care Home
Nottinghamshire County Council,1111/1001,Adult Social Care and Health,ASCH,Third Party Payments,ECA,30/12/2013,11-14366,737.16,Jubilee Court Nursing Home
Nottinghamshire County Council,1111/1001,Adult Social Care and Health,ASCH,Third Party Payments,ECA,30/12/2013,11-14369,611.69,Jubilee Court Nursing Home
Nottinghamshire County Council,1111/1001,Adult Social Care and Health,ASCH,Third Party Payments,ECA,30/12/2013,11-14440,2744.75,European Care & Lifestyles (uk) Ltd
Nottinghamshire County Council,1111/1001,Adult Social Care and Health,ASCH,Third Party Payments,ECA,30/12/2013,11-14658,108300,NHS Nottingham North and East CCG
Nottinghamshire County Council,1111/1001,Adult Social Care and Health,ASCH,Third Party Payments,EGA,03/12/2013,11-10023,671.14,Ashley House Nursing Home
Nottinghamshire County Council,1111/1001,Adult Social Care and Health,ASCH,Third Party Payments,EGA,03/12/2013,11-10024,13371.43,Annesley Lodge
Nottinghamshire County Council,1111/1001,Adult Social Care and Health,ASCH,Third Party Payments,EGA,03/12/2013,11-10025,1203.43,Langwith Lodge
Nottinghamshire County Council,1111/1001,Adult Social Care and Health,ASCH,Third Party Payments,EGA,03/12/2013,11-10026,2360.43,Springfield Nursing Home
Nottinghamshire County Council,1111/1001,Adult Social Care and Health,ASCH,Third Party Payments,EGA,03/12/2013,11-10027,2550,Pathfinders Neurological Care Centr
Nottinghamshire County Council,1111/1001,Adult Social Care and Health,ASCH,Third Party Payments,EGA,03/12/2013,11-10028,1617,Alexandra Lodge
Nottinghamshire County Council,1111/1001,Adult Social Care and Health,ASCH,Third Party Payments,EGA,03/12/2013,11-10029,1617,Alexandra Lodge
Nottinghamshire County Council,1111/1001,Adult Social Care and Health,ASCH,Third Party Payments,EGA,03/12/2013,11-10030,1617,Alexandra Lodge
Nottinghamshire County Council,1111/1001,Adult Social Care and Health,ASCH,Third Party Payments,EGA,03/12/2013,11-10031,1205.19,The Firs Care Home
Nottinghamshire County Council,1111/1001,Adult Social Care and Health,ASCH,Third Party Payments,EGA,03/12/2013,11-10032,988,Maun View
Nottinghamshire County Council,1111/1001,Adult Social Care and Health,ASCH,Third Party Payments,EGA,03/12/2013,11-10033,93428.57,Pathway Care Solutions (little acre
Nottinghamshire County Council,1111/1001,Adult Social Care and Health,ASCH,Third Party Payments,EGA,03/12/2013,11-10034,7050.29,Eresby Hall (Lincs)
Nottinghamshire County Council,1111/1001,Adult Social Care and Health,ASCH,Third Party Payments,EGA,03/12/2013,11-10038,593.41,Hucknall Hope Lea Project
Nottinghamshire County Council,1111/1001,Adult Social Care and Health,ASCH,Third Party Payments,EGA,03/12/2013,11-10039,644.54,Headway Nottingham
Nottinghamshire County Council,1111/1001,Adult Social Care and Health,ASCH,Third Party Payments,EGA,03/12/2013,11-10040,1400,Aspirations (Midlands) Ltd
Nottinghamshire County Council,1111/1001,Adult Social Care and Health,ASCH,Third Party Payments,EGA,04/12/2013,11-10043,920,Nottingham City Council
Nottinghamshire County Council,1111/1001,Adult Social Care and Health,ASCH,Third Party Payments,EGA,04/12/2013,11-10044,920,Nottingham City Council
Nottinghamshire County Council,1111/1001,Adult Social Care and Health,ASCH,Third Party Payments,EGA,04/12/2013,11-10045,665.04,Nottinghamshire Healthcare Nhs Trus
Nottinghamshire County Council,1111/1001,Adult Social Care and Health,ASCH,Third Party Payments,EGA,04/12/2013,11-10046,522.24,Nottinghamshire Healthcare Nhs Trus
Nottinghamshire County Council,1111/1001,Adult Social Care and Health,ASCH,Third Party Payments,EGA,04/12/2013,11-10047,652.8,Nottinghamshire Healthcare Nhs Trus
Nottinghamshire County Council,1111/1001,Adult Social Care and Health,ASCH,Third Party Payments,EGA,04/12/2013,11-10048,652.8,Nottinghamshire Healthcare Nhs Trus
Nottinghamshire County Council,1111/1001,Adult Social Care and Health,ASCH,Third Party Payments,EGA,04/12/2013,11-10049,581.9,Nottinghamshire Healthcare Nhs Trus
Nottinghamshire County Council,1111/1001,Adult Social Care and Health,ASCH,Third Party Payments,EGA,04/12/2013,11-10050,665.04,Nottinghamshire Healthcare Nhs Trus
Nottinghamshire County Council,1111/1001,Adult Social Care and Health,ASCH,Third Party Payments,EGA,04/12/2013,11-10051,522.24,Nottinghamshire Healthcare Nhs Trus
Nottinghamshire County Council,1111/1001,Adult Social Care and Health,ASCH,Third Party Payments,EGA,04/12/2013,11-10052,652.8,Nottinghamshire Healthcare Nhs Trus
Nottinghamshire County Council,1111/1001,Adult Social Care and Health,ASCH,Third Party Payments,EGA,04/12/2013,11-10053,652.8,Nottinghamshire Healthcare Nhs Trus
Nottinghamshire County Council,1111/1001,Adult Social Care and Health,ASCH,Third Party Payments,EGA,04/12/2013,11-10054,581.9,Nottinghamshire Healthcare Nhs Trus
Nottinghamshire County Council,1111/1001,Adult Social Care and Health,ASCH,Third Party Payments,EGA,04/12/2013,11-10055,652.8,Nottinghamshire Healthcare Nhs Trus
Nottinghamshire County Council,1111/1001,Adult Social Care and Health,ASCH,Third Party Payments,EGA,04/12/2013,11-10056,581.9,Nottinghamshire Healthcare Nhs Trus
Nottinghamshire County Council,1111/1001,Adult Social Care and Health,ASCH,Third Party Payments,EGA,04/12/2013,11-10057,581.9,Nottinghamshire Healthcare Nhs Trus
Nottinghamshire County Council,1111/1001,Adult Social Care and Health,ASCH,Third Party Payments,EGA,04/12/2013,11-10058,587.52,Nottinghamshire Healthcare Nhs Trus
Nottinghamshire County Council,1111/1001,Adult Social Care and Health,ASCH,Third Party Payments,EGA,04/12/2013,11-10059,652.8,Nottinghamshire Healthcare Nhs Trus
Nottinghamshire County Council,1111/1001,Adult Social Care and Health,ASCH,Third Party Payments,EGA,04/12/2013,11-10060,581.9,Nottinghamshire Healthcare Nhs Trus
Nottinghamshire County Council,1111/1001,Adult Social Care and Health,ASCH,Third Party Payments,EGA,04/12/2013,11-10061,581.9,Nottinghamshire Healthcare Nhs Trus
Nottinghamshire County Council,1111/1001,Adult Social Care and Health,ASCH,Third Party Payments,EGA,04/12/2013,11-10062,587.52,Nottinghamshire Healthcare Nhs Trus
Nottinghamshire County Council,1111/1001,Adult Social Care and Health,ASCH,Third Party Payments,EGA,04/12/2013,11-10063,1264.5,Norsaca
Nottinghamshire County Council,1111/1001,Adult Social Care and Health,ASCH,Third Party Payments,EGA,04/12/2013,11-10064,832,Norsaca
Nottinghamshire County Council,1111/1001,Adult Social Care and Health,ASCH,Third Party Payments,EGA,04/12/2013,11-10065,838.6,Norsaca
Nottinghamshire County Council,1111/1001,Adult Social Care and Health,ASCH,Third Party Payments,EGA,04/12/2013,11-10066,810,Norsaca
Nottinghamshire County Council,1111/1001,Adult Social Care and Health,ASCH,Third Party Payments,EGA,04/12/2013,11-10067,758.7,Norsaca
Nottinghamshire County Council,1111/1001,Adult Social Care and Health,ASCH,Third Party Payments,EGA,04/12/2013,11-10068,1264.5,Norsaca
Nottinghamshire County Council,1111/1001,Adult Social Care and Health,ASCH,Third Party Payments,EGA,04/12/2013,11-10069,810,Norsaca
Nottinghamshire County Council,1111/1001,Adult Social Care and Health,ASCH,Third Party Payments,EGA,04/12/2013,11-10070,810,Norsaca
Nottinghamshire County Council,1111/1001,Adult Social Care and Health,ASCH,Third Party Payments,EGA,04/12/2013,11-10071,810,Norsaca
Nottinghamshire County Council,1111/1001,Adult Social Care and Health,ASCH,Third Party Payments,EGA,04/12/2013,11-10072,1264.5,Norsaca
Nottinghamshire County Council,1111/1001,Adult Social Care and Health,ASCH,Third Party Payments,EGA,04/12/2013,11-10073,810,Norsaca
Nottinghamshire County Council,1111/1001,Adult Social Care and Health,ASCH,Third Party Payments,EGA,04/12/2013,11-10074,810,Norsaca
Nottinghamshire County Council,1111/1001,Adult Social Care and Health,ASCH,Third Party Payments,EGA,04/12/2013,11-10075,810,Norsaca
Nottinghamshire County Council,1111/1001,Adult Social Care and Health,ASCH,Third Party Payments,EGA,04/12/2013,11-10076,648,Norsaca
Nottinghamshire County Council,1111/1001,Adult Social Care and Health,ASCH,Third Party Payments,EGA,04/12/2013,11-10077,810,Norsaca
Nottinghamshire County Council,1111/1001,Adult Social Care and Health,ASCH,Third Party Payments,EGA,04/12/2013,11-10078,810,Norsaca
Nottinghamshire County Council,1111/1001,Adult Social Care and Health,ASCH,Third Party Payments,EGA,04/12/2013,11-10079,810,Norsaca
Nottinghamshire County Council,1111/1001,Adult Social Care and Health,ASCH,Third Party Payments,EGA,04/12/2013,11-10080,810,Norsaca
Nottinghamshire County Council,1111/1001,Adult Social Care and Health,ASCH,Third Party Payments,EGA,04/12/2013,11-10081,1117.2,Norsaca
Nottinghamshire County Council,1111/1001,Adult Social Care and Health,ASCH,Third Party Payments,EGA,04/12/2013,11-10082,1011.6,Norsaca
Nottinghamshire County Council,1111/1001,Adult Social Care and Health,ASCH,Third Party Payments,EGA,04/12/2013,11-10083,829.8,Norsaca
Nottinghamshire County Council,1111/1001,Adult Social Care and Health,ASCH,Third Party Payments,EGA,04/12/2013,11-10084,810,Norsaca
Nottinghamshire County Council,1111/1001,Adult Social Care and Health,ASCH,Third Party Payments,EGA,04/12/2013,11-10085,1082.7,Norsaca
Nottinghamshire County Council,1111/1001,Adult Social Care and Health,ASCH,Third Party Payments,EGA,04/12/2013,11-10086,1200.5,Norsaca
Nottinghamshire County Council,1111/1001,Adult Social Care and Health,ASCH,Third Party Payments,EGA,04/12/2013,11-10087,810,Norsaca
Nottinghamshire County Council,1111/1001,Adult Social Care and Health,ASCH,Third Party Payments,EGA,04/12/2013,11-10088,1264.5,Norsaca
Nottinghamshire County Council,1111/1001,Adult Social Care and Health,ASCH,Third Party Payments,EGA,04/12/2013,11-10089,810,Norsaca
Nottinghamshire County Council,1111/1001,Adult Social Care and Health,ASCH,Third Party Payments,EGA,04/12/2013,11-10090,1082.7,Norsaca
Nottinghamshire County Council,1111/1001,Adult Social Care and Health,ASCH,Third Party Payments,EGA,04/12/2013,11-10091,1264.5,Norsaca
Nottinghamshire County Council,1111/1001,Adult Social Care and Health,ASCH,Third Party Payments,EGA,04/12/2013,11-10092,810,Norsaca
Nottinghamshire County Council,1111/1001,Adult Social Care and Health,ASCH,Third Party Payments,EGA,04/12/2013,11-10093,810,Norsaca
Nottinghamshire County Council,1111/1001,Adult Social Care and Health,ASCH,Third Party Payments,EGA,04/12/2013,11-10094,810,Norsaca
Nottinghamshire County Council,1111/1001,Adult Social Care and Health,ASCH,Third Party Payments,EGA,04/12/2013,11-10095,1264.5,Norsaca
Nottinghamshire County Council,1111/1001,Adult Social Care and Health,ASCH,Third Party Payments,EGA,04/12/2013,11-10096,810,Norsaca
Nottinghamshire County Council,1111/1001,Adult Social Care and Health,ASCH,Third Party Payments,EGA,04/12/2013,11-10097,1677.2,Norsaca
Nottinghamshire County Council,1111/1001,Adult Social Care and Health,ASCH,Third Party Payments,EGA,04/12/2013,11-10098,1264.5,Norsaca
Nottinghamshire County Council,1111/1001,Adult Social Care and Health,ASCH,Third Party Payments,EGA,04/12/2013,11-10099,1328.5,Norsaca
Nottinghamshire County Council,1111/1001,Adult Social Care and Health,ASCH,Third Party Payments,EGA,04/12/2013,11-10100,1328.5,Norsaca
Nottinghamshire County Council,1111/1001,Adult Social Care and Health,ASCH,Third Party Payments,EGA,04/12/2013,11-10101,810,Norsaca
Nottinghamshire County Council,1111/1001,Adult Social Care and Health,ASCH,Third Party Payments,EGA,04/12/2013,11-10102,810,Norsaca
Nottinghamshire County Council,1111/1001,Adult Social Care and Health,ASCH,Third Party Payments,EGA,04/12/2013,11-10103,810,Norsaca
Nottinghamshire County Council,1111/1001,Adult Social Care and Health,ASCH,Third Party Payments,EGA,04/12/2013,11-10104,1264.5,Norsaca
Nottinghamshire County Council,1111/1001,Adult Social Care and Health,ASCH,Third Party Payments,EGA,04/12/2013,11-10105,1264.5,Norsaca
Nottinghamshire County Council,1111/1001,Adult Social Care and Health,ASCH,Third Party Payments,EGA,04/12/2013,11-10106,810,Norsaca
Nottinghamshire County Council,1111/1001,Adult Social Care and Health,ASCH,Third Party Payments,EGA,04/12/2013,11-10107,1264.5,Norsaca
Nottinghamshire County Council,1111/1001,Adult Social Care and Health,ASCH,Third Party Payments,EGA,04/12/2013,11-10108,1011.6,Norsaca
Nottinghamshire County Council,1111/1001,Adult Social Care and Health,ASCH,Third Party Payments,EGA,04/12/2013,11-10109,810,Norsaca
Nottinghamshire County Council,1111/1001,Adult Social Care and Health,ASCH,Third Party Payments,EGA,04/12/2013,11-10110,648,Norsaca
Nottinghamshire County Council,1111/1001,Adult Social Care and Health,ASCH,Third Party Payments,EGA,04/12/2013,11-10111,810,Norsaca
Nottinghamshire County Council,1111/1001,Adult Social Care and Health,ASCH,Third Party Payments,EGA,04/12/2013,11-10112,810,Norsaca
Nottinghamshire County Council,1111/1001,Adult Social Care and Health,ASCH,Third Party Payments,EGA,04/12/2013,11-10113,1017.4,Norsaca
Nottinghamshire County Council,1111/1001,Adult Social Care and Health,ASCH,Third Party Payments,EGA,04/12/2013,11-10114,1264.5,Norsaca
Nottinghamshire County Council,1111/1001,Adult Social Care and Health,ASCH,Third Party Payments,EGA,04/12/2013,11-10115,1264.5,Norsaca
Nottinghamshire County Council,1111/1001,Adult Social Care and Health,ASCH,Third Party Payments,EGA,04/12/2013,11-10116,1264.5,Norsaca
Nottinghamshire County Council,1111/1001,Adult Social Care and Health,ASCH,Third Party Payments,EGA,04/12/2013,11-10117,522.24,Enable Housing Assoc Ltd
Nottinghamshire County Council,1111/1001,Adult Social Care and Health,ASCH,Third Party Payments,EGA,04/12/2013,11-10118,522.24,Enable Housing Assoc Ltd
Nottinghamshire County Council,1111/1001,Adult Social Care and Health,ASCH,Third Party Payments,EGA,05/12/2013,11-10128,2896.1,The Human Support Group
Nottinghamshire County Council,1111/1001,Adult Social Care and Health,ASCH,Third Party Payments,EGA,05/12/2013,11-10129,2802.04,Housing 21
Nottinghamshire County Council,1111/1001,Adult Social Care and Health,ASCH,Third Party Payments,EGA,05/12/2013,11-10130,3174.5,Direct Health (uk) Ltd
Nottinghamshire County Council,1111/1001,Adult Social Care and Health,ASCH,Third Party Payments,EGA,05/12/2013,11-10131,3142.2,Home Care Solution Ltd
Nottinghamshire County Council,1111/1001,Adult Social Care and Health,ASCH,Third Party Payments,EGA,05/12/2013,11-10132,5408.51,Mears Care Ltd
Nottinghamshire County Council,1111/1001,Adult Social Care and Health,ASCH,Third Party Payments,EGA,05/12/2013,11-10133,8643.45,Sterling Homecare Ltd
Nottinghamshire County Council,1111/1001,Adult Social Care and Health,ASCH,Third Party Payments,EGA,05/12/2013,11-10134,1322.18,North Notts Crossroads Care
Nottinghamshire County Council,1111/1001,Adult Social Care and Health,ASCH,Third Party Payments,EGA,05/12/2013,11-10135,1444.74,Crossroads Care East Midlands
Nottinghamshire County Council,1111/1001,Adult Social Care and Health,ASCH,Third Party Payments,EGA,05/12/2013,11-10136,1976.7,Housing 21
Nottinghamshire County Council,1111/1001,Adult Social Care and Health,ASCH,Third Party Payments,EGA,05/12/2013,11-10137,1460.58,Sterling Homecare Ltd
Nottinghamshire County Council,1111/1001,Adult Social Care and Health,ASCH,Third Party Payments,EGA,05/12/2013,11-10138,5757.06,Medico Nursing & Homecare
Nottinghamshire County Council,1111/1001,Adult Social Care and Health,ASCH,Third Party Payments,EGA,05/12/2013,11-10139,3404.28,Westminster Homecare Ltd
Nottinghamshire County Council,1111/1001,Adult Social Care and Health,ASCH,Third Party Payments,EGA,05/12/2013,11-10140,8194.96,Leda Homecare Ltd
Nottinghamshire County Council,1111/1001,Adult Social Care and Health,ASCH,Third Party Payments,EGA,05/12/2013,11-10141,1070.06,Medico Nursing & Homecare
Nottinghamshire County Council,1111/1001,Adult Social Care and Health,ASCH,Third Party Payments,EGA,05/12/2013,11-10142,2090.56,Medico Nursing & Homecare
Nottinghamshire County Council,1111/1001,Adult Social Care and Health,ASCH,Third Party Payments,EGA,05/12/2013,11-10143,11011.45,Leda Homecare Ltd
Nottinghamshire County Council,1111/1001,Adult Social Care and Health,ASCH,Third Party Payments,EGA,05/12/2013,11-10144,5068.8,North Notts Crossroads Care
Nottinghamshire County Council,1111/1001,Adult Social Care and Health,ASCH,Third Party Payments,EGA,05/12/2013,11-10145,785.11,Always There Homecare Ltd
Nottinghamshire County Council,1111/1001,Adult Social Care and Health,ASCH,Third Party Payments,EGA,05/12/2013,11-10146,1451.56,Mediline Nurses & Carers Ltd
Nottinghamshire County Council,1111/1001,Adult Social Care and Health,ASCH,Third Party Payments,EGA,05/12/2013,11-10147,7787.64,Priority Homecare Ltd
Nottinghamshire County Council,1111/1001,Adult Social Care and Health,ASCH,Third Party Payments,EGA,05/12/2013,11-10148,10226.18,Sterling Homecare Ltd
Nottinghamshire County Council,1111/1001,Adult Social Care and Health,ASCH,Third Party Payments,EGA,05/12/2013,11-10149,9496.95,Crossroads Care East Midlands
Nottinghamshire County Council,1111/1001,Adult Social Care and Health,ASCH,Third Party Payments,EGA,05/12/2013,11-10150,7268.63,Priority Homecare Ltd
Nottinghamshire County Council,1111/1001,Adult Social Care and Health,ASCH,Third Party Payments,EGA,05/12/2013,11-10151,7122.3,Calverton Supreme Home Care Ltd
Nottinghamshire County Council,1111/1001,Adult Social Care and Health,ASCH,Third Party Payments,EGA,05/12/2013,11-10152,1864.28,Premier Nursing Agency Ltd
Nottinghamshire County Council,1111/1001,Adult Social Care and Health,ASCH,Third Party Payments,EGA,05/12/2013,11-10153,8232.61,Care Uk Homecare Ltd
Nottinghamshire County Council,1111/1001,Adult Social Care and Health,ASCH,Third Party Payments,EGA,05/12/2013,11-10154,4324.52,Rainbow Care Services Ltd
Nottinghamshire County Council,1111/1001,Adult Social Care and Health,ASCH,Third Party Payments,EGA,05/12/2013,11-10155,2787.72,Mears Care Ltd
Nottinghamshire County Council,1111/1001,Adult Social Care and Health,ASCH,Third Party Payments,EGA,05/12/2013,11-10156,8855.94,Sterling Homecare Ltd
Nottinghamshire County Council,1111/1001,Adult Social Care and Health,ASCH,Third Party Payments,EGA,05/12/2013,11-10157,1565.94,Notts Homecare Ltd
Nottinghamshire County Council,1111/1001,Adult Social Care and Health,ASCH,Third Party Payments,EGA,05/12/2013,11-10158,1908.96,Housing 21
Nottinghamshire County Council,1111/1001,Adult Social Care and Health,ASCH,Third Party Payments,EGA,05/12/2013,11-10159,8179.55,Workwise Healthcare Ltd
Nottinghamshire County Council,1111/1001,Adult Social Care and Health,ASCH,Third Party Payments,EGA,05/12/2013,11-10160,1556.19,Westminster Homecare Ltd
Nottinghamshire County Council,1111/1001,Adult Social Care and Health,ASCH,Third Party Payments,EGA,05/12/2013,11-10161,9235.77,Hatzfeld Care Ltd
Nottinghamshire County Council,1111/1001,Adult Social Care and Health,ASCH,Third Party Payments,EGA,05/12/2013,11-10162,1653.31,Direct Health (uk) Ltd
Nottinghamshire County Council,1111/1001,Adult Social Care and Health,ASCH,Third Party Payments,EGA,05/12/2013,11-10163,1098.9,Always There Homecare Ltd
Nottinghamshire County Council,1111/1001,Adult Social Care and Health,ASCH,Third Party Payments,EGA,05/12/2013,11-10164,1522.78,Hatzfeld Care Ltd
Nottinghamshire County Council,1111/1001,Adult Social Care and Health,ASCH,Third Party Payments,EGA,05/12/2013,11-10165,2492.52,Priority Homecare Ltd
Nottinghamshire County Council,1111/1001,Adult Social Care and Health,ASCH,Third Party Payments,EGA,05/12/2013,11-10166,711.18,Leda Homecare Ltd
Nottinghamshire County Council,1111/1001,Adult Social Care and Health,ASCH,Third Party Payments,EGA,05/12/2013,11-10167,4802.53,Notts Homecare Ltd
Nottinghamshire County Council,1111/1001,Adult Social Care and Health,ASCH,Third Party Payments,EGA,05/12/2013,11-10168,8182.98,Sterling Homecare Ltd
Nottinghamshire County Council,1111/1001,Adult Social Care and Health,ASCH,Third Party Payments,EGA,05/12/2013,11-10169,1514.75,Crossroads Care East Midlands
Nottinghamshire County Council,1111/1001,Adult Social Care and Health,ASCH,Third Party Payments,EGA,05/12/2013,11-10170,698.04,Medico Nursing & Homecare
Nottinghamshire County Council,1111/1001,Adult Social Care and Health,ASCH,Third Party Payments,EGA,05/12/2013,11-10171,6667.71,Sterling Homecare Ltd
Nottinghamshire County Council,1111/1001,Adult Social Care and Health,ASCH,Third Party Payments,EGA,05/12/2013,11-10172,8472.38,North Notts Crossroads Care
Nottinghamshire County Council,1111/1001,Adult Social Care and Health,ASCH,Third Party Payments,EGA,05/12/2013,11-10173,1576.14,Sterling Homecare Ltd
Nottinghamshire County Council,1111/1001,Adult Social Care and Health,ASCH,Third Party Payments,EGA,05/12/2013,11-10174,11186.79,Mears Care Ltd
Nottinghamshire County Council,1111/1001,Adult Social Care and Health,ASCH,Third Party Payments,EGA,05/12/2013,11-10175,530.75,The Human Support Group
Nottinghamshire County Council,1111/1001,Adult Social Care and Health,ASCH,Third Party Payments,EGA,05/12/2013,11-10176,693.53,Premier Nursing Agency Ltd
Nottinghamshire County Council,1111/1001,Adult Social Care and Health,ASCH,Third Party Payments,EGA,05/12/2013,11-10177,541.51,Housing 21
Nottinghamshire County Council,1111/1001,Adult Social Care and Health,ASCH,Third Party Payments,EGA,05/12/2013,11-10178,11827.46,Care Uk Homecare Ltd
Nottinghamshire County Council,1111/1001,Adult Social Care and Health,ASCH,Third Party Payments,EGA,05/12/2013,11-10179,886.88,Always There Homecare Ltd
Nottinghamshire County Council,1111/1001,Adult Social Care and Health,ASCH,Third Party Payments,EGA,05/12/2013,11-10180,7817.78,Care Uk Homecare Ltd
Nottinghamshire County Council,1111/1001,Adult Social Care and Health,ASCH,Third Party Payments,EGA,05/12/2013,11-10181,13870.94,Direct Health (uk) Ltd
Nottinghamshire County Council,1111/1001,Adult Social Care and Health,ASCH,Third Party Payments,EGA,05/12/2013,11-10182,5752.61,Westminster Homecare Ltd
Nottinghamshire County Council,1111/1001,Adult Social Care and Health,ASCH,Third Party Payments,EGA,05/12/2013,11-10183,4475.65,Hatzfeld Care Ltd
Nottinghamshire County Council,1111/1001,Adult Social Care and Health,ASCH,Third Party Payments,EGA,05/12/2013,11-10184,6314.35,Workwise Healthcare Ltd
Nottinghamshire County Council,1111/1001,Adult Social Care and Health,ASCH,Third Party Payments,EGA,05/12/2013,11-10185,985.21,The Human Support Group
Nottinghamshire County Council,1111/1001,Adult Social Care and Health,ASCH,Third Party Payments,EGA,05/12/2013,11-10186,739.05,Medico Nursing & Homecare
Nottinghamshire County Council,1111/1001,Adult Social Care and Health,ASCH,Third Party Payments,EGA,05/12/2013,11-10187,18767.82,Direct Health (uk) Ltd
Nottinghamshire County Council,1111/1001,Adult Social Care and Health,ASCH,Third Party Payments,EGA,05/12/2013,11-10188,4379.28,Direct Health (uk) Ltd
Nottinghamshire County Council,1111/1001,Adult Social Care and Health,ASCH,Third Party Payments,EGA,05/12/2013,11-10189,1919.65,Hatzfeld Care Ltd
Nottinghamshire County Council,1111/1001,Adult Social Care and Health,ASCH,Third Party Payments,EGA,05/12/2013,11-10190,646.41,Mears Care Ltd
Nottinghamshire County Council,1111/1001,Adult Social Care and Health,ASCH,Third Party Payments,EGA,05/12/2013,11-10191,6980.41,Direct Health (uk) Ltd
Nottinghamshire County Council,1111/1001,Adult Social Care and Health,ASCH,Third Party Payments,EGA,05/12/2013,11-10192,3378.48,Priority Homecare Ltd
Nottinghamshire County Council,1111/1001,Adult Social Care and Health,ASCH,Third Party Payments,EGA,05/12/2013,11-10193,3898.44,Medico Nursing & Homecare
Nottinghamshire County Council,1111/1001,Adult Social Care and Health,ASCH,Third Party Payments,EGA,05/12/2013,11-10194,932.67,Amg Nursing & Care Services Ltd
Nottinghamshire County Council,1111/1001,Adult Social Care and Health,ASCH,Third Party Payments,EGA,05/12/2013,11-10195,1396.49,Home Care Solution Ltd
Nottinghamshire County Council,1111/1001,Adult Social Care and Health,ASCH,Third Party Payments,EGA,05/12/2013,11-10196,2809.04,Care Uk Homecare Ltd
Nottinghamshire County Council,1111/1001,Adult Social Care and Health,ASCH,Third Party Payments,EGA,05/12/2013,11-10197,2139.1,North Notts Crossroads Care
Nottinghamshire County Council,1111/1001,Adult Social Care and Health,ASCH,Third Party Payments,EGA,05/12/2013,11-10198,875.13,Housing 21
Nottinghamshire County Council,1111/1001,Adult Social Care and Health,ASCH,Third Party Payments,EGA,09/12/2013,11-10247,4908.24,Dovetail Carehome
Nottinghamshire County Council,1111/1001,Adult Social Care and Health,ASCH,Third Party Payments,EGA,09/12/2013,11-10248,3541.44,Dovetail Carehome
Nottinghamshire County Council,1111/1001,Adult Social Care and Health,ASCH,Third Party Payments,EGA,09/12/2013,11-10249,3674.32,Dovetail Carehome
Nottinghamshire County Council,1111/1001,Adult Social Care and Health,ASCH,Third Party Payments,EGA,09/12/2013,11-10250,3341.52,Dovetail Carehome
Nottinghamshire County Council,1111/1001,Adult Social Care and Health,ASCH,Third Party Payments,EGA,09/12/2013,11-10251,5138.28,Dovetail Carehome
Nottinghamshire County Council,1111/1001,Adult Social Care and Health,ASCH,Third Party Payments,EGA,09/12/2013,11-10252,6680.8,Station House Annex
Nottinghamshire County Council,1111/1001,Adult Social Care and Health,ASCH,Third Party Payments,EGA,09/12/2013,11-10253,820.86,Silverwood Care Home
Nottinghamshire County Council,1111/1001,Adult Social Care and Health,ASCH,Third Party Payments,EGA,09/12/2013,11-10254,1596,Spring Water Lodge
Nottinghamshire County Council,1111/1001,Adult Social Care and Health,ASCH,Third Party Payments,EGA,09/12/2013,11-10255,884,Parkland
Nottinghamshire County Council,1111/1001,Adult Social Care and Health,ASCH,Third Party Payments,EGA,09/12/2013,11-10256,884,Parkland
Nottinghamshire County Council,1111/1001,Adult Social Care and Health,ASCH,Third Party Payments,EGA,09/12/2013,11-10257,1768,Four Seasons (Evedale) Ltd Re Westw
Nottinghamshire County Council,1111/1001,Adult Social Care and Health,ASCH,Third Party Payments,EGA,09/12/2013,11-10258,1653,Charnwood House
Nottinghamshire County Council,1111/1001,Adult Social Care and Health,ASCH,Third Party Payments,EGA,09/12/2013,11-10259,6680.57,Four Seasons (Evedale) Ltd Re Charn
Nottinghamshire County Council,1111/1001,Adult Social Care and Health,ASCH,Third Party Payments,EGA,09/12/2013,11-10260,4615.71,Four Seasons (Evedale) Ltd Re Sycam
Nottinghamshire County Council,1111/1001,Adult Social Care and Health,ASCH,Third Party Payments,EGA,09/12/2013,11-10261,8170.71,The Willows Care Centre
Nottinghamshire County Council,1111/1001,Adult Social Care and Health,ASCH,Third Party Payments,EGA,09/12/2013,11-10262,2275.84,Benarty View Nursing Home
Nottinghamshire County Council,1111/1001,Adult Social Care and Health,ASCH,Third Party Payments,EGA,09/12/2013,11-10263,1040,Sutton Lodge Nursing Home
Nottinghamshire County Council,1111/1001,Adult Social Care and Health,ASCH,Third Party Payments,EGA,09/12/2013,11-10264,8431.29,Highfields Nursing Home
Nottinghamshire County Council,1111/1001,Adult Social Care and Health,ASCH,Third Party Payments,EGA,09/12/2013,11-10265,1326,Avondale Residential Care Home
Nottinghamshire County Council,1111/1001,Adult Social Care and Health,ASCH,Third Party Payments,EGA,09/12/2013,11-10266,537,Ashley House Nursing Home
Nottinghamshire County Council,1111/1001,Adult Social Care and Health,ASCH,Third Party Payments,EGA,09/12/2013,11-10267,2088,Forest Hill Nursing Home
Nottinghamshire County Council,1111/1001,Adult Social Care and Health,ASCH,Third Party Payments,EGA,09/12/2013,11-10268,7688.57,Burkitt Care Home
Nottinghamshire County Council,1111/1001,Adult Social Care and Health,ASCH,Third Party Payments,EGA,09/12/2013,11-10270,564.57,Beech House Care Home Worksop Ltd
Nottinghamshire County Council,1111/1001,Adult Social Care and Health,ASCH,Third Party Payments,EGA,09/12/2013,11-10271,1596,Old Vicarage-Doncaster
Nottinghamshire County Council,1111/1001,Adult Social Care and Health,ASCH,Third Party Payments,EGA,09/12/2013,11-10272,1596,Old Vicarage-Doncaster
Nottinghamshire County Council,1111/1001,Adult Social Care and Health,ASCH,Third Party Payments,EGA,09/12/2013,11-10273,1596,Old Vicarage-Doncaster
Nottinghamshire County Council,1111/1001,Adult Social Care and Health,ASCH,Third Party Payments,EGA,09/12/2013,11-10274,1596,Old Vicarage-Doncaster
Nottinghamshire County Council,1111/1001,Adult Social Care and Health,ASCH,Third Party Payments,EGA,09/12/2013,11-10275,1596,Old Vicarage-Doncaster
Nottinghamshire County Council,1111/1001,Adult Social Care and Health,ASCH,Third Party Payments,EGA,09/12/2013,11-10276,1596,Old Vicarage-Doncaster
Nottinghamshire County Council,1111/1001,Adult Social Care and Health,ASCH,Third Party Payments,EGA,09/12/2013,11-10277,2964,Hazel Grove Nursing Home
Nottinghamshire County Council,1111/1001,Adult Social Care and Health,ASCH,Third Party Payments,EGA,09/12/2013,11-10278,884,Moriah House
Nottinghamshire County Council,1111/1001,Adult Social Care and Health,ASCH,Third Party Payments,EGA,09/12/2013,11-10279,1560,Ascot House Residential Home
Nottinghamshire County Council,1111/1001,Adult Social Care and Health,ASCH,Third Party Payments,EGA,09/12/2013,11-10280,1617,Notintone House
Nottinghamshire County Council,1111/1001,Adult Social Care and Health,ASCH,Third Party Payments,EGA,09/12/2013,11-10281,3405.36,St Catherines
Nottinghamshire County Council,1111/1001,Adult Social Care and Health,ASCH,Third Party Payments,EGA,09/12/2013,11-10282,3758.48,Scope Threshold Service
Nottinghamshire County Council,1111/1001,Adult Social Care and Health,ASCH,Third Party Payments,EGA,09/12/2013,11-10283,4272.12,Scope Threshold Service
Nottinghamshire County Council,1111/1001,Adult Social Care and Health,ASCH,Third Party Payments,EGA,09/12/2013,11-10284,8097.14,Sutton Manor
Nottinghamshire County Council,1111/1001,Adult Social Care and Health,ASCH,Third Party Payments,EGA,09/12/2013,11-10285,2600,Sutton Manor
Nottinghamshire County Council,1111/1001,Adult Social Care and Health,ASCH,Third Party Payments,EGA,09/12/2013,11-10286,1203.43,Langwith Lodge
Nottinghamshire County Council,1111/1001,Adult Social Care and Health,ASCH,Third Party Payments,EGA,09/12/2013,11-10287,1404,Radcliffe Manor House
Nottinghamshire County Council,1111/1001,Adult Social Care and Health,ASCH,Third Party Payments,EGA,09/12/2013,11-10288,936,Haywood Oaks Care Home
Nottinghamshire County Council,1111/1001,Adult Social Care and Health,ASCH,Third Party Payments,EGA,09/12/2013,11-10289,1337.14,Haywood Oaks Care Home
Nottinghamshire County Council,1111/1001,Adult Social Care and Health,ASCH,Third Party Payments,EGA,09/12/2013,11-10290,8724.86,Hallcroft Nursing Home
Nottinghamshire County Council,1111/1001,Adult Social Care and Health,ASCH,Third Party Payments,EGA,09/12/2013,11-10291,1136.57,The Beeches
Nottinghamshire County Council,1111/1001,Adult Social Care and Health,ASCH,Third Party Payments,EGA,09/12/2013,11-10292,7356,Belvoir Lodge
Nottinghamshire County Council,1111/1001,Adult Social Care and Health,ASCH,Third Party Payments,EGA,09/12/2013,11-10293,8342.72,Belvoir Lodge
Nottinghamshire County Council,1111/1001,Adult Social Care and Health,ASCH,Third Party Payments,EGA,09/12/2013,11-10294,2399.43,Broadgate Nursing Home
Nottinghamshire County Council,1111/1001,Adult Social Care and Health,ASCH,Third Party Payments,EGA,09/12/2013,11-10295,2760,Haven Lodge
Nottinghamshire County Council,1111/1001,Adult Social Care and Health,ASCH,Third Party Payments,EGA,09/12/2013,11-10296,2760,Haven Lodge
Nottinghamshire County Council,1111/1001,Adult Social Care and Health,ASCH,Third Party Payments,EGA,09/12/2013,11-10298,668.57,St Saviours Care Home
Nottinghamshire County Council,1111/1001,Adult Social Care and Health,ASCH,Third Party Payments,EGA,09/12/2013,11-10299,1989.6,The Shires Care Centre
Nottinghamshire County Council,1111/1001,Adult Social Care and Health,ASCH,Third Party Payments,EGA,09/12/2013,11-10300,1979.24,The Shires Care Centre
Nottinghamshire County Council,1111/1001,Adult Social Care and Health,ASCH,Third Party Payments,EGA,09/12/2013,11-10301,1980.92,The Shires Care Centre
Nottinghamshire County Council,1111/1001,Adult Social Care and Health,ASCH,Third Party Payments,EGA,09/12/2013,11-10302,1989.6,The Shires Care Centre
Nottinghamshire County Council,1111/1001,Adult Social Care and Health,ASCH,Third Party Payments,EGA,09/12/2013,11-10303,1989.6,The Shires Care Centre
Nottinghamshire County Council,1111/1001,Adult Social Care and Health,ASCH,Third Party Payments,EGA,09/12/2013,11-10305,1979.24,The Shires Care Centre
Nottinghamshire County Council,1111/1001,Adult Social Care and Health,ASCH,Third Party Payments,EGA,09/12/2013,11-10306,1979.24,The Shires Care Centre
Nottinghamshire County Council,1111/1001,Adult Social Care and Health,ASCH,Third Party Payments,EGA,09/12/2013,11-10307,2109.92,The Shires Care Centre
Nottinghamshire County Council,1111/1001,Adult Social Care and Health,ASCH,Third Party Payments,EGA,09/12/2013,11-10308,1980.92,The Shires Care Centre
Nottinghamshire County Council,1111/1001,Adult Social Care and Health,ASCH,Third Party Payments,EGA,09/12/2013,11-10309,1979.24,The Shires Care Centre
Nottinghamshire County Council,1111/1001,Adult Social Care and Health,ASCH,Third Party Payments,EGA,09/12/2013,11-10310,1931,The Shires Care Centre
Nottinghamshire County Council,1111/1001,Adult Social Care and Health,ASCH,Third Party Payments,EGA,09/12/2013,11-10311,1979.24,The Shires Care Centre
Nottinghamshire County Council,1111/1001,Adult Social Care and Health,ASCH,Third Party Payments,EGA,09/12/2013,11-10312,1989.6,The Shires Care Centre
Nottinghamshire County Council,1111/1001,Adult Social Care and Health,ASCH,Third Party Payments,EGA,09/12/2013,11-10313,1979.24,The Shires Care Centre
Nottinghamshire County Council,1111/1001,Adult Social Care and Health,ASCH,Third Party Payments,EGA,09/12/2013,11-10314,2645.2,The Shires Care Centre
Nottinghamshire County Council,1111/1001,Adult Social Care and Health,ASCH,Third Party Payments,EGA,09/12/2013,11-10315,1982.88,The Shires Care Centre
Nottinghamshire County Council,1111/1001,Adult Social Care and Health,ASCH,Third Party Payments,EGA,09/12/2013,11-10316,1979.24,The Shires Care Centre
Nottinghamshire County Council,1111/1001,Adult Social Care and Health,ASCH,Third Party Payments,EGA,09/12/2013,11-10317,3278.43,Kingfisher Court
Nottinghamshire County Council,1111/1001,Adult Social Care and Health,ASCH,Third Party Payments,EGA,09/12/2013,11-10318,7652,Lodge Farm
Nottinghamshire County Council,1111/1001,Adult Social Care and Health,ASCH,Third Party Payments,EGA,09/12/2013,11-10319,3448.48,Leonard Cheshire Care Home
Nottinghamshire County Council,1111/1001,Adult Social Care and Health,ASCH,Third Party Payments,EGA,09/12/2013,11-10320,3662.56,Leonard Cheshire Care Home
Nottinghamshire County Council,1111/1001,Adult Social Care and Health,ASCH,Third Party Payments,EGA,09/12/2013,11-10321,1592,Sandbeck House
Nottinghamshire County Council,1111/1001,Adult Social Care and Health,ASCH,Third Party Payments,EGA,09/12/2013,11-10322,2622,Whitwell Park Nursing Home
Nottinghamshire County Council,1111/1001,Adult Social Care and Health,ASCH,Third Party Payments,EGA,09/12/2013,11-10323,3148.52,Whitwell Park Nursing Home
Nottinghamshire County Council,1111/1001,Adult Social Care and Health,ASCH,Third Party Payments,EGA,09/12/2013,11-10324,3654,Whitwell Park Nursing Home
Nottinghamshire County Council,1111/1001,Adult Social Care and Health,ASCH,Third Party Payments,EGA,09/12/2013,11-10325,597.69,The Meadows Care Home
Nottinghamshire County Council,1111/1001,Adult Social Care and Health,ASCH,Third Party Payments,EGA,09/12/2013,11-10326,1040,Carlton House Nursing Home
Nottinghamshire County Council,1111/1001,Adult Social Care and Health,ASCH,Third Party Payments,EGA,09/12/2013,11-10327,3002.68,Scope
Nottinghamshire County Council,1111/1001,Adult Social Care and Health,ASCH,Third Party Payments,EGA,09/12/2013,11-10329,639.2,Portland Residential College
Nottinghamshire County Council,1111/1001,Adult Social Care and Health,ASCH,Third Party Payments,EGA,09/12/2013,11-10330,732,Portland Residential College
Nottinghamshire County Council,1111/1001,Adult Social Care and Health,ASCH,Third Party Payments,EGA,09/12/2013,11-10331,5676.16,Portland Residential College
Nottinghamshire County Council,1111/1001,Adult Social Care and Health,ASCH,Third Party Payments,EGA,09/12/2013,11-10332,1580,Eastfield Care Home
Nottinghamshire County Council,1111/1001,Adult Social Care and Health,ASCH,Third Party Payments,EGA,09/12/2013,11-10333,6327.14,Bramwell
Nottinghamshire County Council,1111/1001,Adult Social Care and Health,ASCH,Third Party Payments,EGA,09/12/2013,11-10334,7551.14,Jubilee Court
Nottinghamshire County Council,1111/1001,Adult Social Care and Health,ASCH,Third Party Payments,EGA,09/12/2013,11-10335,1704,Eastholme Nursing Home
Nottinghamshire County Council,1111/1001,Adult Social Care and Health,ASCH,Third Party Payments,EGA,09/12/2013,11-10336,3426.4,Rowan Garth Nursing Home
Nottinghamshire County Council,1111/1001,Adult Social Care and Health,ASCH,Third Party Payments,EGA,09/12/2013,11-10337,5441.08,Fethneys - Leonard Cheshire Disabil
Nottinghamshire County Council,1111/1001,Adult Social Care and Health,ASCH,Third Party Payments,EGA,09/12/2013,11-10338,2568,Roselea House
Nottinghamshire County Council,1111/1001,Adult Social Care and Health,ASCH,Third Party Payments,EGA,09/12/2013,11-10339,9462.86,Chandos House Care Home
Nottinghamshire County Council,1111/1001,Adult Social Care and Health,ASCH,Third Party Payments,EGA,09/12/2013,11-10341,707.38,St John's Care Ltd
Nottinghamshire County Council,1111/1001,Adult Social Care and Health,ASCH,Third Party Payments,EGA,10/12/2013,11-10458,8035.21,Perthyn
Nottinghamshire County Council,1111/1001,Adult Social Care and Health,ASCH,Third Party Payments,EGA,10/12/2013,11-10459,9636.71,Perthyn
Nottinghamshire County Council,1111/1001,Adult Social Care and Health,ASCH,Third Party Payments,EGA,10/12/2013,11-10463,1621.88,Nottm Community Housing Assoc
Nottinghamshire County Council,1111/1001,Adult Social Care and Health,ASCH,Third Party Payments,EGA,12/12/2013,11-10475,1522.38,Notts Homecare Ltd
Nottinghamshire County Council,1111/1001,Adult Social Care and Health,ASCH,Third Party Payments,EGA,12/12/2013,11-10476,8449.61,Care Uk Homecare Ltd
Nottinghamshire County Council,1111/1001,Adult Social Care and Health,ASCH,Third Party Payments,EGA,12/12/2013,11-10477,7159.95,Calverton Supreme Home Care Ltd
Nottinghamshire County Council,1111/1001,Adult Social Care and Health,ASCH,Third Party Payments,EGA,12/12/2013,11-10478,2063.95,Premier Nursing Agency Ltd
Nottinghamshire County Council,1111/1001,Adult Social Care and Health,ASCH,Third Party Payments,EGA,12/12/2013,11-10479,9685.58,Crossroads Care East Midlands
Nottinghamshire County Council,1111/1001,Adult Social Care and Health,ASCH,Third Party Payments,EGA,12/12/2013,11-10480,8765.26,Sterling Homecare Ltd
Nottinghamshire County Council,1111/1001,Adult Social Care and Health,ASCH,Third Party Payments,EGA,12/12/2013,11-10481,1937.19,Housing 21
Nottinghamshire County Council,1111/1001,Adult Social Care and Health,ASCH,Third Party Payments,EGA,12/12/2013,11-10482,4039.53,Rainbow Care Services Ltd
Nottinghamshire County Council,1111/1001,Adult Social Care and Health,ASCH,Third Party Payments,EGA,12/12/2013,11-10483,571.78,The Human Support Group
Nottinghamshire County Council,1111/1001,Adult Social Care and Health,ASCH,Third Party Payments,EGA,12/12/2013,11-10484,2568.67,Mears Care Ltd
Nottinghamshire County Council,1111/1001,Adult Social Care and Health,ASCH,Third Party Payments,EGA,12/12/2013,11-10485,8620.74,Hatzfeld Care Ltd
Nottinghamshire County Council,1111/1001,Adult Social Care and Health,ASCH,Third Party Payments,EGA,12/12/2013,11-10486,1799.34,Westminster Homecare Ltd
Nottinghamshire County Council,1111/1001,Adult Social Care and Health,ASCH,Third Party Payments,EGA,12/12/2013,11-10487,1468.8,Direct Health (uk) Ltd
Nottinghamshire County Council,1111/1001,Adult Social Care and Health,ASCH,Third Party Payments,EGA,12/12/2013,11-10488,1031.71,Always There Homecare Ltd
Nottinghamshire County Council,1111/1001,Adult Social Care and Health,ASCH,Third Party Payments,EGA,12/12/2013,11-10489,789.65,Leda Homecare Ltd
Nottinghamshire County Council,1111/1001,Adult Social Care and Health,ASCH,Third Party Payments,EGA,12/12/2013,11-10490,1522.99,Hatzfeld Care Ltd
Nottinghamshire County Council,1111/1001,Adult Social Care and Health,ASCH,Third Party Payments,EGA,12/12/2013,11-10491,7304.89,Priority Homecare Ltd
Nottinghamshire County Council,1111/1001,Adult Social Care and Health,ASCH,Third Party Payments,EGA,12/12/2013,11-10492,7706.05,Sterling Homecare Ltd
Nottinghamshire County Council,1111/1001,Adult Social Care and Health,ASCH,Third Party Payments,EGA,12/12/2013,11-10493,1299.62,Crossroads Care East Midlands
Nottinghamshire County Council,1111/1001,Adult Social Care and Health,ASCH,Third Party Payments,EGA,12/12/2013,11-10494,4811.41,Notts Homecare Ltd
Nottinghamshire County Council,1111/1001,Adult Social Care and Health,ASCH,Third Party Payments,EGA,12/12/2013,11-10495,6508.58,Sterling Homecare Ltd
Nottinghamshire County Council,1111/1001,Adult Social Care and Health,ASCH,Third Party Payments,EGA,12/12/2013,11-10496,8925.46,North Notts Crossroads Care
Nottinghamshire County Council,1111/1001,Adult Social Care and Health,ASCH,Third Party Payments,EGA,12/12/2013,11-10497,724.73,Premier Nursing Agency Ltd
Nottinghamshire County Council,1111/1001,Adult Social Care and Health,ASCH,Third Party Payments,EGA,12/12/2013,11-10498,10158.63,Mears Care Ltd
Nottinghamshire County Council,1111/1001,Adult Social Care and Health,ASCH,Third Party Payments,EGA,12/12/2013,11-10499,1827.05,Sterling Homecare Ltd
Nottinghamshire County Council,1111/1001,Adult Social Care and Health,ASCH,Third Party Payments,EGA,12/12/2013,11-10500,12140.29,Care Uk Homecare Ltd
Nottinghamshire County Council,1111/1001,Adult Social Care and Health,ASCH,Third Party Payments,EGA,12/12/2013,11-10501,13514.85,Direct Health (uk) Ltd
Nottinghamshire County Council,1111/1001,Adult Social Care and Health,ASCH,Third Party Payments,EGA,12/12/2013,11-10502,515.02,Housing 21
Nottinghamshire County Council,1111/1001,Adult Social Care and Health,ASCH,Third Party Payments,EGA,12/12/2013,11-10503,2711.89,Care Uk Homecare Ltd
Nottinghamshire County Council,1111/1001,Adult Social Care and Health,ASCH,Third Party Payments,EGA,12/12/2013,11-10504,622.06,Medico Nursing & Homecare
Nottinghamshire County Council,1111/1001,Adult Social Care and Health,ASCH,Third Party Payments,EGA,12/12/2013,11-10505,853.64,Always There Homecare Ltd
Nottinghamshire County Council,1111/1001,Adult Social Care and Health,ASCH,Third Party Payments,EGA,12/12/2013,11-10506,7534.92,Care Uk Homecare Ltd
Nottinghamshire County Council,1111/1001,Adult Social Care and Health,ASCH,Third Party Payments,EGA,12/12/2013,11-10507,4406.75,Hatzfeld Care Ltd
Nottinghamshire County Council,1111/1001,Adult Social Care and Health,ASCH,Third Party Payments,EGA,12/12/2013,11-10508,4821.21,Westminster Homecare Ltd
Nottinghamshire County Council,1111/1001,Adult Social Care and Health,ASCH,Third Party Payments,EGA,12/12/2013,11-10509,703.14,Medico Nursing & Homecare
Nottinghamshire County Council,1111/1001,Adult Social Care and Health,ASCH,Third Party Payments,EGA,12/12/2013,11-10510,18967.32,Direct Health (uk) Ltd
Nottinghamshire County Council,1111/1001,Adult Social Care and Health,ASCH,Third Party Payments,EGA,12/12/2013,11-10511,3315.61,Priority Homecare Ltd
Nottinghamshire County Council,1111/1001,Adult Social Care and Health,ASCH,Third Party Payments,EGA,12/12/2013,11-10512,6235.65,Workwise Healthcare Ltd
Nottinghamshire County Council,1111/1001,Adult Social Care and Health,ASCH,Third Party Payments,EGA,12/12/2013,11-10513,4395.72,Direct Health (uk) Ltd
Nottinghamshire County Council,1111/1001,Adult Social Care and Health,ASCH,Third Party Payments,EGA,12/12/2013,11-10514,1074.2,The Human Support Group
Nottinghamshire County Council,1111/1001,Adult Social Care and Health,ASCH,Third Party Payments,EGA,12/12/2013,11-10515,767.25,Mears Care Ltd
Nottinghamshire County Council,1111/1001,Adult Social Care and Health,ASCH,Third Party Payments,EGA,12/12/2013,11-10516,1957.85,Hatzfeld Care Ltd
Nottinghamshire County Council,1111/1001,Adult Social Care and Health,ASCH,Third Party Payments,EGA,12/12/2013,11-10517,7203.84,Direct Health (uk) Ltd
Nottinghamshire County Council,1111/1001,Adult Social Care and Health,ASCH,Third Party Payments,EGA,12/12/2013,11-10518,1466.81,North Notts Crossroads Care
Nottinghamshire County Council,1111/1001,Adult Social Care and Health,ASCH,Third Party Payments,EGA,12/12/2013,11-10519,1361.73,Home Care Solution Ltd
Nottinghamshire County Council,1111/1001,Adult Social Care and Health,ASCH,Third Party Payments,EGA,12/12/2013,11-10520,1918.36,Premier Nursing Agency Ltd
Nottinghamshire County Council,1111/1001,Adult Social Care and Health,ASCH,Third Party Payments,EGA,12/12/2013,11-10521,830.19,Housing 21
Nottinghamshire County Council,1111/1001,Adult Social Care and Health,ASCH,Third Party Payments,EGA,12/12/2013,11-10522,3386.48,Medico Nursing & Homecare
Nottinghamshire County Council,1111/1001,Adult Social Care and Health,ASCH,Third Party Payments,EGA,12/12/2013,11-10523,4621.52,Mears Care Ltd
Nottinghamshire County Council,1111/1001,Adult Social Care and Health,ASCH,Third Party Payments,EGA,12/12/2013,11-10524,3072.72,The Human Support Group
Nottinghamshire County Council,1111/1001,Adult Social Care and Health,ASCH,Third Party Payments,EGA,12/12/2013,11-10525,9515.01,Sterling Homecare Ltd
Nottinghamshire County Council,1111/1001,Adult Social Care and Health,ASCH,Third Party Payments,EGA,12/12/2013,11-10526,1943.48,Housing 21
Nottinghamshire County Council,1111/1001,Adult Social Care and Health,ASCH,Third Party Payments,EGA,12/12/2013,11-10527,2854.06,Housing 21
Nottinghamshire County Council,1111/1001,Adult Social Care and Health,ASCH,Third Party Payments,EGA,12/12/2013,11-10528,3271.98,Direct Health (uk) Ltd
Nottinghamshire County Council,1111/1001,Adult Social Care and Health,ASCH,Third Party Payments,EGA,12/12/2013,11-10529,9627.8,Home Care Solution Ltd
Nottinghamshire County Council,1111/1001,Adult Social Care and Health,ASCH,Third Party Payments,EGA,12/12/2013,11-10530,1528.78,Crossroads Care East Midlands
Nottinghamshire County Council,1111/1001,Adult Social Care and Health,ASCH,Third Party Payments,EGA,12/12/2013,11-10531,1419.46,North Notts Crossroads Care
Nottinghamshire County Council,1111/1001,Adult Social Care and Health,ASCH,Third Party Payments,EGA,12/12/2013,11-10532,5701.93,Medico Nursing & Homecare
Nottinghamshire County Council,1111/1001,Adult Social Care and Health,ASCH,Third Party Payments,EGA,12/12/2013,11-10533,7377.56,Workwise Healthcare Ltd
Nottinghamshire County Council,1111/1001,Adult Social Care and Health,ASCH,Third Party Payments,EGA,12/12/2013,11-10534,1431.09,Sterling Homecare Ltd
Nottinghamshire County Council,1111/1001,Adult Social Care and Health,ASCH,Third Party Payments,EGA,12/12/2013,11-10535,1988.15,Medico Nursing & Homecare
Nottinghamshire County Council,1111/1001,Adult Social Care and Health,ASCH,Third Party Payments,EGA,12/12/2013,11-10536,3698.86,Westminster Homecare Ltd
Nottinghamshire County Council,1111/1001,Adult Social Care and Health,ASCH,Third Party Payments,EGA,12/12/2013,11-10537,8471.73,Leda Homecare Ltd
Nottinghamshire County Council,1111/1001,Adult Social Care and Health,ASCH,Third Party Payments,EGA,12/12/2013,11-10538,1180.83,Medico Nursing & Homecare
Nottinghamshire County Council,1111/1001,Adult Social Care and Health,ASCH,Third Party Payments,EGA,12/12/2013,11-10539,10348.08,Leda Homecare Ltd
Nottinghamshire County Council,1111/1001,Adult Social Care and Health,ASCH,Third Party Payments,EGA,12/12/2013,11-10540,2574.45,Priority Homecare Ltd
Nottinghamshire County Council,1111/1001,Adult Social Care and Health,ASCH,Third Party Payments,EGA,12/12/2013,11-10541,5106.31,North Notts Crossroads Care
Nottinghamshire County Council,1111/1001,Adult Social Care and Health,ASCH,Third Party Payments,EGA,12/12/2013,11-10542,1090.49,Always There Homecare Ltd
Nottinghamshire County Council,1111/1001,Adult Social Care and Health,ASCH,Third Party Payments,EGA,12/12/2013,11-10543,7941.62,Priority Homecare Ltd
Nottinghamshire County Council,1111/1001,Adult Social Care and Health,ASCH,Third Party Payments,EGA,12/12/2013,11-10544,9712.55,Sterling Homecare Ltd
Nottinghamshire County Council,1111/1001,Adult Social Care and Health,ASCH,Third Party Payments,EGA,12/12/2013,11-10545,1435.93,Mediline Nurses & Carers Ltd
Nottinghamshire County Council,1111/1001,Adult Social Care and Health,ASCH,Third Party Payments,EGA,13/12/2013,11-10660,1621.88,Nottm Community Housing Assoc
Nottinghamshire County Council,1111/1001,Adult Social Care and Health,ASCH,Third Party Payments,EGA,13/12/2013,11-10661,526.4,Care UK Learning Disabilities Servi
Nottinghamshire County Council,1111/1001,Adult Social Care and Health,ASCH,Third Party Payments,EGA,16/12/2013,11-10669,7789.4,Perthyn
Nottinghamshire County Council,1111/1001,Adult Social Care and Health,ASCH,Third Party Payments,EGA,16/12/2013,11-10670,6949.4,Perthyn
Nottinghamshire County Council,1111/1001,Adult Social Care and Health,ASCH,Third Party Payments,EGA,16/12/2013,11-10671,9889.4,Perthyn
Nottinghamshire County Council,1111/1001,Adult Social Care and Health,ASCH,Third Party Payments,EGA,16/12/2013,11-10684,2899.29,Ashcroft
Nottinghamshire County Council,1111/1001,Adult Social Care and Health,ASCH,Third Party Payments,EGA,16/12/2013,11-10685,1515.43,Silverwood Care Home
Nottinghamshire County Council,1111/1001,Adult Social Care and Health,ASCH,Third Party Payments,EGA,16/12/2013,11-10686,947.14,Silverwood Care Home
Nottinghamshire County Council,1111/1001,Adult Social Care and Health,ASCH,Third Party Payments,EGA,16/12/2013,11-10687,1623.14,Oaks Care Centre
Nottinghamshire County Council,1111/1001,Adult Social Care and Health,ASCH,Third Party Payments,EGA,16/12/2013,11-10688,1409.14,Oaks Care Centre
Nottinghamshire County Council,1111/1001,Adult Social Care and Health,ASCH,Third Party Payments,EGA,16/12/2013,11-10689,5556.57,Four Seasons (Evedale) Ltd Re Westw
Nottinghamshire County Council,1111/1001,Adult Social Care and Health,ASCH,Third Party Payments,EGA,16/12/2013,11-10690,540,Edward House Care Home
Nottinghamshire County Council,1111/1001,Adult Social Care and Health,ASCH,Third Party Payments,EGA,16/12/2013,11-10691,1482,Beeches Nursing Home
Nottinghamshire County Council,1111/1001,Adult Social Care and Health,ASCH,Third Party Payments,EGA,16/12/2013,11-10692,1130,Westcliffe Nursing Home
Nottinghamshire County Council,1111/1001,Adult Social Care and Health,ASCH,Third Party Payments,EGA,16/12/2013,11-10693,2736,Gables Nursing Home
Nottinghamshire County Council,1111/1001,Adult Social Care and Health,ASCH,Third Party Payments,EGA,16/12/2013,11-10694,522,Forest Hill Nursing Home
Nottinghamshire County Council,1111/1001,Adult Social Care and Health,ASCH,Third Party Payments,EGA,16/12/2013,11-10695,2337,The Moorlands Nursing Home
Nottinghamshire County Council,1111/1001,Adult Social Care and Health,ASCH,Third Party Payments,EGA,16/12/2013,11-10696,2399.43,Millbeck House
Nottinghamshire County Council,1111/1001,Adult Social Care and Health,ASCH,Third Party Payments,EGA,16/12/2013,11-10697,2893.43,Millbeck House
Nottinghamshire County Council,1111/1001,Adult Social Care and Health,ASCH,Third Party Payments,EGA,16/12/2013,11-10698,11070,Wren Hall Nursing Home
Nottinghamshire County Council,1111/1001,Adult Social Care and Health,ASCH,Third Party Payments,EGA,16/12/2013,11-10699,2631.68,S M Godfrey
Nottinghamshire County Council,1111/1001,Adult Social Care and Health,ASCH,Third Party Payments,EGA,16/12/2013,11-10700,540,Newton House
Nottinghamshire County Council,1111/1001,Adult Social Care and Health,ASCH,Third Party Payments,EGA,16/12/2013,11-10701,19028.63,Notintone House
Nottinghamshire County Council,1111/1001,Adult Social Care and Health,ASCH,Third Party Payments,EGA,16/12/2013,11-10702,2320.35,Sycamore House
Nottinghamshire County Council,1111/1001,Adult Social Care and Health,ASCH,Third Party Payments,EGA,16/12/2013,11-10703,8357.27,Elmbank Nursing Home
Nottinghamshire County Council,1111/1001,Adult Social Care and Health,ASCH,Third Party Payments,EGA,16/12/2013,11-10704,4479.43,The Limes Nursing & Residential Hom
Nottinghamshire County Council,1111/1001,Adult Social Care and Health,ASCH,Third Party Payments,EGA,16/12/2013,11-10705,2340,Annesley Lodge
Nottinghamshire County Council,1111/1001,Adult Social Care and Health,ASCH,Third Party Payments,EGA,16/12/2013,11-10706,2865,Mansfield Manor Care Home
Nottinghamshire County Council,1111/1001,Adult Social Care and Health,ASCH,Third Party Payments,EGA,16/12/2013,11-10707,1337.14,Langwith Lodge
Nottinghamshire County Council,1111/1001,Adult Social Care and Health,ASCH,Third Party Payments,EGA,16/12/2013,11-10708,1957.43,Giltbrook Carehomes Ltd
Nottinghamshire County Council,1111/1001,Adult Social Care and Health,ASCH,Third Party Payments,EGA,16/12/2013,11-10709,2399.43,Broadgate Nursing Home
Nottinghamshire County Council,1111/1001,Adult Social Care and Health,ASCH,Third Party Payments,EGA,16/12/2013,11-10710,2083.71,Broadgate Nursing Home
Nottinghamshire County Council,1111/1001,Adult Social Care and Health,ASCH,Third Party Payments,EGA,16/12/2013,11-10711,2146.86,Broadgate Nursing Home
Nottinghamshire County Council,1111/1001,Adult Social Care and Health,ASCH,Third Party Payments,EGA,16/12/2013,11-10713,1388.57,Westfield Residential Home
Nottinghamshire County Council,1111/1001,Adult Social Care and Health,ASCH,Third Party Payments,EGA,16/12/2013,11-10714,1596,South Collingham Hall
Nottinghamshire County Council,1111/1001,Adult Social Care and Health,ASCH,Third Party Payments,EGA,16/12/2013,11-10716,1176,Cherry Holt Care Home
Nottinghamshire County Council,1111/1001,Adult Social Care and Health,ASCH,Third Party Payments,EGA,16/12/2013,11-10717,12501.16,Stanton Hall Nursing Home
Nottinghamshire County Council,1111/1001,Adult Social Care and Health,ASCH,Third Party Payments,EGA,16/12/2013,11-10718,4400,Mencap - Ashwood Avenue
Nottinghamshire County Council,1111/1001,Adult Social Care and Health,ASCH,Third Party Payments,EGA,16/12/2013,11-10719,4400,Mencap - Ashwood Avenue
Nottinghamshire County Council,1111/1001,Adult Social Care and Health,ASCH,Third Party Payments,EGA,16/12/2013,11-10720,4461.14,Mencap - Ashwood Avenue
Nottinghamshire County Council,1111/1001,Adult Social Care and Health,ASCH,Third Party Payments,EGA,16/12/2013,11-10721,4421,Mencap - Ashwood Avenue
Nottinghamshire County Council,1111/1001,Adult Social Care and Health,ASCH,Third Party Payments,EGA,16/12/2013,11-10722,4421,Mencap - Ashwood Avenue
Nottinghamshire County Council,1111/1001,Adult Social Care and Health,ASCH,Third Party Payments,EGA,16/12/2013,11-10723,4421,Mencap - Ashwood Avenue
Nottinghamshire County Council,1111/1001,Adult Social Care and Health,ASCH,Third Party Payments,EGA,16/12/2013,11-10724,4421,Mencap - Ashwood Avenue
Nottinghamshire County Council,1111/1001,Adult Social Care and Health,ASCH,Third Party Payments,EGA,16/12/2013,11-10725,4421,Mencap - Ashwood Avenue
Nottinghamshire County Council,1111/1001,Adult Social Care and Health,ASCH,Third Party Payments,EGA,16/12/2013,11-10726,4400,Mencap - Ashwood Avenue
Nottinghamshire County Council,1111/1001,Adult Social Care and Health,ASCH,Third Party Payments,EGA,16/12/2013,11-10727,5540,Mencap - Little Barn Lane
Nottinghamshire County Council,1111/1001,Adult Social Care and Health,ASCH,Third Party Payments,EGA,16/12/2013,11-10728,5540,Mencap - Little Barn Lane
Nottinghamshire County Council,1111/1001,Adult Social Care and Health,ASCH,Third Party Payments,EGA,16/12/2013,11-10729,5540,Mencap - Little Barn Lane
Nottinghamshire County Council,1111/1001,Adult Social Care and Health,ASCH,Third Party Payments,EGA,16/12/2013,11-10730,5540,Mencap - Little Barn Lane
Nottinghamshire County Council,1111/1001,Adult Social Care and Health,ASCH,Third Party Payments,EGA,16/12/2013,11-10731,5157.2,Mencap - Whitwater Road
Nottinghamshire County Council,1111/1001,Adult Social Care and Health,ASCH,Third Party Payments,EGA,16/12/2013,11-10732,4241.6,Mencap - Whitwater Road
Nottinghamshire County Council,1111/1001,Adult Social Care and Health,ASCH,Third Party Payments,EGA,16/12/2013,11-10733,5996,Mencap - Whitwater Road
Nottinghamshire County Council,1111/1001,Adult Social Care and Health,ASCH,Third Party Payments,EGA,16/12/2013,11-10734,4677.6,Mencap - Whitwater Road
Nottinghamshire County Council,1111/1001,Adult Social Care and Health,ASCH,Third Party Payments,EGA,16/12/2013,11-10735,4895.6,Mencap - Whitwater Road
Nottinghamshire County Council,1111/1001,Adult Social Care and Health,ASCH,Third Party Payments,EGA,16/12/2013,11-10736,4456.8,Mencap - Whitwater Road
Nottinghamshire County Council,1111/1001,Adult Social Care and Health,ASCH,Third Party Payments,EGA,16/12/2013,11-10737,5594,Mencap - Whitwater Road
Nottinghamshire County Council,1111/1001,Adult Social Care and Health,ASCH,Third Party Payments,EGA,16/12/2013,11-10738,5288,Mencap - Whitwater Road
Nottinghamshire County Council,1111/1001,Adult Social Care and Health,ASCH,Third Party Payments,EGA,16/12/2013,11-10739,4328.8,Mencap - Whitwater Road
Nottinghamshire County Council,1111/1001,Adult Social Care and Health,ASCH,Third Party Payments,EGA,16/12/2013,11-10740,3980,Mencap - Whitwater Road
Nottinghamshire County Council,1111/1001,Adult Social Care and Health,ASCH,Third Party Payments,EGA,16/12/2013,11-10741,5002.8,Mencap - Carlton Close
Nottinghamshire County Council,1111/1001,Adult Social Care and Health,ASCH,Third Party Payments,EGA,16/12/2013,11-10742,4545,Mencap - Carlton Close
Nottinghamshire County Council,1111/1001,Adult Social Care and Health,ASCH,Third Party Payments,EGA,16/12/2013,11-10743,5308,Mencap - Carlton Close
Nottinghamshire County Council,1111/1001,Adult Social Care and Health,ASCH,Third Party Payments,EGA,16/12/2013,11-10744,4000,Mencap - Carlton Close
Nottinghamshire County Council,1111/1001,Adult Social Care and Health,ASCH,Third Party Payments,EGA,16/12/2013,11-10745,4162.47,Mencap - Carlton Close
Nottinghamshire County Council,1111/1001,Adult Social Care and Health,ASCH,Third Party Payments,EGA,16/12/2013,11-10746,4000,Mencap - Carlton Close
Nottinghamshire County Council,1111/1001,Adult Social Care and Health,ASCH,Third Party Payments,EGA,16/12/2013,11-10747,4476.24,Mencap - Carlton Close
Nottinghamshire County Council,1111/1001,Adult Social Care and Health,ASCH,Third Party Payments,EGA,16/12/2013,11-10748,4021,Mencap - Carlton Close
Nottinghamshire County Council,1111/1001,Adult Social Care and Health,ASCH,Third Party Payments,EGA,16/12/2013,11-10749,4000,Mencap - Carlton Close
Nottinghamshire County Council,1111/1001,Adult Social Care and Health,ASCH,Third Party Payments,EGA,16/12/2013,11-10750,4000,Mencap - Carlton Close
Nottinghamshire County Council,1111/1001,Adult Social Care and Health,ASCH,Third Party Payments,EGA,16/12/2013,11-10751,755.17,Mencap - Carlton Close
Nottinghamshire County Council,1111/1001,Adult Social Care and Health,ASCH,Third Party Payments,EGA,16/12/2013,11-10752,4000,Mencap - Carlton Close
Nottinghamshire County Council,1111/1001,Adult Social Care and Health,ASCH,Third Party Payments,EGA,16/12/2013,11-10753,2749.35,Pathfinders Neurological Care Centr
Nottinghamshire County Council,1111/1001,Adult Social Care and Health,ASCH,Third Party Payments,EGA,16/12/2013,11-10754,2146.85,Southwell Court Care Home
Nottinghamshire County Council,1111/1001,Adult Social Care and Health,ASCH,Third Party Payments,EGA,16/12/2013,11-10755,1644,Westvilla Nursing Home
Nottinghamshire County Council,1111/1001,Adult Social Care and Health,ASCH,Third Party Payments,EGA,16/12/2013,11-10756,1552.57,Bramwell
Nottinghamshire County Council,1111/1001,Adult Social Care and Health,ASCH,Third Party Payments,EGA,16/12/2013,11-10757,2399.43,Maun View
Nottinghamshire County Council,1111/1001,Adult Social Care and Health,ASCH,Third Party Payments,EGA,16/12/2013,11-10758,2611.14,Maun View
Nottinghamshire County Council,1111/1001,Adult Social Care and Health,ASCH,Third Party Payments,EGA,16/12/2013,11-10759,917.43,Maun View
Nottinghamshire County Council,1111/1001,Adult Social Care and Health,ASCH,Third Party Payments,EGA,16/12/2013,11-10760,594.29,Westwood
Nottinghamshire County Council,1111/1001,Adult Social Care and Health,ASCH,Third Party Payments,EGA,16/12/2013,11-10761,2080,Westwood
Nottinghamshire County Council,1111/1001,Adult Social Care and Health,ASCH,Third Party Payments,EGA,16/12/2013,11-10762,520,Westwood
Nottinghamshire County Council,1111/1001,Adult Social Care and Health,ASCH,Third Party Payments,EGA,16/12/2013,11-10763,5272.4,Mencap - Southwell Road East
Nottinghamshire County Council,1111/1001,Adult Social Care and Health,ASCH,Third Party Payments,EGA,16/12/2013,11-10764,4880,Mencap - Southwell Road East
Nottinghamshire County Council,1111/1001,Adult Social Care and Health,ASCH,Third Party Payments,EGA,16/12/2013,11-10765,4880,Mencap - Southwell Road East
Nottinghamshire County Council,1111/1001,Adult Social Care and Health,ASCH,Third Party Payments,EGA,16/12/2013,11-10766,5272.4,Mencap - Southwell Road East
Nottinghamshire County Council,1111/1001,Adult Social Care and Health,ASCH,Third Party Payments,EGA,16/12/2013,11-10767,8097.05,Mencap - Southwell Road East
Nottinghamshire County Council,1111/1001,Adult Social Care and Health,ASCH,Third Party Payments,EGA,16/12/2013,11-10768,5277.6,Mencap - Southwell Road East
Nottinghamshire County Council,1111/1001,Adult Social Care and Health,ASCH,Third Party Payments,EGA,16/12/2013,11-10769,4428.15,Mencap - Southwell Road East
Nottinghamshire County Council,1111/1001,Adult Social Care and Health,ASCH,Third Party Payments,EGA,16/12/2013,11-10770,4145,Mencap - Southwell Road East
Nottinghamshire County Council,1111/1001,Adult Social Care and Health,ASCH,Third Party Payments,EGA,16/12/2013,11-10771,5185.2,Mencap - Southwell Road East
Nottinghamshire County Council,1111/1001,Adult Social Care and Health,ASCH,Third Party Payments,EGA,16/12/2013,11-10772,4880,Mencap - Southwell Road East
Nottinghamshire County Council,1111/1001,Adult Social Care and Health,ASCH,Third Party Payments,EGA,16/12/2013,11-10773,6738,Mencap - Barnby Gate
Nottinghamshire County Council,1111/1001,Adult Social Care and Health,ASCH,Third Party Payments,EGA,16/12/2013,11-10774,4220,Mencap - Barnby Gate
Nottinghamshire County Council,1111/1001,Adult Social Care and Health,ASCH,Third Party Payments,EGA,16/12/2013,11-10775,5092,Mencap - Barnby Gate
Nottinghamshire County Council,1111/1001,Adult Social Care and Health,ASCH,Third Party Payments,EGA,16/12/2013,11-10776,6738,Mencap - Barnby Gate
Nottinghamshire County Council,1111/1001,Adult Social Care and Health,ASCH,Third Party Payments,EGA,16/12/2013,11-10777,4220,Mencap - Barnby Gate
Nottinghamshire County Council,1111/1001,Adult Social Care and Health,ASCH,Third Party Payments,EGA,16/12/2013,11-10778,3607.2,Mencap - Barnby Gate
Nottinghamshire County Council,1111/1001,Adult Social Care and Health,ASCH,Third Party Payments,EGA,16/12/2013,11-10779,2960,Mencap - Barnby Gate
Nottinghamshire County Council,1111/1001,Adult Social Care and Health,ASCH,Third Party Payments,EGA,16/12/2013,11-10780,4213.95,Mencap - Barnby Gate
Nottinghamshire County Council,1111/1001,Adult Social Care and Health,ASCH,Third Party Payments,EGA,16/12/2013,11-10781,10490.8,Mencap - Barnby Gate
Nottinghamshire County Council,1111/1001,Adult Social Care and Health,ASCH,Third Party Payments,EGA,16/12/2013,11-10782,6400,Mencap - Barnby Gate
Nottinghamshire County Council,1111/1001,Adult Social Care and Health,ASCH,Third Party Payments,EGA,16/12/2013,11-10783,4220,Mencap - Barnby Gate
Nottinghamshire County Council,1111/1001,Adult Social Care and Health,ASCH,Third Party Payments,EGA,16/12/2013,11-10784,6044.2,Mencap Stonecross Lane
Nottinghamshire County Council,1111/1001,Adult Social Care and Health,ASCH,Third Party Payments,EGA,16/12/2013,11-10785,5200,Mencap Stonecross Lane
Nottinghamshire County Council,1111/1001,Adult Social Care and Health,ASCH,Third Party Payments,EGA,16/12/2013,11-10786,5200,Mencap Stonecross Lane
Nottinghamshire County Council,1111/1001,Adult Social Care and Health,ASCH,Third Party Payments,EGA,16/12/2013,11-10787,4550.8,Mencap Stonecross Lane
Nottinghamshire County Council,1111/1001,Adult Social Care and Health,ASCH,Third Party Payments,EGA,16/12/2013,11-10788,5390.2,Mencap Stonecross Lane
Nottinghamshire County Council,1111/1001,Adult Social Care and Health,ASCH,Third Party Payments,EGA,16/12/2013,11-10789,9943.8,Mencap Stonecross Lane
Nottinghamshire County Council,1111/1001,Adult Social Care and Health,ASCH,Third Party Payments,EGA,16/12/2013,11-10790,2949.35,Mencap Stonecross Lane
Nottinghamshire County Council,1111/1001,Adult Social Care and Health,ASCH,Third Party Payments,EGA,16/12/2013,11-10791,3055,Mencap Stonecross Lane
Nottinghamshire County Council,1111/1001,Adult Social Care and Health,ASCH,Third Party Payments,EGA,16/12/2013,11-10792,5640.8,Mencap Stonecross Lane
Nottinghamshire County Council,1111/1001,Adult Social Care and Health,ASCH,Third Party Payments,EGA,16/12/2013,11-10793,4420,Mencap Stonecross Lane
Nottinghamshire County Council,1111/1001,Adult Social Care and Health,ASCH,Third Party Payments,EGA,16/12/2013,11-10794,4681.6,Mencap Stonecross Lane
Nottinghamshire County Council,1111/1001,Adult Social Care and Health,ASCH,Third Party Payments,EGA,16/12/2013,11-10795,4830.4,Mencap - Sawley Drive
Nottinghamshire County Council,1111/1001,Adult Social Care and Health,ASCH,Third Party Payments,EGA,16/12/2013,11-10796,4220,Mencap - Sawley Drive
Nottinghamshire County Council,1111/1001,Adult Social Care and Health,ASCH,Third Party Payments,EGA,16/12/2013,11-10797,4252.7,Mencap - Sawley Drive
Nottinghamshire County Council,1111/1001,Adult Social Care and Health,ASCH,Third Party Payments,EGA,16/12/2013,11-10798,4010,Mencap - Sawley Drive
Nottinghamshire County Council,1111/1001,Adult Social Care and Health,ASCH,Third Party Payments,EGA,16/12/2013,11-10799,5310,Mencap - Sawley Drive
Nottinghamshire County Council,1111/1001,Adult Social Care and Health,ASCH,Third Party Payments,EGA,16/12/2013,11-10800,5135.6,Mencap - Sawley Drive
Nottinghamshire County Council,1111/1001,Adult Social Care and Health,ASCH,Third Party Payments,EGA,16/12/2013,11-10801,5353.6,Mencap - Sawley Drive
Nottinghamshire County Council,1111/1001,Adult Social Care and Health,ASCH,Third Party Payments,EGA,16/12/2013,11-10802,4220,Mencap - Sawley Drive
Nottinghamshire County Council,1111/1001,Adult Social Care and Health,ASCH,Third Party Payments,EGA,16/12/2013,11-10803,4394.4,Mencap - Sawley Drive
Nottinghamshire County Council,1111/1001,Adult Social Care and Health,ASCH,Third Party Payments,EGA,16/12/2013,11-10804,4220,Mencap - Sawley Drive
Nottinghamshire County Council,1111/1001,Adult Social Care and Health,ASCH,Third Party Payments,EGA,16/12/2013,11-10805,4220,Mencap - Sawley Drive
Nottinghamshire County Council,1111/1001,Adult Social Care and Health,ASCH,Third Party Payments,EGA,16/12/2013,11-10806,4220,Mencap - Sawley Drive
Nottinghamshire County Council,1111/1001,Adult Social Care and Health,ASCH,Third Party Payments,EGA,16/12/2013,11-10807,522,Jubilee Court Nursing Home
Nottinghamshire County Council,1111/1001,Adult Social Care and Health,ASCH,Third Party Payments,EGA,16/12/2013,11-10808,5529,Leen Valley Care Home
Nottinghamshire County Council,1111/1001,Adult Social Care and Health,ASCH,Third Party Payments,EGA,16/12/2013,11-10809,1081.4,Tamar House Nursing Home
Nottinghamshire County Council,1111/1001,Adult Social Care and Health,ASCH,Third Party Payments,EGA,16/12/2013,11-10810,2877.44,The Dovecote
Nottinghamshire County Council,1111/1001,Adult Social Care and Health,ASCH,Third Party Payments,EGA,16/12/2013,11-10811,2331.8,The Dovecote
Nottinghamshire County Council,1111/1001,Adult Social Care and Health,ASCH,Third Party Payments,EGA,16/12/2013,11-10812,2068.32,The Dovecote
Nottinghamshire County Council,1111/1001,Adult Social Care and Health,ASCH,Third Party Payments,EGA,16/12/2013,11-10813,4453.72,The Dovecote
Nottinghamshire County Council,1111/1001,Adult Social Care and Health,ASCH,Third Party Payments,EGA,16/12/2013,11-10814,2502.6,The Dovecote
Nottinghamshire County Council,1111/1001,Adult Social Care and Health,ASCH,Third Party Payments,EGA,16/12/2013,11-10815,1864.4,The Dovecote
Nottinghamshire County Council,1111/1001,Adult Social Care and Health,ASCH,Third Party Payments,EGA,16/12/2013,11-10816,2095.08,The Dovecote
Nottinghamshire County Council,1111/1001,Adult Social Care and Health,ASCH,Third Party Payments,EGA,16/12/2013,11-10817,1864.4,The Dovecote
Nottinghamshire County Council,1111/1001,Adult Social Care and Health,ASCH,Third Party Payments,EGA,16/12/2013,11-10818,2068.32,The Dovecote
Nottinghamshire County Council,1111/1001,Adult Social Care and Health,ASCH,Third Party Payments,EGA,16/12/2013,11-10819,1864.4,The Dovecote
Nottinghamshire County Council,1111/1001,Adult Social Care and Health,ASCH,Third Party Payments,EGA,16/12/2013,11-10820,4369.88,The Dovecote
Nottinghamshire County Council,1111/1001,Adult Social Care and Health,ASCH,Third Party Payments,EGA,16/12/2013,11-10821,1864.4,The Dovecote
Nottinghamshire County Council,1111/1001,Adult Social Care and Health,ASCH,Third Party Payments,EGA,16/12/2013,11-10822,2552,Prestbury Care Home
Nottinghamshire County Council,1111/1001,Adult Social Care and Health,ASCH,Third Party Payments,EGA,18/12/2013,11-10861,2740.4,Care UK Learning Disabilities Servi
Nottinghamshire County Council,1111/1001,Adult Social Care and Health,ASCH,Third Party Payments,EGA,18/12/2013,11-10862,2219.96,Care UK Learning Disabilities Servi
Nottinghamshire County Council,1111/1001,Adult Social Care and Health,ASCH,Third Party Payments,EGA,19/12/2013,11-10863,1953.4,Hatzfeld Care Ltd
Nottinghamshire County Council,1111/1001,Adult Social Care and Health,ASCH,Third Party Payments,EGA,19/12/2013,11-10864,1229.84,The Human Support Group
Nottinghamshire County Council,1111/1001,Adult Social Care and Health,ASCH,Third Party Payments,EGA,19/12/2013,11-10865,18307.82,Direct Health (uk) Ltd
Nottinghamshire County Council,1111/1001,Adult Social Care and Health,ASCH,Third Party Payments,EGA,19/12/2013,11-10866,6840.48,Workwise Healthcare Ltd
Nottinghamshire County Council,1111/1001,Adult Social Care and Health,ASCH,Third Party Payments,EGA,19/12/2013,11-10867,6889.28,Direct Health (uk) Ltd
Nottinghamshire County Council,1111/1001,Adult Social Care and Health,ASCH,Third Party Payments,EGA,19/12/2013,11-10868,3233.08,Priority Homecare Ltd
Nottinghamshire County Council,1111/1001,Adult Social Care and Health,ASCH,Third Party Payments,EGA,19/12/2013,11-10869,2241.37,Medico Nursing & Homecare
Nottinghamshire County Council,1111/1001,Adult Social Care and Health,ASCH,Third Party Payments,EGA,19/12/2013,11-10870,1851.11,Premier Nursing Agency Ltd
Nottinghamshire County Council,1111/1001,Adult Social Care and Health,ASCH,Third Party Payments,EGA,19/12/2013,11-10871,599.27,Mears Care Ltd
Nottinghamshire County Council,1111/1001,Adult Social Care and Health,ASCH,Third Party Payments,EGA,19/12/2013,11-10872,4558.35,Direct Health (uk) Ltd
Nottinghamshire County Council,1111/1001,Adult Social Care and Health,ASCH,Third Party Payments,EGA,19/12/2013,11-10873,3777.34,Medico Nursing & Homecare
Nottinghamshire County Council,1111/1001,Adult Social Care and Health,ASCH,Third Party Payments,EGA,19/12/2013,11-10874,6641.95,Sterling Homecare Ltd
Nottinghamshire County Council,1111/1001,Adult Social Care and Health,ASCH,Third Party Payments,EGA,19/12/2013,11-10875,9055.79,North Notts Crossroads Care
Nottinghamshire County Council,1111/1001,Adult Social Care and Health,ASCH,Third Party Payments,EGA,19/12/2013,11-10876,1337.73,Crossroads Care East Midlands
Nottinghamshire County Council,1111/1001,Adult Social Care and Health,ASCH,Third Party Payments,EGA,19/12/2013,11-10877,1325.22,Sterling Homecare Ltd
Nottinghamshire County Council,1111/1001,Adult Social Care and Health,ASCH,Third Party Payments,EGA,19/12/2013,11-10878,792.9,Premier Nursing Agency Ltd
Nottinghamshire County Council,1111/1001,Adult Social Care and Health,ASCH,Third Party Payments,EGA,19/12/2013,11-10879,2809.27,Care Uk Homecare Ltd
Nottinghamshire County Council,1111/1001,Adult Social Care and Health,ASCH,Third Party Payments,EGA,19/12/2013,11-10880,10851.29,Mears Care Ltd
Nottinghamshire County Council,1111/1001,Adult Social Care and Health,ASCH,Third Party Payments,EGA,19/12/2013,11-10881,755.24,Medico Nursing & Homecare
Nottinghamshire County Council,1111/1001,Adult Social Care and Health,ASCH,Third Party Payments,EGA,19/12/2013,11-10882,5520.7,Westminster Homecare Ltd
Nottinghamshire County Council,1111/1001,Adult Social Care and Health,ASCH,Third Party Payments,EGA,19/12/2013,11-10883,859.32,Always There Homecare Ltd
Nottinghamshire County Council,1111/1001,Adult Social Care and Health,ASCH,Third Party Payments,EGA,19/12/2013,11-10884,811.73,Housing 21
Nottinghamshire County Council,1111/1001,Adult Social Care and Health,ASCH,Third Party Payments,EGA,19/12/2013,11-10885,1627.01,North Notts Crossroads Care
Nottinghamshire County Council,1111/1001,Adult Social Care and Health,ASCH,Third Party Payments,EGA,19/12/2013,11-10886,660.82,Medico Nursing & Homecare
Nottinghamshire County Council,1111/1001,Adult Social Care and Health,ASCH,Third Party Payments,EGA,19/12/2013,11-10887,12431.53,Care Uk Homecare Ltd
Nottinghamshire County Council,1111/1001,Adult Social Care and Health,ASCH,Third Party Payments,EGA,19/12/2013,11-10888,4220.88,Hatzfeld Care Ltd
Nottinghamshire County Council,1111/1001,Adult Social Care and Health,ASCH,Third Party Payments,EGA,19/12/2013,11-10889,1260.79,Home Care Solution Ltd
Nottinghamshire County Council,1111/1001,Adult Social Care and Health,ASCH,Third Party Payments,EGA,19/12/2013,11-10890,4686.21,Notts Homecare Ltd
Nottinghamshire County Council,1111/1001,Adult Social Care and Health,ASCH,Third Party Payments,EGA,19/12/2013,11-10891,7750.38,Sterling Homecare Ltd
Nottinghamshire County Council,1111/1001,Adult Social Care and Health,ASCH,Third Party Payments,EGA,19/12/2013,11-10892,515.03,Housing 21
Nottinghamshire County Council,1111/1001,Adult Social Care and Health,ASCH,Third Party Payments,EGA,19/12/2013,11-10893,8343.42,Care Uk Homecare Ltd
Nottinghamshire County Council,1111/1001,Adult Social Care and Health,ASCH,Third Party Payments,EGA,19/12/2013,11-10894,13363.03,Direct Health (uk) Ltd
Nottinghamshire County Council,1111/1001,Adult Social Care and Health,ASCH,Third Party Payments,EGA,19/12/2013,11-10895,4182.37,Rainbow Care Services Ltd
Nottinghamshire County Council,1111/1001,Adult Social Care and Health,ASCH,Third Party Payments,EGA,19/12/2013,11-10896,653.84,The Human Support Group
Nottinghamshire County Council,1111/1001,Adult Social Care and Health,ASCH,Third Party Payments,EGA,19/12/2013,11-10897,6848.28,Calverton Supreme Home Care Ltd
Nottinghamshire County Council,1111/1001,Adult Social Care and Health,ASCH,Third Party Payments,EGA,19/12/2013,11-10898,1680.37,Notts Homecare Ltd
Nottinghamshire County Council,1111/1001,Adult Social Care and Health,ASCH,Third Party Payments,EGA,19/12/2013,11-10899,9100.27,Crossroads Care East Midlands
Nottinghamshire County Council,1111/1001,Adult Social Care and Health,ASCH,Third Party Payments,EGA,19/12/2013,11-10900,1903.1,Housing 21
Nottinghamshire County Council,1111/1001,Adult Social Care and Health,ASCH,Third Party Payments,EGA,19/12/2013,11-10901,8390.43,Sterling Homecare Ltd
Nottinghamshire County Council,1111/1001,Adult Social Care and Health,ASCH,Third Party Payments,EGA,19/12/2013,11-10902,2096.3,Premier Nursing Agency Ltd
Nottinghamshire County Council,1111/1001,Adult Social Care and Health,ASCH,Third Party Payments,EGA,19/12/2013,11-10903,2531.39,Mears Care Ltd
Nottinghamshire County Council,1111/1001,Adult Social Care and Health,ASCH,Third Party Payments,EGA,19/12/2013,11-10904,8278.21,Care Uk Homecare Ltd
Nottinghamshire County Council,1111/1001,Adult Social Care and Health,ASCH,Third Party Payments,EGA,19/12/2013,11-10905,8390.26,Hatzfeld Care Ltd
Nottinghamshire County Council,1111/1001,Adult Social Care and Health,ASCH,Third Party Payments,EGA,19/12/2013,11-10906,584.95,Priority Homecare Ltd
Nottinghamshire County Council,1111/1001,Adult Social Care and Health,ASCH,Third Party Payments,EGA,19/12/2013,11-10907,1736.42,Westminster Homecare Ltd
Nottinghamshire County Council,1111/1001,Adult Social Care and Health,ASCH,Third Party Payments,EGA,19/12/2013,11-10908,1457.56,Direct Health (uk) Ltd
Nottinghamshire County Council,1111/1001,Adult Social Care and Health,ASCH,Third Party Payments,EGA,19/12/2013,11-10909,6974.97,Priority Homecare Ltd
Nottinghamshire County Council,1111/1001,Adult Social Care and Health,ASCH,Third Party Payments,EGA,19/12/2013,11-10910,1861.5,Hatzfeld Care Ltd
Nottinghamshire County Council,1111/1001,Adult Social Care and Health,ASCH,Third Party Payments,EGA,19/12/2013,11-10911,770.87,Leda Homecare Ltd
Nottinghamshire County Council,1111/1001,Adult Social Care and Health,ASCH,Third Party Payments,EGA,19/12/2013,11-10912,4857.86,Mears Care Ltd
Nottinghamshire County Council,1111/1001,Adult Social Care and Health,ASCH,Third Party Payments,EGA,19/12/2013,11-10913,8510.81,Sterling Homecare Ltd
Nottinghamshire County Council,1111/1001,Adult Social Care and Health,ASCH,Third Party Payments,EGA,19/12/2013,11-10914,1691.59,Crossroads Care East Midlands
Nottinghamshire County Council,1111/1001,Adult Social Care and Health,ASCH,Third Party Payments,EGA,19/12/2013,11-10915,3098.59,The Human Support Group
Nottinghamshire County Council,1111/1001,Adult Social Care and Health,ASCH,Third Party Payments,EGA,19/12/2013,11-10916,1156.72,Always There Homecare Ltd
Nottinghamshire County Council,1111/1001,Adult Social Care and Health,ASCH,Third Party Payments,EGA,19/12/2013,11-10917,8877.24,Leda Homecare Ltd
Nottinghamshire County Council,1111/1001,Adult Social Care and Health,ASCH,Third Party Payments,EGA,19/12/2013,11-10918,1013.4,Medico Nursing & Homecare
Nottinghamshire County Council,1111/1001,Adult Social Care and Health,ASCH,Third Party Payments,EGA,19/12/2013,11-10919,1885.95,Housing 21
Nottinghamshire County Council,1111/1001,Adult Social Care and Health,ASCH,Third Party Payments,EGA,19/12/2013,11-10920,2929.43,Housing 21
Nottinghamshire County Council,1111/1001,Adult Social Care and Health,ASCH,Third Party Payments,EGA,19/12/2013,11-10921,3151.35,Direct Health (uk) Ltd
Nottinghamshire County Council,1111/1001,Adult Social Care and Health,ASCH,Third Party Payments,EGA,19/12/2013,11-10922,1693.65,North Notts Crossroads Care
Nottinghamshire County Council,1111/1001,Adult Social Care and Health,ASCH,Third Party Payments,EGA,19/12/2013,11-10923,1092.76,Always There Homecare Ltd
Nottinghamshire County Council,1111/1001,Adult Social Care and Health,ASCH,Third Party Payments,EGA,19/12/2013,11-10924,9190.86,Sterling Homecare Ltd
Nottinghamshire County Council,1111/1001,Adult Social Care and Health,ASCH,Third Party Payments,EGA,19/12/2013,11-10925,6899.71,Workwise Healthcare Ltd
Nottinghamshire County Council,1111/1001,Adult Social Care and Health,ASCH,Third Party Payments,EGA,19/12/2013,11-10926,3911.76,Home Care Solution Ltd
Nottinghamshire County Council,1111/1001,Adult Social Care and Health,ASCH,Third Party Payments,EGA,19/12/2013,11-10927,10915.12,Leda Homecare Ltd
Nottinghamshire County Council,1111/1001,Adult Social Care and Health,ASCH,Third Party Payments,EGA,19/12/2013,11-10928,5648.19,Medico Nursing & Homecare
Nottinghamshire County Council,1111/1001,Adult Social Care and Health,ASCH,Third Party Payments,EGA,19/12/2013,11-10929,4168.85,Westminster Homecare Ltd
Nottinghamshire County Council,1111/1001,Adult Social Care and Health,ASCH,Third Party Payments,EGA,19/12/2013,11-10930,7766.92,Priority Homecare Ltd
Nottinghamshire County Council,1111/1001,Adult Social Care and Health,ASCH,Third Party Payments,EGA,19/12/2013,11-10931,1238.72,Sterling Homecare Ltd
Nottinghamshire County Council,1111/1001,Adult Social Care and Health,ASCH,Third Party Payments,EGA,19/12/2013,11-10932,5237.49,North Notts Crossroads Care
Nottinghamshire County Council,1111/1001,Adult Social Care and Health,ASCH,Third Party Payments,EGA,19/12/2013,11-10933,2408.99,Priority Homecare Ltd
Nottinghamshire County Council,1111/1001,Adult Social Care and Health,ASCH,Third Party Payments,EGA,19/12/2013,11-10934,1532.78,Mediline Nurses & Carers Ltd
Nottinghamshire County Council,1111/1001,Adult Social Care and Health,ASCH,Third Party Payments,EGA,19/12/2013,11-10935,1100.4,Lifeways Community Care Ltd
Nottinghamshire County Council,1111/1001,Adult Social Care and Health,ASCH,Third Party Payments,EGA,19/12/2013,11-10936,918,Landmarks Ltd
Nottinghamshire County Council,1111/1001,Adult Social Care and Health,ASCH,Third Party Payments,EGA,19/12/2013,11-10937,550.8,Landmarks Ltd
Nottinghamshire County Council,1111/1001,Adult Social Care and Health,ASCH,Third Party Payments,EGA,19/12/2013,11-10938,652.8,Landmarks Ltd
Nottinghamshire County Council,1111/1001,Adult Social Care and Health,ASCH,Third Party Payments,EGA,19/12/2013,11-10939,918,Landmarks Ltd
Nottinghamshire County Council,1111/1001,Adult Social Care and Health,ASCH,Third Party Payments,EGA,19/12/2013,11-10940,550.8,Landmarks Ltd
Nottinghamshire County Council,1111/1001,Adult Social Care and Health,ASCH,Third Party Payments,EGA,19/12/2013,11-10941,652.8,Landmarks Ltd
Nottinghamshire County Council,1111/1001,Adult Social Care and Health,ASCH,Third Party Payments,EGA,19/12/2013,11-10942,652.8,Thera East Midlands
Nottinghamshire County Council,1111/1001,Adult Social Care and Health,ASCH,Third Party Payments,EGA,19/12/2013,11-10943,805.8,Thera East Midlands
Nottinghamshire County Council,1111/1001,Adult Social Care and Health,ASCH,Third Party Payments,EGA,19/12/2013,11-10944,652.8,Thera East Midlands
Nottinghamshire County Council,1111/1001,Adult Social Care and Health,ASCH,Third Party Payments,EGA,19/12/2013,11-10945,902.7,Thera East Midlands
Nottinghamshire County Council,1111/1001,Adult Social Care and Health,ASCH,Third Party Payments,EGA,19/12/2013,11-10946,652.8,Thera East Midlands
Nottinghamshire County Council,1111/1001,Adult Social Care and Health,ASCH,Third Party Payments,EGA,19/12/2013,11-10947,902.7,Thera East Midlands
Nottinghamshire County Council,1111/1001,Adult Social Care and Health,ASCH,Third Party Payments,EGA,19/12/2013,11-10948,718.08,Thera East Midlands
Nottinghamshire County Council,1111/1001,Adult Social Care and Health,ASCH,Third Party Payments,EGA,19/12/2013,11-10949,652.8,Thera East Midlands
Nottinghamshire County Council,1111/1001,Adult Social Care and Health,ASCH,Third Party Payments,EGA,19/12/2013,11-10950,652.8,Thera East Midlands
Nottinghamshire County Council,1111/1001,Adult Social Care and Health,ASCH,Third Party Payments,EGA,19/12/2013,11-10951,652.8,Thera East Midlands
Nottinghamshire County Council,1111/1001,Adult Social Care and Health,ASCH,Third Party Payments,EGA,19/12/2013,11-10952,999.6,Thera East Midlands
Nottinghamshire County Council,1111/1001,Adult Social Care and Health,ASCH,Third Party Payments,EGA,19/12/2013,11-10953,522.24,Thera East Midlands
Nottinghamshire County Council,1111/1001,Adult Social Care and Health,ASCH,Third Party Payments,EGA,19/12/2013,11-10954,522.24,Thera East Midlands
Nottinghamshire County Council,1111/1001,Adult Social Care and Health,ASCH,Third Party Payments,EGA,20/12/2013,11-10966,27896.43,Dovetail Carehome
Nottinghamshire County Council,1111/1001,Adult Social Care and Health,ASCH,Third Party Payments,EGA,20/12/2013,11-10967,1768,Parkland
Nottinghamshire County Council,1111/1001,Adult Social Care and Health,ASCH,Third Party Payments,EGA,20/12/2013,11-10968,950,Four Seasons (Evedale) Ltd Re Westw
Nottinghamshire County Council,1111/1001,Adult Social Care and Health,ASCH,Third Party Payments,EGA,20/12/2013,11-10969,1197,Charnwood House
Nottinghamshire County Council,1111/1001,Adult Social Care and Health,ASCH,Third Party Payments,EGA,20/12/2013,11-10970,7829.71,Poplars Nursing Home
Nottinghamshire County Council,1111/1001,Adult Social Care and Health,ASCH,Third Party Payments,EGA,20/12/2013,11-10971,936,Four Seasons (Bamford) Ltd - Old Vi
Nottinghamshire County Council,1111/1001,Adult Social Care and Health,ASCH,Third Party Payments,EGA,20/12/2013,11-10972,4209.78,Knights Care Ltd
Nottinghamshire County Council,1111/1001,Adult Social Care and Health,ASCH,Third Party Payments,EGA,20/12/2013,11-10973,6788.57,Edward House Care Home
Nottinghamshire County Council,1111/1001,Adult Social Care and Health,ASCH,Third Party Payments,EGA,20/12/2013,11-10974,2611.14,Beeches Nursing Home
Nottinghamshire County Council,1111/1001,Adult Social Care and Health,ASCH,Third Party Payments,EGA,20/12/2013,11-10975,947.14,Avondale Residential Care Home
Nottinghamshire County Council,1111/1001,Adult Social Care and Health,ASCH,Third Party Payments,EGA,20/12/2013,11-10976,537,Ashley House Nursing Home
Nottinghamshire County Council,1111/1001,Adult Social Care and Health,ASCH,Third Party Payments,EGA,20/12/2013,11-10977,1177.14,Ashley House Nursing Home
Nottinghamshire County Council,1111/1001,Adult Social Care and Health,ASCH,Third Party Payments,EGA,20/12/2013,11-10978,936,Ashley House Nursing Home
Nottinghamshire County Council,1111/1001,Adult Social Care and Health,ASCH,Third Party Payments,EGA,20/12/2013,11-10979,522,Forest Hill Nursing Home
Nottinghamshire County Council,1111/1001,Adult Social Care and Health,ASCH,Third Party Payments,EGA,20/12/2013,11-10980,1175.29,The Moorlands Nursing Home
Nottinghamshire County Council,1111/1001,Adult Social Care and Health,ASCH,Third Party Payments,EGA,20/12/2013,11-10981,4498.88,Countrywide Care Homes Ltd T/A Gate
Nottinghamshire County Council,1111/1001,Adult Social Care and Health,ASCH,Third Party Payments,EGA,20/12/2013,11-10982,3744,Countrywide Care Homes Ltd T/A Gate
Nottinghamshire County Council,1111/1001,Adult Social Care and Health,ASCH,Third Party Payments,EGA,20/12/2013,11-10983,4176,Countrywide Care Homes Ltd T/A Gate
Nottinghamshire County Council,1111/1001,Adult Social Care and Health,ASCH,Third Party Payments,EGA,20/12/2013,11-10984,4403.52,Countrywide Care Homes Ltd T/A Gate
Nottinghamshire County Council,1111/1001,Adult Social Care and Health,ASCH,Third Party Payments,EGA,20/12/2013,11-10985,4176,Countrywide Care Homes Ltd T/A Gate
Nottinghamshire County Council,1111/1001,Adult Social Care and Health,ASCH,Third Party Payments,EGA,20/12/2013,11-10986,3841.36,Countrywide Care Homes Ltd T/A Gate
Nottinghamshire County Council,1111/1001,Adult Social Care and Health,ASCH,Third Party Payments,EGA,20/12/2013,11-10987,5235.28,Countrywide Care Homes Ltd T/A Gate
Nottinghamshire County Council,1111/1001,Adult Social Care and Health,ASCH,Third Party Payments,EGA,20/12/2013,11-10988,4902.48,Countrywide Care Homes Ltd T/A Gate
Nottinghamshire County Council,1111/1001,Adult Social Care and Health,ASCH,Third Party Payments,EGA,20/12/2013,11-10989,4522.8,Countrywide Care Homes Ltd T/A Gate
Nottinghamshire County Council,1111/1001,Adult Social Care and Health,ASCH,Third Party Payments,EGA,20/12/2013,11-10990,4176,Countrywide Care Homes Ltd T/A Gate
Nottinghamshire County Council,1111/1001,Adult Social Care and Health,ASCH,Third Party Payments,EGA,20/12/2013,11-10991,4240.56,Countrywide Care Homes Ltd T/A Gate
Nottinghamshire County Council,1111/1001,Adult Social Care and Health,ASCH,Third Party Payments,EGA,20/12/2013,11-10992,4416,Countrywide Care Homes Ltd T/A Gate
Nottinghamshire County Council,1111/1001,Adult Social Care and Health,ASCH,Third Party Payments,EGA,20/12/2013,11-10993,3744,Countrywide Care Homes Ltd T/A Gate
Nottinghamshire County Council,1111/1001,Adult Social Care and Health,ASCH,Third Party Payments,EGA,20/12/2013,11-10994,3744,Countrywide Care Homes Ltd T/A Gate
Nottinghamshire County Council,1111/1001,Adult Social Care and Health,ASCH,Third Party Payments,EGA,20/12/2013,11-10995,1872,Countrywide Care Homes Ltd T/A Gate
Nottinghamshire County Council,1111/1001,Adult Social Care and Health,ASCH,Third Party Payments,EGA,20/12/2013,11-10996,3744,Countrywide Care Homes Ltd T/A Gate
Nottinghamshire County Council,1111/1001,Adult Social Care and Health,ASCH,Third Party Payments,EGA,20/12/2013,11-10997,4176,Countrywide Care Homes Ltd T/A Gate
Nottinghamshire County Council,1111/1001,Adult Social Care and Health,ASCH,Third Party Payments,EGA,20/12/2013,11-10998,5256,Countrywide Care Homes Ltd T/A Gate
Nottinghamshire County Council,1111/1001,Adult Social Care and Health,ASCH,Third Party Payments,EGA,20/12/2013,11-10999,2685.14,Countrywide Care Homes Ltd T/A Gate
Nottinghamshire County Council,1111/1001,Adult Social Care and Health,ASCH,Third Party Payments,EGA,20/12/2013,11-11000,4176,Countrywide Care Homes Ltd T/A Gate
Nottinghamshire County Council,1111/1001,Adult Social Care and Health,ASCH,Third Party Payments,EGA,20/12/2013,11-11001,5385.84,Countrywide Care Homes Ltd T/A Gate
Nottinghamshire County Council,1111/1001,Adult Social Care and Health,ASCH,Third Party Payments,EGA,20/12/2013,11-11002,1369.28,Countrywide Care Homes Ltd T/A Gate
Nottinghamshire County Council,1111/1001,Adult Social Care and Health,ASCH,Third Party Payments,EGA,20/12/2013,11-11004,4176,Countrywide Care Homes Ltd T/A Gate
Nottinghamshire County Council,1111/1001,Adult Social Care and Health,ASCH,Third Party Payments,EGA,20/12/2013,11-11005,3744,Countrywide Care Homes Ltd T/A Gate
Nottinghamshire County Council,1111/1001,Adult Social Care and Health,ASCH,Third Party Payments,EGA,20/12/2013,11-11006,3744,Countrywide Care Homes Ltd T/A Gate
Nottinghamshire County Council,1111/1001,Adult Social Care and Health,ASCH,Third Party Payments,EGA,20/12/2013,11-11007,4276,Countrywide Care Homes Ltd T/A Gate
Nottinghamshire County Council,1111/1001,Adult Social Care and Health,ASCH,Third Party Payments,EGA,20/12/2013,11-11009,4325.36,Countrywide Care Homes Ltd T/A Gate
Nottinghamshire County Council,1111/1001,Adult Social Care and Health,ASCH,Third Party Payments,EGA,20/12/2013,11-11010,4176,Countrywide Care Homes Ltd T/A Gate
Nottinghamshire County Council,1111/1001,Adult Social Care and Health,ASCH,Third Party Payments,EGA,20/12/2013,11-11011,4488.56,Countrywide Care Homes Ltd T/A Gate
Nottinghamshire County Council,1111/1001,Adult Social Care and Health,ASCH,Third Party Payments,EGA,20/12/2013,11-11012,4176,Countrywide Care Homes Ltd T/A Gate
Nottinghamshire County Council,1111/1001,Adult Social Care and Health,ASCH,Third Party Payments,EGA,20/12/2013,11-11013,4896,Countrywide Care Homes Ltd T/A Gate
Nottinghamshire County Council,1111/1001,Adult Social Care and Health,ASCH,Third Party Payments,EGA,20/12/2013,11-11014,4176,Countrywide Care Homes Ltd T/A Gate
Nottinghamshire County Council,1111/1001,Adult Social Care and Health,ASCH,Third Party Payments,EGA,20/12/2013,11-11015,3928,Countrywide Care Homes Ltd T/A Gate
Nottinghamshire County Council,1111/1001,Adult Social Care and Health,ASCH,Third Party Payments,EGA,20/12/2013,11-11016,4176,Countrywide Care Homes Ltd T/A Gate
Nottinghamshire County Council,1111/1001,Adult Social Care and Health,ASCH,Third Party Payments,EGA,20/12/2013,11-11017,4325.36,Countrywide Care Homes Ltd T/A Gate
Nottinghamshire County Council,1111/1001,Adult Social Care and Health,ASCH,Third Party Payments,EGA,20/12/2013,11-11019,1069.71,Countrywide Care Homes Ltd T/A Gate
Nottinghamshire County Council,1111/1001,Adult Social Care and Health,ASCH,Third Party Payments,EGA,20/12/2013,11-11020,4176,Countrywide Care Homes Ltd T/A Gate
Nottinghamshire County Council,1111/1001,Adult Social Care and Health,ASCH,Third Party Payments,EGA,20/12/2013,11-11021,4325.36,Countrywide Care Homes Ltd T/A Gate
Nottinghamshire County Council,1111/1001,Adult Social Care and Health,ASCH,Third Party Payments,EGA,20/12/2013,11-11022,4498.88,Countrywide Care Homes Ltd T/A Gate
Nottinghamshire County Council,1111/1001,Adult Social Care and Health,ASCH,Third Party Payments,EGA,20/12/2013,11-11023,1411.43,Beech House Care Home Worksop Ltd
Nottinghamshire County Council,1111/1001,Adult Social Care and Health,ASCH,Third Party Payments,EGA,20/12/2013,11-11024,6900,Wren Hall Nursing Home
Nottinghamshire County Council,1111/1001,Adult Social Care and Health,ASCH,Third Party Payments,EGA,20/12/2013,11-11025,1290,Wren Hall Nursing Home
Nottinghamshire County Council,1111/1001,Adult Social Care and Health,ASCH,Third Party Payments,EGA,20/12/2013,11-11026,1590.57,Fbc Care Homes Ltd
Nottinghamshire County Council,1111/1001,Adult Social Care and Health,ASCH,Third Party Payments,EGA,20/12/2013,11-11027,2139.43,Rose Court Lodge Care Home
Nottinghamshire County Council,1111/1001,Adult Social Care and Health,ASCH,Third Party Payments,EGA,20/12/2013,11-11028,540,Newton House
Nottinghamshire County Council,1111/1001,Adult Social Care and Health,ASCH,Third Party Payments,EGA,20/12/2013,11-11029,1392.86,Ascot House Residential Home
Nottinghamshire County Council,1111/1001,Adult Social Care and Health,ASCH,Third Party Payments,EGA,20/12/2013,11-11030,8474.43,Eton Park Nursing Home
Nottinghamshire County Council,1111/1001,Adult Social Care and Health,ASCH,Third Party Payments,EGA,20/12/2013,11-11031,1682.86,Elmbank Nursing Home
Nottinghamshire County Council,1111/1001,Adult Social Care and Health,ASCH,Third Party Payments,EGA,20/12/2013,11-11032,505.14,Lound Hall Nursing Home
Nottinghamshire County Council,1111/1001,Adult Social Care and Health,ASCH,Third Party Payments,EGA,20/12/2013,11-11033,5100,Pathfinders Neurological Care Centr
Nottinghamshire County Council,1111/1001,Adult Social Care and Health,ASCH,Third Party Payments,EGA,20/12/2013,11-11034,3209.14,Kestrel Lodge House
Nottinghamshire County Council,1111/1001,Adult Social Care and Health,ASCH,Third Party Payments,EGA,20/12/2013,11-11035,936,Brailsford House Care Home
Nottinghamshire County Council,1111/1001,Adult Social Care and Health,ASCH,Third Party Payments,EGA,20/12/2013,11-11036,1270.29,Heritage Care
Nottinghamshire County Council,1111/1001,Adult Social Care and Health,ASCH,Third Party Payments,EGA,20/12/2013,11-11037,10504.95,Portland Residential College
Nottinghamshire County Council,1111/1001,Adult Social Care and Health,ASCH,Third Party Payments,EGA,20/12/2013,11-11038,2579.83,Victoria Park Nursing Home
Nottinghamshire County Council,1111/1001,Adult Social Care and Health,ASCH,Third Party Payments,EGA,20/12/2013,11-11039,564.57,Jubilee Court
Nottinghamshire County Council,1111/1001,Adult Social Care and Health,ASCH,Third Party Payments,EGA,20/12/2013,11-11040,6916,Maun View
Nottinghamshire County Council,1111/1001,Adult Social Care and Health,ASCH,Third Party Payments,EGA,20/12/2013,11-11041,1976,Maun View
Nottinghamshire County Council,1111/1001,Adult Social Care and Health,ASCH,Third Party Payments,EGA,20/12/2013,11-11042,850,Lancaster Grange Newark
Nottinghamshire County Council,1111/1001,Adult Social Care and Health,ASCH,Third Party Payments,EGA,20/12/2013,11-11043,2792.86,Lancaster Grange Newark
Nottinghamshire County Council,1111/1001,Adult Social Care and Health,ASCH,Third Party Payments,EGA,20/12/2013,11-11044,948,Gedling Village Care Home
Nottinghamshire County Council,1111/1001,Adult Social Care and Health,ASCH,Third Party Payments,EGA,20/12/2013,11-11054,2005.71,Ashcroft
Nottinghamshire County Council,1111/1001,Adult Social Care and Health,ASCH,Third Party Payments,EGA,20/12/2013,11-11055,884,Forest Manor Care Home
Nottinghamshire County Council,1111/1001,Adult Social Care and Health,ASCH,Third Party Payments,EGA,20/12/2013,11-11058,2831.68,Thera East Midlands
Nottinghamshire County Council,1111/1001,Adult Social Care and Health,ASCH,Third Party Payments,EGA,23/12/2013,11-11070,5013.92,Reach Housing & Enablement Serv Ltd
Nottinghamshire County Council,1111/1001,Adult Social Care and Health,ASCH,Third Party Payments,EGA,23/12/2013,11-11071,5013.92,Reach Housing & Enablement Serv Ltd
Nottinghamshire County Council,1111/1001,Adult Social Care and Health,ASCH,Third Party Payments,EGA,23/12/2013,11-11072,5936.88,Care UK Learning Disabilities Servi
Nottinghamshire County Council,1111/1001,Adult Social Care and Health,ASCH,Third Party Payments,EGA,23/12/2013,11-11073,7789.4,Perthyn
Nottinghamshire County Council,1111/1001,Adult Social Care and Health,ASCH,Third Party Payments,EGA,23/12/2013,11-11074,6949.4,Perthyn
Nottinghamshire County Council,1111/1001,Adult Social Care and Health,ASCH,Third Party Payments,EGA,23/12/2013,11-11075,9889.4,Perthyn
Nottinghamshire County Council,1111/1001,Adult Social Care and Health,ASCH,Third Party Payments,EGA,24/12/2013,11-14643,21315.52,Witham Valley Care Group
Nottinghamshire County Council,1111/1001,Adult Social Care and Health,ASCH,Third Party Payments,EGA,30/12/2013,11-11144,43106.14,Amg Nursing & Care Services Ltd
Nottinghamshire County Council,1111/1001,Adult Social Care and Health,ASCH,Third Party Payments,EGA,30/12/2013,11-11145,94519.68,British Red Cross Society
Nottinghamshire County Council,1111/1001,Adult Social Care and Health,ASCH,Third Party Payments,EGA,30/12/2013,11-11197,1880,Scalford Court
Nottinghamshire County Council,1111/1001,Adult Social Care and Health,ASCH,Third Party Payments,EGA,30/12/2013,11-11198,1772,Avery Lodge Care Home
Nottinghamshire County Council,1111/1001,Adult Social Care and Health,ASCH,Third Party Payments,EGA,30/12/2013,11-11199,1864,Avery Lodge Care Home
Nottinghamshire County Council,1111/1001,Adult Social Care and Health,ASCH,Third Party Payments,EGA,30/12/2013,11-11200,6136,Ashfield Court
Nottinghamshire County Council,1111/1001,Adult Social Care and Health,ASCH,Third Party Payments,EGA,30/12/2013,11-11201,6060,Ashfield Court
Nottinghamshire County Council,1111/1001,Adult Social Care and Health,ASCH,Third Party Payments,EGA,30/12/2013,11-11202,5492,Ashfield Court
Nottinghamshire County Council,1111/1001,Adult Social Care and Health,ASCH,Third Party Payments,EGA,30/12/2013,11-11203,5440,Ashfield Court
Nottinghamshire County Council,1111/1001,Adult Social Care and Health,ASCH,Third Party Payments,EGA,30/12/2013,11-11204,6744,Ashfield Court
Nottinghamshire County Council,1111/1001,Adult Social Care and Health,ASCH,Third Party Payments,EGA,30/12/2013,11-11205,5848,Ashfield Court
Nottinghamshire County Council,1111/1001,Adult Social Care and Health,ASCH,Third Party Payments,EGA,30/12/2013,11-11206,5572,Ashfield Court
Nottinghamshire County Council,1111/1001,Adult Social Care and Health,ASCH,Third Party Payments,EGA,30/12/2013,11-11207,6004,Ashfield Court
Nottinghamshire County Council,1111/1001,Adult Social Care and Health,ASCH,Third Party Payments,EGA,30/12/2013,11-11208,3536,Bramcote Hills Care Home
Nottinghamshire County Council,1111/1001,Adult Social Care and Health,ASCH,Third Party Payments,EGA,30/12/2013,11-11210,3536,Bramcote Hills Care Home
Nottinghamshire County Council,1111/1001,Adult Social Care and Health,ASCH,Third Party Payments,EGA,30/12/2013,11-11211,3536,Bramcote Hills Care Home
Nottinghamshire County Council,1111/1001,Adult Social Care and Health,ASCH,Third Party Payments,EGA,30/12/2013,11-11212,4229.86,Bramcote Hills Care Home
Nottinghamshire County Council,1111/1001,Adult Social Care and Health,ASCH,Third Party Payments,EGA,30/12/2013,11-11213,3536,Bramcote Hills Care Home
Nottinghamshire County Council,1111/1001,Adult Social Care and Health,ASCH,Third Party Payments,EGA,30/12/2013,11-11214,3536,Bramcote Hills Care Home
Nottinghamshire County Council,1111/1001,Adult Social Care and Health,ASCH,Third Party Payments,EGA,30/12/2013,11-11215,3968,Bramcote Hills Care Home
Nottinghamshire County Council,1111/1001,Adult Social Care and Health,ASCH,Third Party Payments,EGA,30/12/2013,11-11216,3968,Bramcote Hills Care Home
Nottinghamshire County Council,1111/1001,Adult Social Care and Health,ASCH,Third Party Payments,EGA,30/12/2013,11-11217,3536,Bramcote Hills Care Home
Nottinghamshire County Council,1111/1001,Adult Social Care and Health,ASCH,Third Party Payments,EGA,30/12/2013,11-11218,3968,Bramcote Hills Care Home
Nottinghamshire County Council,1111/1001,Adult Social Care and Health,ASCH,Third Party Payments,EGA,30/12/2013,11-11219,3968,Bramcote Hills Care Home
Nottinghamshire County Council,1111/1001,Adult Social Care and Health,ASCH,Third Party Payments,EGA,30/12/2013,11-11220,858.85,Bramcote Hills Care Home
Nottinghamshire County Council,1111/1001,Adult Social Care and Health,ASCH,Third Party Payments,EGA,30/12/2013,11-11221,4172,Because We Care Ltd
Nottinghamshire County Council,1111/1001,Adult Social Care and Health,ASCH,Third Party Payments,EGA,30/12/2013,11-11222,4569.6,Because We Care Ltd
Nottinghamshire County Council,1111/1001,Adult Social Care and Health,ASCH,Third Party Payments,EGA,30/12/2013,11-11223,9639,Creative Care (East Midlands) Ltd
Nottinghamshire County Council,1111/1001,Adult Social Care and Health,ASCH,Third Party Payments,EGA,30/12/2013,11-11224,9953.28,Creative Care (East Midlands) Ltd
Nottinghamshire County Council,1111/1001,Adult Social Care and Health,ASCH,Third Party Payments,EGA,30/12/2013,11-11225,9665.36,Creative Care (East Midlands) Ltd
Nottinghamshire County Council,1111/1001,Adult Social Care and Health,ASCH,Third Party Payments,EGA,30/12/2013,11-11226,1596,Redlands Christian Carehome Aka Eve
Nottinghamshire County Council,1111/1001,Adult Social Care and Health,ASCH,Third Party Payments,EGA,30/12/2013,11-11227,1596,Redlands Christian Carehome Aka Eve
Nottinghamshire County Council,1111/1001,Adult Social Care and Health,ASCH,Third Party Payments,EGA,30/12/2013,11-11228,7772,Freedom Care Home
Nottinghamshire County Council,1111/1001,Adult Social Care and Health,ASCH,Third Party Payments,EGA,30/12/2013,11-11229,9710.48,Freedom Care Home
Nottinghamshire County Council,1111/1001,Adult Social Care and Health,ASCH,Third Party Payments,EGA,30/12/2013,11-11230,3561.44,Corner View
Nottinghamshire County Council,1111/1001,Adult Social Care and Health,ASCH,Third Party Payments,EGA,30/12/2013,11-11231,3000,Corner View
Nottinghamshire County Council,1111/1001,Adult Social Care and Health,ASCH,Third Party Payments,EGA,30/12/2013,11-11232,3561.44,Corner View
Nottinghamshire County Council,1111/1001,Adult Social Care and Health,ASCH,Third Party Payments,EGA,30/12/2013,11-11233,3561.44,Corner View
Nottinghamshire County Council,1111/1001,Adult Social Care and Health,ASCH,Third Party Payments,EGA,30/12/2013,11-11234,1732,The Grange Nursing Home
Nottinghamshire County Council,1111/1001,Adult Social Care and Health,ASCH,Third Party Payments,EGA,30/12/2013,11-11235,1596,The Grange Nursing Home
Nottinghamshire County Council,1111/1001,Adult Social Care and Health,ASCH,Third Party Payments,EGA,30/12/2013,11-11236,1732,The Grange Nursing Home
Nottinghamshire County Council,1111/1001,Adult Social Care and Health,ASCH,Third Party Payments,EGA,30/12/2013,11-11237,1596,The Grange Nursing Home
Nottinghamshire County Council,1111/1001,Adult Social Care and Health,ASCH,Third Party Payments,EGA,30/12/2013,11-11238,1596,The Grange Nursing Home
Nottinghamshire County Council,1111/1001,Adult Social Care and Health,ASCH,Third Party Payments,EGA,30/12/2013,11-11239,1848,The Grange Nursing Home
Nottinghamshire County Council,1111/1001,Adult Social Care and Health,ASCH,Third Party Payments,EGA,30/12/2013,11-11240,1732,The Grange Nursing Home
Nottinghamshire County Council,1111/1001,Adult Social Care and Health,ASCH,Third Party Payments,EGA,30/12/2013,11-11241,1732,The Grange Nursing Home
Nottinghamshire County Council,1111/1001,Adult Social Care and Health,ASCH,Third Party Payments,EGA,30/12/2013,11-11243,1740.36,St Marys Convent
Nottinghamshire County Council,1111/1001,Adult Social Care and Health,ASCH,Third Party Payments,EGA,30/12/2013,11-11246,2264,Belvoir Vale
Nottinghamshire County Council,1111/1001,Adult Social Care and Health,ASCH,Third Party Payments,EGA,30/12/2013,11-11247,5945.14,Belvoir Vale
Nottinghamshire County Council,1111/1001,Adult Social Care and Health,ASCH,Third Party Payments,EGA,30/12/2013,11-11248,2264,Belvoir Vale
Nottinghamshire County Council,1111/1001,Adult Social Care and Health,ASCH,Third Party Payments,EGA,30/12/2013,11-11249,3299,Belvoir Vale
Nottinghamshire County Council,1111/1001,Adult Social Care and Health,ASCH,Third Party Payments,EGA,30/12/2013,11-11250,2304,Belvoir Vale
Nottinghamshire County Council,1111/1001,Adult Social Care and Health,ASCH,Third Party Payments,EGA,30/12/2013,11-11251,2264,Belvoir Vale
Nottinghamshire County Council,1111/1001,Adult Social Care and Health,ASCH,Third Party Payments,EGA,30/12/2013,11-11252,3486.52,Belvoir Vale
Nottinghamshire County Council,1111/1001,Adult Social Care and Health,ASCH,Third Party Payments,EGA,30/12/2013,11-11253,3340,Belvoir Vale
Nottinghamshire County Council,1111/1001,Adult Social Care and Health,ASCH,Third Party Payments,EGA,30/12/2013,11-11254,1431.4,Four Seasons (Evedale) Ltd Re Rando
Nottinghamshire County Council,1111/1001,Adult Social Care and Health,ASCH,Third Party Payments,EGA,30/12/2013,11-11255,1766.64,Arden Lea Nursing Home
Nottinghamshire County Council,1111/1001,Adult Social Care and Health,ASCH,Third Party Payments,EGA,30/12/2013,11-11256,1766.64,Arden Lea Nursing Home
Nottinghamshire County Council,1111/1001,Adult Social Care and Health,ASCH,Third Party Payments,EGA,30/12/2013,11-11257,1766.64,Belle Vue
Nottinghamshire County Council,1111/1001,Adult Social Care and Health,ASCH,Third Party Payments,EGA,30/12/2013,11-11258,1926.64,Belle Vue
Nottinghamshire County Council,1111/1001,Adult Social Care and Health,ASCH,Third Party Payments,EGA,30/12/2013,11-11259,1766.64,Belle Vue
Nottinghamshire County Council,1111/1001,Adult Social Care and Health,ASCH,Third Party Payments,EGA,30/12/2013,11-11260,1766.64,Belle Vue
Nottinghamshire County Council,1111/1001,Adult Social Care and Health,ASCH,Third Party Payments,EGA,30/12/2013,11-11261,1766.64,Belle Vue
Nottinghamshire County Council,1111/1001,Adult Social Care and Health,ASCH,Third Party Payments,EGA,30/12/2013,11-11262,1732,Belle Vue
Nottinghamshire County Council,1111/1001,Adult Social Care and Health,ASCH,Third Party Payments,EGA,30/12/2013,11-11263,1766.64,Belle Vue
Nottinghamshire County Council,1111/1001,Adult Social Care and Health,ASCH,Third Party Payments,EGA,30/12/2013,11-11264,1926.64,Belle Vue
Nottinghamshire County Council,1111/1001,Adult Social Care and Health,ASCH,Third Party Payments,EGA,30/12/2013,11-11265,2024,Belle Vue
Nottinghamshire County Council,1111/1001,Adult Social Care and Health,ASCH,Third Party Payments,EGA,30/12/2013,11-11267,2292,Ashcroft
Nottinghamshire County Council,1111/1001,Adult Social Care and Health,ASCH,Third Party Payments,EGA,30/12/2013,11-11268,2080,Ashcroft
Nottinghamshire County Council,1111/1001,Adult Social Care and Health,ASCH,Third Party Payments,EGA,30/12/2013,11-11269,2292,Ashcroft
Nottinghamshire County Council,1111/1001,Adult Social Care and Health,ASCH,Third Party Payments,EGA,30/12/2013,11-11270,2460,Ashcroft
Nottinghamshire County Council,1111/1001,Adult Social Care and Health,ASCH,Third Party Payments,EGA,30/12/2013,11-11271,2460,Ashcroft
Nottinghamshire County Council,1111/1001,Adult Social Care and Health,ASCH,Third Party Payments,EGA,30/12/2013,11-11272,2460,Ashcroft
Nottinghamshire County Council,1111/1001,Adult Social Care and Health,ASCH,Third Party Payments,EGA,30/12/2013,11-11273,2080,Ashcroft
Nottinghamshire County Council,1111/1001,Adult Social Care and Health,ASCH,Third Party Payments,EGA,30/12/2013,11-11274,2264,Ashcroft
Nottinghamshire County Council,1111/1001,Adult Social Care and Health,ASCH,Third Party Payments,EGA,30/12/2013,11-11275,2264,Ashcroft
Nottinghamshire County Council,1111/1001,Adult Social Care and Health,ASCH,Third Party Payments,EGA,30/12/2013,11-11276,2460,Ashcroft
Nottinghamshire County Council,1111/1001,Adult Social Care and Health,ASCH,Third Party Payments,EGA,30/12/2013,11-11277,2264,Ashcroft
Nottinghamshire County Council,1111/1001,Adult Social Care and Health,ASCH,Third Party Payments,EGA,30/12/2013,11-11278,2080,Ashcroft
Nottinghamshire County Council,1111/1001,Adult Social Care and Health,ASCH,Third Party Payments,EGA,30/12/2013,11-11279,1040,Ashcroft
Nottinghamshire County Council,1111/1001,Adult Social Care and Health,ASCH,Third Party Payments,EGA,30/12/2013,11-11280,2080,Ashcroft
Nottinghamshire County Council,1111/1001,Adult Social Care and Health,ASCH,Third Party Payments,EGA,30/12/2013,11-11281,2460,Ashcroft
Nottinghamshire County Council,1111/1001,Adult Social Care and Health,ASCH,Third Party Payments,EGA,30/12/2013,11-11282,2460,Ashcroft
Nottinghamshire County Council,1111/1001,Adult Social Care and Health,ASCH,Third Party Payments,EGA,30/12/2013,11-11283,2264,Ashcroft
Nottinghamshire County Council,1111/1001,Adult Social Care and Health,ASCH,Third Party Payments,EGA,30/12/2013,11-11284,7995,Ashcroft
Nottinghamshire County Council,1111/1001,Adult Social Care and Health,ASCH,Third Party Payments,EGA,30/12/2013,11-11285,2264,Ashcroft
Nottinghamshire County Council,1111/1001,Adult Social Care and Health,ASCH,Third Party Payments,EGA,30/12/2013,11-11286,2264,Ashcroft
Nottinghamshire County Council,1111/1001,Adult Social Care and Health,ASCH,Third Party Payments,EGA,30/12/2013,11-11287,2264,Ashcroft
Nottinghamshire County Council,1111/1001,Adult Social Care and Health,ASCH,Third Party Payments,EGA,30/12/2013,11-11288,4014,Ashcroft
Nottinghamshire County Council,1111/1001,Adult Social Care and Health,ASCH,Third Party Payments,EGA,30/12/2013,11-11289,2264,Ashcroft
Nottinghamshire County Council,1111/1001,Adult Social Care and Health,ASCH,Third Party Payments,EGA,30/12/2013,11-11290,2080,Ashcroft
Nottinghamshire County Council,1111/1001,Adult Social Care and Health,ASCH,Third Party Payments,EGA,30/12/2013,11-11291,2080,Ashcroft
Nottinghamshire County Council,1111/1001,Adult Social Care and Health,ASCH,Third Party Payments,EGA,30/12/2013,11-11292,2460,Ashcroft
Nottinghamshire County Council,1111/1001,Adult Social Care and Health,ASCH,Third Party Payments,EGA,30/12/2013,11-11294,1766.64,Kingsthorpe View Nursing Home
Nottinghamshire County Council,1111/1001,Adult Social Care and Health,ASCH,Third Party Payments,EGA,30/12/2013,11-11295,1766.64,Kingsthorpe View Nursing Home
Nottinghamshire County Council,1111/1001,Adult Social Care and Health,ASCH,Third Party Payments,EGA,30/12/2013,11-11296,1766.64,Kingsthorpe View Nursing Home
Nottinghamshire County Council,1111/1001,Adult Social Care and Health,ASCH,Third Party Payments,EGA,30/12/2013,11-11297,1766.64,Kingsthorpe View Nursing Home
Nottinghamshire County Council,1111/1001,Adult Social Care and Health,ASCH,Third Party Payments,EGA,30/12/2013,11-11298,1732,Kingsthorpe View Nursing Home
Nottinghamshire County Council,1111/1001,Adult Social Care and Health,ASCH,Third Party Payments,EGA,30/12/2013,11-11299,1492.96,HC1 Ltd Re. Oaklands (Whaley Thorns
Nottinghamshire County Council,1111/1001,Adult Social Care and Health,ASCH,Third Party Payments,EGA,30/12/2013,11-11300,1620.92,HC1 Ltd Re. Oaklands (Whaley Thorns
Nottinghamshire County Council,1111/1001,Adult Social Care and Health,ASCH,Third Party Payments,EGA,30/12/2013,11-11301,2176.56,HC1 Ltd Re. Oaklands (Whaley Thorns
Nottinghamshire County Council,1111/1001,Adult Social Care and Health,ASCH,Third Party Payments,EGA,30/12/2013,11-11302,1634.8,HC1 Ltd Re. Oaklands (Whaley Thorns
Nottinghamshire County Council,1111/1001,Adult Social Care and Health,ASCH,Third Party Payments,EGA,30/12/2013,11-11303,1520,HC1 Ltd Re. Oaklands (Whaley Thorns
Nottinghamshire County Council,1111/1001,Adult Social Care and Health,ASCH,Third Party Payments,EGA,30/12/2013,11-11304,2976.12,HC1 Ltd Re. Oaklands (Whaley Thorns
Nottinghamshire County Council,1111/1001,Adult Social Care and Health,ASCH,Third Party Payments,EGA,30/12/2013,11-11305,1477.76,Ladywood Care Home
Nottinghamshire County Council,1111/1001,Adult Social Care and Health,ASCH,Third Party Payments,EGA,30/12/2013,11-11306,1872,Beauvale Nursing Home
Nottinghamshire County Council,1111/1001,Adult Social Care and Health,ASCH,Third Party Payments,EGA,30/12/2013,11-11307,2088,Beauvale Nursing Home
Nottinghamshire County Council,1111/1001,Adult Social Care and Health,ASCH,Third Party Payments,EGA,30/12/2013,11-11308,1952,Beauvale Nursing Home
Nottinghamshire County Council,1111/1001,Adult Social Care and Health,ASCH,Third Party Payments,EGA,30/12/2013,11-11309,2088,Beauvale Nursing Home
Nottinghamshire County Council,1111/1001,Adult Social Care and Health,ASCH,Third Party Payments,EGA,30/12/2013,11-11310,2108,Beauvale Nursing Home
Nottinghamshire County Council,1111/1001,Adult Social Care and Health,ASCH,Third Party Payments,EGA,30/12/2013,11-11311,1992,Beauvale Nursing Home
Nottinghamshire County Council,1111/1001,Adult Social Care and Health,ASCH,Third Party Payments,EGA,30/12/2013,11-11312,2088,Beauvale Nursing Home
Nottinghamshire County Council,1111/1001,Adult Social Care and Health,ASCH,Third Party Payments,EGA,30/12/2013,11-11313,2088,Beauvale Nursing Home
Nottinghamshire County Council,1111/1001,Adult Social Care and Health,ASCH,Third Party Payments,EGA,30/12/2013,11-11314,1872,Beauvale Nursing Home
Nottinghamshire County Council,1111/1001,Adult Social Care and Health,ASCH,Third Party Payments,EGA,30/12/2013,11-11315,2024,Beauvale Nursing Home
Nottinghamshire County Council,1111/1001,Adult Social Care and Health,ASCH,Third Party Payments,EGA,30/12/2013,11-11316,2088,Beauvale Nursing Home
Nottinghamshire County Council,1111/1001,Adult Social Care and Health,ASCH,Third Party Payments,EGA,30/12/2013,11-11317,2168,Beauvale Nursing Home
Nottinghamshire County Council,1111/1001,Adult Social Care and Health,ASCH,Third Party Payments,EGA,30/12/2013,11-11318,1872,Beauvale Nursing Home
Nottinghamshire County Council,1111/1001,Adult Social Care and Health,ASCH,Third Party Payments,EGA,30/12/2013,11-11319,2208,Beauvale Nursing Home
Nottinghamshire County Council,1111/1001,Adult Social Care and Health,ASCH,Third Party Payments,EGA,30/12/2013,11-11320,2088,Beauvale Nursing Home
Nottinghamshire County Council,1111/1001,Adult Social Care and Health,ASCH,Third Party Payments,EGA,30/12/2013,11-11321,1872,Beauvale Nursing Home
Nottinghamshire County Council,1111/1001,Adult Social Care and Health,ASCH,Third Party Payments,EGA,30/12/2013,11-11322,3504.86,Beauvale Nursing Home
Nottinghamshire County Council,1111/1001,Adult Social Care and Health,ASCH,Third Party Payments,EGA,30/12/2013,11-11323,1768,Barnby Court Care Home
Nottinghamshire County Council,1111/1001,Adult Social Care and Health,ASCH,Third Party Payments,EGA,30/12/2013,11-11324,1768,Barnby Court Care Home
Nottinghamshire County Council,1111/1001,Adult Social Care and Health,ASCH,Third Party Payments,EGA,30/12/2013,11-11325,1768,Barnby Court Care Home
Nottinghamshire County Council,1111/1001,Adult Social Care and Health,ASCH,Third Party Payments,EGA,30/12/2013,11-11326,1768,Barnby Court Care Home
Nottinghamshire County Council,1111/1001,Adult Social Care and Health,ASCH,Third Party Payments,EGA,30/12/2013,11-11327,1768,Barnby Court Care Home
Nottinghamshire County Council,1111/1001,Adult Social Care and Health,ASCH,Third Party Payments,EGA,30/12/2013,11-11328,1768,Barnby Court Care Home
Nottinghamshire County Council,1111/1001,Adult Social Care and Health,ASCH,Third Party Payments,EGA,30/12/2013,11-11329,1768,Barnby Court Care Home
Nottinghamshire County Council,1111/1001,Adult Social Care and Health,ASCH,Third Party Payments,EGA,30/12/2013,11-11330,1768,Barnby Court Care Home
Nottinghamshire County Council,1111/1001,Adult Social Care and Health,ASCH,Third Party Payments,EGA,30/12/2013,11-11331,1768,Barnby Court Care Home
Nottinghamshire County Council,1111/1001,Adult Social Care and Health,ASCH,Third Party Payments,EGA,30/12/2013,11-11332,1768,Barnby Court Care Home
Nottinghamshire County Council,1111/1001,Adult Social Care and Health,ASCH,Third Party Payments,EGA,30/12/2013,11-11333,1768,Barnby Court Care Home
Nottinghamshire County Council,1111/1001,Adult Social Care and Health,ASCH,Third Party Payments,EGA,30/12/2013,11-11334,1768,Avalon Nursing Home
Nottinghamshire County Council,1111/1001,Adult Social Care and Health,ASCH,Third Party Payments,EGA,30/12/2013,11-11335,1984,Avalon Nursing Home
